Service Delivery Area(T),Service Delivery Team(T),ExpenditureGroup(T),Account(T),Supplier Name(T),Trans Date,Amount
Adult Social Care,ASC Prevention & Enablement,Supplies & Services,Equipment - Hire,1st Call Mobility,17/11/2023,"1,263.63"
Adult Social Care,ASC Prevention & Enablement,Transport-Related Expenditure,Taxi Costs,24X7 Ltd,07/11/2023,215.50
Children�s Safeguarding & Family Support,Child Protection & Family Support,Transport-Related Expenditure,Taxi Costs,24X7 Ltd,07/11/2023,124.40
Children�s Safeguarding & Family Support,Child Protection & Family Support,Transport-Related Expenditure,Taxi Costs,24X7 Ltd,07/11/2023,845.18
Policy & Governance,Governance & Legal Services,Supplies & Services,Legal Expenses,39 Essex Chambers,03/11/2023,500.00
Education & Skills,Consultancy & Advisory Services,Supplies & Services,Other Grants (Expenses),4 All Foundation,02/11/2023,"1,819.75"
Education & Skills,Consultancy & Advisory Services,Supplies & Services,Other Grants (Expenses),4 All Foundation,29/11/2023,"1,785.00"
Education & Skills,Consultancy & Advisory Services,Supplies & Services,Other Grants (Expenses),4 All Foundation,29/11/2023,"1,170.00"
Neighbourhood & Enforcement Services,"Highways, Engineering & Project Delivery",Capital Expenditure,Payments to Contractor,A&N Signs,11/11/2023,"1,450.00"
Neighbourhood & Enforcement Services,Waste & Neighbourhood Services,Premises-Related Expenditure,Other,A&N Signs,17/11/2023,680.00
Prosperity & Investment,BiT,Premises-Related Expenditure,R&M -Buildings DLO Charge,A1 Glass & Glazing Limited,13/11/2023,420.00
Prosperity & Investment,BiT,Premises-Related Expenditure,R&M -Buildings DLO Charge,A1 Glass & Glazing Limited,28/11/2023,195.00
Prosperity & Investment,BiT,Premises-Related Expenditure,R&M -Buildings DLO Charge,A1 Glass & Glazing Limited,14/11/2023,160.00
Prosperity & Investment,BiT,Premises-Related Expenditure,R&M -Buildings DLO Charge,A1 Glass & Glazing Limited,01/11/2023,110.00
Prosperity & Investment,BiT,Premises-Related Expenditure,R&M -Buildings DLO Charge,A1 Glass & Glazing Limited,01/11/2023,220.00
Prosperity & Investment,BiT,Premises-Related Expenditure,R&M -Buildings DLO Charge,A1 Glass & Glazing Limited,01/11/2023,150.00
Prosperity & Investment,BiT,Premises-Related Expenditure,R&M -Buildings DLO Charge,A1 Glass & Glazing Limited,01/11/2023,255.00
Prosperity & Investment,BiT,Premises-Related Expenditure,R&M -Buildings DLO Charge,A1 Glass & Glazing Limited,01/11/2023,110.00
Prosperity & Investment,BiT,Premises-Related Expenditure,R&M -Buildings DLO Charge,A1 Glass & Glazing Limited,01/11/2023,220.00
Prosperity & Investment,BiT,Premises-Related Expenditure,R&M -Buildings DLO Charge,A1 Glass & Glazing Limited,01/11/2023,120.00
Prosperity & Investment,BiT,Premises-Related Expenditure,R&M -Buildings DLO Charge,A1 Glass & Glazing Limited,01/11/2023,125.00
Prosperity & Investment,BiT,Premises-Related Expenditure,R&M -Buildings DLO Charge,A1 Glass & Glazing Limited,01/11/2023,200.00
Prosperity & Investment,BiT,Premises-Related Expenditure,R&M -Buildings DLO Charge,A1 Glass & Glazing Limited,01/11/2023,240.00
Prosperity & Investment,BiT,Premises-Related Expenditure,R&M -Buildings DLO Charge,A1 Glass & Glazing Limited,01/11/2023,145.00
Prosperity & Investment,BiT,Premises-Related Expenditure,R&M -Buildings DLO Charge,A1 Glass & Glazing Limited,01/11/2023,110.00
Prosperity & Investment,BiT,Premises-Related Expenditure,R&M -Buildings DLO Charge,A1 Glass & Glazing Limited,13/11/2023,200.00
Prosperity & Investment,BiT,Premises-Related Expenditure,R&M -Buildings DLO Charge,A1 Glass & Glazing Limited,14/11/2023,190.00
Prosperity & Investment,BiT,Premises-Related Expenditure,R&M -Buildings DLO Charge,A1 Glass & Glazing Limited,14/11/2023,120.00
Prosperity & Investment,BiT,Premises-Related Expenditure,R&M -Buildings DLO Charge,A1 Glass & Glazing Limited,08/11/2023,110.00
Prosperity & Investment,BiT,Premises-Related Expenditure,R&M -Buildings DLO Charge,A1 Glass & Glazing Limited,08/11/2023,220.00
Prosperity & Investment,BiT,Premises-Related Expenditure,R&M -Buildings DLO Charge,A1 Glass & Glazing Limited,08/11/2023,120.00
Prosperity & Investment,BiT,Premises-Related Expenditure,R&M -Buildings DLO Charge,A1 Glass & Glazing Limited,08/11/2023,120.00
Prosperity & Investment,BiT,Premises-Related Expenditure,R&M -Buildings DLO Charge,A1 Glass & Glazing Limited,08/11/2023,440.00
Prosperity & Investment,BiT,Premises-Related Expenditure,R&M -Buildings DLO Charge,A1 Glass & Glazing Limited,08/11/2023,200.00
Prosperity & Investment,BiT,Premises-Related Expenditure,R&M -Buildings DLO Charge,A1 Glass & Glazing Limited,08/11/2023,200.00
Prosperity & Investment,BiT,Premises-Related Expenditure,R&M -Buildings DLO Charge,A1 Glass & Glazing Limited,08/11/2023,165.00
Prosperity & Investment,BiT,Premises-Related Expenditure,R&M -Buildings DLO Charge,A1 Glass & Glazing Limited,30/11/2023,120.00
Prosperity & Investment,BiT,Premises-Related Expenditure,R&M -Buildings DLO Charge,A1 Glass & Glazing Limited,30/11/2023,220.00
Prosperity & Investment,BiT,Premises-Related Expenditure,R&M -Buildings DLO Charge,A1 Glass & Glazing Limited,30/11/2023,200.00
Prosperity & Investment,BiT,Premises-Related Expenditure,R&M -Buildings DLO Charge,A1 Glass & Glazing Limited,30/11/2023,200.00
Prosperity & Investment,BiT,Premises-Related Expenditure,R&M -Buildings DLO Charge,A1 Glass & Glazing Limited,30/11/2023,"2,150.00"
Prosperity & Investment,BiT,Premises-Related Expenditure,R&M -Buildings DLO Charge,A1 Glass & Glazing Limited,30/11/2023,155.00
Prosperity & Investment,BiT,Premises-Related Expenditure,R&M -Buildings DLO Charge,A1 Glass & Glazing Limited,30/11/2023,110.00
Prosperity & Investment,BiT,Premises-Related Expenditure,R&M -Buildings DLO Charge,A1 Glass & Glazing Limited,30/11/2023,110.00
Prosperity & Investment,BiT,Premises-Related Expenditure,R&M -Buildings DLO Charge,A1 Glass & Glazing Limited,30/11/2023,200.00
Prosperity & Investment,BiT,Premises-Related Expenditure,R&M -Buildings DLO Charge,A1 Glass & Glazing Limited,30/11/2023,120.00
Prosperity & Investment,BiT,Premises-Related Expenditure,R&M -Buildings DLO Charge,A1 Glass & Glazing Limited,30/11/2023,120.00
Education & Skills,SEND (0-25),Transport-Related Expenditure,Transport,AB & CA H,09/11/2023,"3,240.00"
Health & Wellbeing,Consultant in Public Health,Supplies & Services,Sub Contractors,A Rapid Diagnostics Limited,28/11/2023,276.00
Health & Wellbeing,Consultant in Public Health,Supplies & Services,Sub Contractors,A Rapid Diagnostics Limited,28/11/2023,299.27
Health & Wellbeing,Consultant in Public Health,Supplies & Services,Sub Contractors,A Rapid Diagnostics Limited,13/11/2023,234.00
Health & Wellbeing,Consultant in Public Health,Supplies & Services,Sub Contractors,A Rapid Diagnostics Limited,13/11/2023,468.00
Health & Wellbeing,Consultant in Public Health,Supplies & Services,Sub Contractors,A Rapid Diagnostics Limited,13/11/2023,437.27
Health & Wellbeing,Consultant in Public Health,Supplies & Services,Sub Contractors,A Rapid Diagnostics Limited,22/11/2023,"2,971.10"
Health & Wellbeing,Consultant in Public Health,Supplies & Services,Sub Contractors,A Rapid Diagnostics Limited,22/11/2023,272.50
Health & Wellbeing,Consultant in Public Health,Supplies & Services,Sub Contractors,A Rapid Diagnostics Limited,22/11/2023,514.54
Health & Wellbeing,Consultant in Public Health,Supplies & Services,Sub Contractors,A Rapid Diagnostics Limited,22/11/2023,414.00
Health & Wellbeing,Consultant in Public Health,Supplies & Services,Sub Contractors,A Rapid Diagnostics Limited,22/11/2023,281.27
Education & Skills,SEND (0-25),Third Party Payments,DSG - High Needs Block,ABC Day Nursery (LIGHTMOOR),09/11/2023,803.28
Education & Skills,SEND (0-25),Third Party Payments,DSG - High Needs Block,ABC Day Nursery Hadley ,06/11/2023,"2,860.49"
Education & Skills,SEND (0-25),Third Party Payments,DSG - High Needs Block,ABC DAY NURSERY HOLLINSWOOD ,09/11/2023,401.64
Education & Skills,SEND (0-25),Third Party Payments,DSG - High Needs Block,ABRAHAM DARBY ACADEMY ,06/11/2023,"6,455.82"
Education & Skills,SEND (0-25),Third Party Payments,DSG - High Needs Block,ABRAHAM DARBY ACADEMY ,06/11/2023,"6,455.82"
Education & Skills,SEND (0-25),Third Party Payments,DSG - High Needs Block,ABRAHAM DARBY ACADEMY ,21/11/2023,"6,455.82"
Education & Skills,SEND (0-25),Third Party Payments,DSG - High Needs Block,ABRAHAM DARBY ACADEMY ,06/11/2023,204.22
Education & Skills,SEND (0-25),Third Party Payments,DSG - High Needs Block,ABRAHAM DARBY ACADEMY ,06/11/2023,204.22
Education & Skills,SEND (0-25),Third Party Payments,DSG - High Needs Block,ABRAHAM DARBY ACADEMY ,21/11/2023,204.22
Prosperity & Investment,BiT,Premises-Related Expenditure,R&M -Buildings DLO Charge,ACAPS Ltd,01/11/2023,194.00
Prosperity & Investment,BiT,Premises-Related Expenditure,R&M -Buildings DLO Charge,ACAPS Ltd,01/11/2023,194.00
Prosperity & Investment,BiT,Premises-Related Expenditure,R&M -Buildings DLO Charge,ACAPS Ltd,01/11/2023,194.00
Adult Social Care,My Options,Supplies & Services,Computer Software (Maint),Access UK Ltd,09/11/2023,150.00
Adult Social Care,My Options,Supplies & Services,Computer Software (Maint),Access UK Ltd,09/11/2023,494.40
"Housing, Employment & Infrastructure",Inward Investment & Business Support,Supplies & Services,Consultancy,Acer Marketing Communications Limited,08/11/2023,875.00
Education & Skills,Consultancy & Advisory Services,Supplies & Services,Other Grants (Expenses),Active Future Franchising Ltd,29/11/2023,"4,136.25"
Prosperity & Investment,BiT,Premises-Related Expenditure,R&M -Buildings DLO Charge,Adexsi UK Ltd,08/11/2023,866.00
Prosperity & Investment,BiT,Premises-Related Expenditure,R&M -Buildings DLO Charge,Adexsi UK Ltd,08/11/2023,922.00
Prosperity & Investment,BiT,Premises-Related Expenditure,R&M -Buildings DLO Charge,Adexsi UK Ltd,01/11/2023,864.00
Education & Skills,Education & Skills,Capital Expenditure,Payments to Contractor,REDACTED PERSONAL INFORMATION,01/11/2023,225.00
"Communities, Customer & Commercial Services",ICT,Supplies & Services,Comp Software (Purch / Hire),ADVANCED BUSINESS SOLUTIONS ,21/11/2023,"1,194.16"
"Communities, Customer & Commercial Services",ICT,Supplies & Services,Comp Software (Purch / Hire),ADVANCED BUSINESS SOLUTIONS ,21/11/2023,"1,316.88"
"Communities, Customer & Commercial Services",ICT,Supplies & Services,Comp Software (Purch / Hire),ADVANCED BUSINESS SOLUTIONS ,21/11/2023,"1,741.68"
"Communities, Customer & Commercial Services",ICT,Supplies & Services,Comp Software (Purch / Hire),ADVANCED BUSINESS SOLUTIONS ,21/11/2023,726.88
"Communities, Customer & Commercial Services",ICT,Supplies & Services,Comp Software (Purch / Hire),ADVANCED BUSINESS SOLUTIONS ,21/11/2023,868.48
"Communities, Customer & Commercial Services",ICT,Supplies & Services,Comp Software (Purch / Hire),ADVANCED BUSINESS SOLUTIONS ,21/11/2023,"1,198.88"
"Communities, Customer & Commercial Services",ICT,Supplies & Services,Comp Software (Purch / Hire),ADVANCED BUSINESS SOLUTIONS ,21/11/2023,245.44
"Communities, Customer & Commercial Services",ICT,Supplies & Services,Comp Software (Purch / Hire),ADVANCED BUSINESS SOLUTIONS ,21/11/2023,"1,293.28"
"Communities, Customer & Commercial Services",ICT,Supplies & Services,Comp Software (Purch / Hire),ADVANCED BUSINESS SOLUTIONS ,21/11/2023,"1,534.00"
"Communities, Customer & Commercial Services",ICT,Supplies & Services,Comp Software (Purch / Hire),ADVANCED BUSINESS SOLUTIONS ,21/11/2023,882.64
"Communities, Customer & Commercial Services",ICT,Supplies & Services,Comp Software (Purch / Hire),ADVANCED BUSINESS SOLUTIONS ,21/11/2023,958.16
"Communities, Customer & Commercial Services",ICT,Supplies & Services,Comp Software (Purch / Hire),ADVANCED BUSINESS SOLUTIONS ,21/11/2023,"1,722.80"
"Communities, Customer & Commercial Services",ICT,Supplies & Services,Comp Software (Purch / Hire),ADVANCED BUSINESS SOLUTIONS ,21/11/2023,892.08
"Communities, Customer & Commercial Services",ICT,Supplies & Services,Comp Software (Purch / Hire),ADVANCED BUSINESS SOLUTIONS ,21/11/2023,887.36
Prosperity & Investment,Regeneration & Investment,Premises-Related Expenditure,R&M -Building Other,Advanced Wastewater & drainage Ltd,22/11/2023,135.30
Prosperity & Investment,Regeneration & Investment,Premises-Related Expenditure,R&M -Building Other,Advanced Wastewater & drainage Ltd,22/11/2023,922.83
Education & Skills,Skills,Supplies & Services,Subscriptions,Adviza Partnership,09/11/2023,265.00
Education & Skills,Skills,Premises-Related Expenditure,Hire Of Rooms,AFC Telford Holdings Limited,15/11/2023,620.00
Education & Skills,Skills,Premises-Related Expenditure,Hire Of Rooms,AFC Telford Holdings Limited,15/11/2023,897.00
Policy & Governance,Governance & Legal Services,Premises-Related Expenditure,Hire Of Rooms,AFC Telford Holdings Limited,06/11/2023,350.00
Education & Skills,Consultancy & Advisory Services,Supplies & Services,Other Grants (Expenses),AFC Telford United Foundation CIC,29/11/2023,"2,702.40"
Neighbourhood & Enforcement Services,Safer & Stronger Communities,Supplies & Services,Other Services,AFC Telford United Foundation CIC,14/11/2023,"1,025.00"
Neighbourhood & Enforcement Services,Safer & Stronger Communities,Supplies & Services,Other Services,AFC Telford United Foundation CIC,22/11/2023,300.00
"Communities, Customer & Commercial Services",Sport & Leisure,Premises-Related Expenditure,R&M WC Planned,Agrovista UK LTD,01/11/2023,"1,197.00"
"Communities, Customer & Commercial Services",Sport & Leisure,Premises-Related Expenditure,R&M WC Planned,Agrovista UK LTD,01/11/2023,700.00
Education & Skills,Skills,Supplies & Services,Exam Fees,AIM Qualifications and Assessment Group,02/11/2023,225.00
Education & Skills,Skills,Supplies & Services,Exam Fees,AIM Qualifications and Assessment Group,27/11/2023,"1,100.00"
Education & Skills,Skills,Supplies & Services,Exam Fees,AIM Qualifications and Assessment Group,27/11/2023,495.00
Education & Skills,Skills,Supplies & Services,Exam Fees,AIM Qualifications and Assessment Group,27/11/2023,112.00
Education & Skills,Skills,Supplies & Services,Exam Fees,AIM Qualifications and Assessment Group,27/11/2023,"2,080.00"
Education & Skills,Skills,Supplies & Services,Exam Fees,AIM Qualifications and Assessment Group,27/11/2023,160.00
Prosperity & Investment,Development Management,Third Party Payments,Contractor Recharge,ALERC ,01/11/2023,250.00
Neighbourhood & Enforcement Services,Strategic Transport & Highway Network Management,Transport-Related Expenditure,Fuel,ALLSTAR BUSINESS SOLUTIONS LTD,03/11/2023,"8,463.11"
Neighbourhood & Enforcement Services,Strategic Transport & Highway Network Management,Transport-Related Expenditure,Fuel,ALLSTAR BUSINESS SOLUTIONS LTD,27/11/2023,"6,258.02"
Neighbourhood & Enforcement Services,"Highways, Engineering & Project Delivery",Supplies & Services,Consultancy,A OW Ltd,21/11/2023,"8,290.96"
Neighbourhood & Enforcement Services,"Highways, Engineering & Project Delivery",Capital Expenditure,Payments to Contractor,A OW Ltd,21/11/2023,"7,300.69"
Neighbourhood & Enforcement Services,"Highways, Engineering & Project Delivery",Capital Expenditure,Payments to Contractor,A OW Ltd,21/11/2023,569.03
Neighbourhood & Enforcement Services,"Highways, Engineering & Project Delivery",Capital Expenditure,External Professional Fees,A OW Ltd,29/11/2023,"4,354.46"
Neighbourhood & Enforcement Services,"Highways, Engineering & Project Delivery",Capital Expenditure,External Professional Fees,A OW Ltd,29/11/2023,294.29
Neighbourhood & Enforcement Services,Waste & Neighbourhood Services,Premises-Related Expenditure,Grounds Maintenance - Other,A OW Ltd,17/11/2023,"1,611.94"
Adult Social Care,My Options,Supplies & Services,Adult Flexi / Day Care,REDACTED PERSONAL INFORMATION,08/11/2023,"1,270.28"
Adult Social Care,My Options,Supplies & Services,Other Travel,REDACTED PERSONAL INFORMATION,08/11/2023,396.00
Adult Social Care,My Options,Supplies & Services,Respite Care,REDACTED PERSONAL INFORMATION,08/11/2023,923.84
"Communities, Customer & Commercial Services",Community Services,Supplies & Services,Grants To Voluntary Organis,Anstice Community Trust,08/11/2023,150.00
"Communities, Customer & Commercial Services",Culture & Events,Supplies & Services,Artistes Fees,Anstice Community Trust,08/11/2023,518.40
Education & Skills,Pupil Support Services,Premises-Related Expenditure,Hire Of Rooms,Anstice Community Trust,08/11/2023,270.00
Policy & Governance,Governance & Legal Services,Premises-Related Expenditure,Leasehold Rents,Anytime Leisure Ltd,20/11/2023,-300.00
Neighbourhood & Enforcement Services,Enforcement,Premises-Related Expenditure,Preventative Maintenance,APT SKIDATA LTD,20/11/2023,"1,290.20"
Neighbourhood & Enforcement Services,Enforcement,Supplies & Services,Security Services,APT SKIDATA LTD,20/11/2023,255.00
"Communities, Customer & Commercial Services",ICT,Premises-Related Expenditure,Intra Committee - Premises,Aqua Cooling Ltd,23/11/2023,"5,531.19"
Prosperity & Investment,BiT,Premises-Related Expenditure,Service Contracts,AQUALOGIC LTD,20/11/2023,145.20
Prosperity & Investment,Regeneration & Investment,Premises-Related Expenditure,Grounds Maintenance - L&CS,Arcox Landscaping of  Telford,28/11/2023,950.00
Prosperity & Investment,Regeneration & Investment,Premises-Related Expenditure,Grounds Maintenance - L&CS,Arcox Landscaping of  Telford,16/11/2023,595.00
Adult Social Care,ASC Prevention & Enablement,Supplies & Services,Equipment - Hire,ARJO UK LTD,17/11/2023,620.00
Prosperity & Investment,BiT,Premises-Related Expenditure,Service Contracts,ARJO UK LTD,21/11/2023,182.00
Prosperity & Investment,BiT,Premises-Related Expenditure,R&M -Buildings DLO Charge,ARJO UK LTD,13/11/2023,314.27
Prosperity & Investment,BiT,Premises-Related Expenditure,R&M -Buildings DLO Charge,ARJO UK LTD,14/11/2023,450.00
Prosperity & Investment,BiT,Premises-Related Expenditure,R&M -Buildings DLO Charge,ARJO UK LTD,14/11/2023,468.27
Children�s Safeguarding & Family Support,"Family Placements, Children in Care, Leaving Care & Emergency Duty Team",Transport-Related Expenditure,Season Tickets,ARRIVA MIDLANDS LTD ,06/11/2023,540.00
Children�s Safeguarding & Family Support,"Family Placements, Children in Care, Leaving Care & Emergency Duty Team",Transport-Related Expenditure,Season Tickets,ARRIVA MIDLANDS LTD ,06/11/2023,200.00
Neighbourhood & Enforcement Services,Strategic Transport & Highway Network Management,Supplies & Services,Concessionary Travel,ARRIVA MIDLANDS LTD ,01/11/2023,"125,515.89"
Neighbourhood & Enforcement Services,Strategic Transport & Highway Network Management,Transport-Related Expenditure,Subsidised Routes,ARRIVA MIDLANDS LTD ,27/11/2023,"19,424.00"
Finance & Human Resources,Revenues,Employees,Staff Training,Art of Brilliance Ltd,13/11/2023,"1,600.00"
Policy & Governance,Organisational Development & Delivery,Employees,Staff Training,Art of Brilliance Ltd,02/11/2023,"1,000.00"
"Communities, Customer & Commercial Services",Customer Relationships & Welfare Services,Supplies & Services,Blue Badge Assessments,Ascenti,08/11/2023,432.00
Children�s Safeguarding & Family Support,Child Protection & Family Support,Supplies & Services,Stamp Duty,ASDA STORES LIMITED,07/11/2023,487.50
Children�s Safeguarding & Family Support,Child Protection & Family Support,Supplies & Services,Stamp Duty,ASDA STORES LIMITED,07/11/2023,487.50
Children�s Safeguarding & Family Support,"Family Placements, Children in Care, Leaving Care & Emergency Duty Team",Supplies & Services,Stamp Duty,ASDA STORES LIMITED,07/11/2023,487.50
Health & Wellbeing,Health Improvement,Supplies & Services,Libraries Book Fund,A & H Library Services Ltd,03/11/2023,212.67
Health & Wellbeing,Health Improvement,Supplies & Services,Libraries Book Fund,A & H Library Services Ltd,03/11/2023,391.06
Health & Wellbeing,Health Improvement,Supplies & Services,Libraries Book Fund,A & H Library Services Ltd,08/11/2023,208.94
Health & Wellbeing,Health Improvement,Supplies & Services,Libraries Book Fund,A & H Library Services Ltd,29/11/2023,154.04
Health & Wellbeing,Health Improvement,Supplies & Services,Libraries Book Fund,A & H Library Services Ltd,29/11/2023,180.41
Health & Wellbeing,Health Improvement,Supplies & Services,Libraries Book Fund,A & H Library Services Ltd,29/11/2023,100.28
Health & Wellbeing,Health Improvement,Supplies & Services,Libraries Book Fund,A & H Library Services Ltd,29/11/2023,200.88
Health & Wellbeing,Health Improvement,Supplies & Services,Libraries Book Fund,A & H Library Services Ltd,21/11/2023,135.78
Health & Wellbeing,Health Improvement,Supplies & Services,Libraries Book Fund,A & H Library Services Ltd,21/11/2023,103.85
Health & Wellbeing,Health Improvement,Supplies & Services,Libraries Book Fund,A & H Library Services Ltd,21/11/2023,320.17
Adult Social Care,My Options,Supplies & Services,Equipment - Purchase,ASLES LTD,08/11/2023,200.00
Adult Social Care,My Options,Supplies & Services,Equipment - Purchase,ASLES LTD,10/11/2023,250.00
"Communities, Customer & Commercial Services",Culture & Events,Supplies & Services,Equipment - Hire,ASLES LTD,08/11/2023,504.50
"Communities, Customer & Commercial Services",Culture & Events,Supplies & Services,Equipment - Purchase,ASLES LTD,13/11/2023,250.00
"Communities, Customer & Commercial Services",Culture & Events,Supplies & Services,Equipment - Purchase,ASLES LTD,08/11/2023,200.00
Prosperity & Investment,BiT,Premises-Related Expenditure,R&M -Buildings DLO Charge,ASLES LTD,14/11/2023,"2,332.00"
Education & Skills,Pupil Support Services,Third Party Payments,DSG - High Needs Block,Aspris Telford School,28/11/2023,"-25,478.66"
Health & Wellbeing,Health Improvement,Supplies & Services,Libraries Book Fund,Associated Security,28/11/2023,150.00
Policy & Governance,Governance & Legal Services,Employees,Course Fees,ASSOCIATION OF ELECTORAL ADMINISTRATORS,29/11/2023,"2,025.00"
Prosperity & Investment,BiT,Premises-Related Expenditure,R&M -Buildings DLO Charge,AST FLOORCOVERINGS LTD,30/11/2023,107.74
Prosperity & Investment,BiT,Premises-Related Expenditure,R&M -Buildings DLO Charge,AST FLOORCOVERINGS LTD,30/11/2023,170.63
Prosperity & Investment,BiT,Premises-Related Expenditure,R&M -Buildings DLO Charge,AST FLOORCOVERINGS LTD,30/11/2023,245.29
Prosperity & Investment,BiT,Premises-Related Expenditure,R&M -Buildings DLO Charge,AST FLOORCOVERINGS LTD,30/11/2023,218.40
Prosperity & Investment,BiT,Premises-Related Expenditure,R&M -Buildings DLO Charge,AST FLOORCOVERINGS LTD,30/11/2023,325.78
Prosperity & Investment,BiT,Premises-Related Expenditure,R&M -Buildings DLO Charge,AST FLOORCOVERINGS LTD,30/11/2023,447.15
Prosperity & Investment,BiT,Premises-Related Expenditure,R&M -Buildings DLO Charge,AST FLOORCOVERINGS LTD,30/11/2023,376.03
Prosperity & Investment,BiT,Premises-Related Expenditure,R&M -Buildings DLO Charge,AST FLOORCOVERINGS LTD,30/11/2023,590.28
Prosperity & Investment,BiT,Premises-Related Expenditure,R&M -Buildings DLO Charge,AST FLOORCOVERINGS LTD,30/11/2023,233.38
Prosperity & Investment,BiT,Premises-Related Expenditure,R&M -Buildings DLO Charge,AST FLOORCOVERINGS LTD,30/11/2023,325.27
Prosperity & Investment,BiT,Premises-Related Expenditure,R&M -Buildings DLO Charge,AST FLOORCOVERINGS LTD,30/11/2023,192.60
Prosperity & Investment,BiT,Premises-Related Expenditure,R&M -Buildings DLO Charge,AST FLOORCOVERINGS LTD,30/11/2023,118.73
Prosperity & Investment,BiT,Premises-Related Expenditure,R&M -Buildings DLO Charge,AST FLOORCOVERINGS LTD,27/11/2023,173.55
Neighbourhood & Enforcement Services,Strategic Transport & Highway Network Management,Supplies & Services,Consultancy,AtkinsR�alis UK Limited,03/11/2023,"6,900.00"
Prosperity & Investment,Development Management,Supplies & Services,Consultancy,AtkinsR�alis UK Limited,28/11/2023,"6,015.00"
Prosperity & Investment,Regeneration & Investment,Capital Expenditure,External Professional Fees,AtkinsR�alis UK Limited,15/11/2023,"12,910.00"
"Communities, Customer & Commercial Services",Sport & Leisure,Supplies & Services,Fees,Austin Mix Ltd,17/11/2023,950.00
"Communities, Customer & Commercial Services",Sport & Leisure,Supplies & Services,Fees,Austin Mix Ltd,17/11/2023,575.00
Neighbourhood & Enforcement Services,Enforcement,Supplies & Services,Sub Contractors,Austin Mix Ltd,16/11/2023,325.00
Prosperity & Investment,Regeneration & Investment,Capital Expenditure,Marketing / Advertising,Austin Mix Ltd,09/11/2023,"6,250.00"
Prosperity & Investment,Regeneration & Investment,Capital Expenditure,Marketing / Advertising,Austin Mix Ltd,09/11/2023,"3,564.15"
Neighbourhood & Enforcement Services,Strategic Transport & Highway Network Management,Transport-Related Expenditure,Insurance Excess,Autocraft Express Shrewsbury Ltd,27/11/2023,"1,126.73"
"Communities, Customer & Commercial Services",ICT,Premises-Related Expenditure,R&M -Buildings DLO Charge,AVK/SEG  Ltd,28/11/2023,368.42
Education & Skills,SEND (0-25),Supplies & Services,Aids & Appliances,BACK CARE SOLUTIONS LTD,06/11/2023,136.95
"Communities, Customer & Commercial Services",Sport & Leisure,Supplies & Services,Equipment - Purchase,Badcock Services,24/11/2023,"1,827.00"
Education & Skills,Education & Skills,Capital Expenditure,Payments to Contractor,B Heating Services Ltd,08/11/2023,"3,000.00"
Education & Skills,Education & Skills,Capital Expenditure,Payments to Contractor,B Heating Services Ltd,08/11/2023,"21,969.87"
Neighbourhood & Enforcement Services,"Highways, Engineering & Project Delivery",Third Party Payments,Highways Contract - BBLP,Balfour Beatty Civils Limited,24/11/2023,"742,865.68"
Neighbourhood & Enforcement Services,Strategic Transport & Highway Network Management,Supplies & Services,Concessionary Travel,Banga Travel,17/11/2023,"2,214.00"
Adult Social Care,Prevention & Independence - Older Adults & Disability,Transfer Payments,Direct Payments - Cash Balances Returned,Barclays Bank T&W A & D Client Account,24/11/2023,"1,926.88"
Neighbourhood & Enforcement Services,Safer & Stronger Communities,Premises-Related Expenditure,General Rents,B West Midlands,30/11/2023,700.00
Prosperity & Investment,Regeneration & Investment,Capital Expenditure,Payments to Contractor,BATTLEFIELD LAND SURVEYS LTD,06/11/2023,"2,600.00"
Prosperity & Investment,Regeneration & Investment,Capital Expenditure,Payments to Contractor,BATTLEFIELD LAND SURVEYS LTD,24/11/2023,750.00
Children�s Safeguarding & Family Support,"Family Placements, Children in Care, Leaving Care & Emergency Duty Team",Supplies & Services,Advertising,Bauer Radio Ltd,21/11/2023,873.35
Children�s Safeguarding & Family Support,"Family Placements, Children in Care, Leaving Care & Emergency Duty Team",Supplies & Services,Advertising,Bauer Radio Ltd,21/11/2023,"1,165.67"
Children�s Safeguarding & Family Support,"Family Placements, Children in Care, Leaving Care & Emergency Duty Team",Supplies & Services,Advertising,Bauer Radio Ltd,06/11/2023,983.70
Children�s Safeguarding & Family Support,"Family Placements, Children in Care, Leaving Care & Emergency Duty Team",Supplies & Services,Advertising,Bauer Radio Ltd,06/11/2023,"1,161.58"
"Housing, Employment & Infrastructure",Inward Investment & Business Support,Supplies & Services,Consultancy,Be Bold Media Limited,08/11/2023,"5,145.00"
"Housing, Employment & Infrastructure",Inward Investment & Business Support,Employees,Training Expenses,Be Bold Media Limited,08/11/2023,"1,500.00"
Education & Skills,SEND (0-25),Third Party Payments,DSG - High Needs Block,BEDSTONE EDUCATIONAL TRUST LIMITED,20/11/2023,"9,320.00"
Prosperity & Investment,BiT,Premises-Related Expenditure,R&M -Buildings DLO Charge,Belvidere Lifts Ltd,20/11/2023,"3,624.68"
Prosperity & Investment,BiT,Premises-Related Expenditure,R&M -Buildings DLO Charge,Belvidere Lifts Ltd,01/11/2023,160.00
Prosperity & Investment,BiT,Premises-Related Expenditure,R&M -Buildings DLO Charge,Belvidere Lifts Ltd,27/11/2023,470.00
Prosperity & Investment,Regeneration & Investment,Premises-Related Expenditure,R&M -Building Other,Belvidere Lifts Ltd,15/11/2023,210.00
Adult Social Care,My Options,Employees,Agency Supply Costs,BERWICK CARE EQUIPMENT LTD,28/11/2023,147.98
Adult Social Care,My Options,Premises-Related Expenditure,Clean Mats & Toilet Requisites,BERWICK CARE EQUIPMENT LTD,09/11/2023,195.40
Adult Social Care,My Options,Supplies & Services,Equipment - Purchase,BERWICK CARE EQUIPMENT LTD,28/11/2023,172.55
Education & Skills,SEND (0-25),Third Party Payments,DSG - High Needs Block,Bettws Lifehouse Ltd,20/11/2023,"14,666.67"
Education & Skills,SEND (0-25),Third Party Payments,DSG - High Needs Block,Bettws Lifehouse Ltd,20/11/2023,"10,000.00"
Education & Skills,SEND (0-25),Third Party Payments,DSG - High Needs Block,Bettws Lifehouse Ltd,20/11/2023,"7,500.00"
Education & Skills,SEND (0-25),Third Party Payments,DSG - High Needs Block,Bettws Lifehouse Ltd,20/11/2023,"7,833.33"
"Communities, Customer & Commercial Services",Sport & Leisure,Premises-Related Expenditure,Clean Mats & Toilet Requisites,Border Janitorial Supplies Limited,01/11/2023,205.44
"Communities, Customer & Commercial Services",Sport & Leisure,Premises-Related Expenditure,Clean Mats & Toilet Requisites,Border Janitorial Supplies Limited,01/11/2023,168.27
"Communities, Customer & Commercial Services",Sport & Leisure,Premises-Related Expenditure,Clean Mats & Toilet Requisites,Border Janitorial Supplies Limited,01/11/2023,176.48
"Communities, Customer & Commercial Services",Sport & Leisure,Premises-Related Expenditure,Clean Mats & Toilet Requisites,Border Janitorial Supplies Limited,01/11/2023,738.57
"Communities, Customer & Commercial Services",Sport & Leisure,Premises-Related Expenditure,Clean Mats & Toilet Requisites,Border Janitorial Supplies Limited,01/11/2023,326.31
"Communities, Customer & Commercial Services",Sport & Leisure,Premises-Related Expenditure,Clean Mats & Toilet Requisites,Border Janitorial Supplies Limited,01/11/2023,171.36
"Communities, Customer & Commercial Services",Sport & Leisure,Premises-Related Expenditure,Clean Mats & Toilet Requisites,Border Janitorial Supplies Limited,01/11/2023,352.78
"Communities, Customer & Commercial Services",Sport & Leisure,Premises-Related Expenditure,Clean Mats & Toilet Requisites,Border Janitorial Supplies Limited,01/11/2023,168.15
"Communities, Customer & Commercial Services",Sport & Leisure,Premises-Related Expenditure,Clean Mats & Toilet Requisites,Border Janitorial Supplies Limited,15/11/2023,100.08
"Communities, Customer & Commercial Services",Sport & Leisure,Premises-Related Expenditure,Clean Mats & Toilet Requisites,Border Janitorial Supplies Limited,15/11/2023,291.53
"Communities, Customer & Commercial Services",Sport & Leisure,Premises-Related Expenditure,Clean Mats & Toilet Requisites,Border Janitorial Supplies Limited,15/11/2023,102.79
"Communities, Customer & Commercial Services",Sport & Leisure,Premises-Related Expenditure,Clean Mats & Toilet Requisites,Border Janitorial Supplies Limited,27/11/2023,176.23
"Communities, Customer & Commercial Services",Sport & Leisure,Premises-Related Expenditure,Clean Mats & Toilet Requisites,Border Janitorial Supplies Limited,27/11/2023,158.57
"Communities, Customer & Commercial Services",Sport & Leisure,Premises-Related Expenditure,Clean Mats & Toilet Requisites,Border Janitorial Supplies Limited,13/11/2023,127.74
"Communities, Customer & Commercial Services",Sport & Leisure,Premises-Related Expenditure,Clean Mats & Toilet Requisites,Border Janitorial Supplies Limited,13/11/2023,267.58
"Communities, Customer & Commercial Services",Sport & Leisure,Premises-Related Expenditure,Clean Mats & Toilet Requisites,Border Janitorial Supplies Limited,13/11/2023,273.93
"Communities, Customer & Commercial Services",Sport & Leisure,Premises-Related Expenditure,Clean Mats & Toilet Requisites,Border Janitorial Supplies Limited,14/11/2023,139.91
"Communities, Customer & Commercial Services",Sport & Leisure,Premises-Related Expenditure,Clean Mats & Toilet Requisites,Border Janitorial Supplies Limited,28/11/2023,201.42
"Communities, Customer & Commercial Services",Sport & Leisure,Premises-Related Expenditure,Clean Mats & Toilet Requisites,Border Janitorial Supplies Limited,01/11/2023,102.45
"Communities, Customer & Commercial Services",Sport & Leisure,Third Party Payments,Pre School Playgroups,Border Janitorial Supplies Limited,27/11/2023,542.49
"Communities, Customer & Commercial Services",Sport & Leisure,Premises-Related Expenditure,Clean Mats & Toilet Requisites,Border Janitorial Supplies Limited,27/11/2023,160.63
"Communities, Customer & Commercial Services",Sport & Leisure,Premises-Related Expenditure,Clean Mats & Toilet Requisites,Border Janitorial Supplies Limited,27/11/2023,129.36
"Communities, Customer & Commercial Services",Sport & Leisure,Premises-Related Expenditure,Clean Mats & Toilet Requisites,Border Janitorial Supplies Limited,13/11/2023,157.36
"Communities, Customer & Commercial Services",Sport & Leisure,Premises-Related Expenditure,Clean Mats & Toilet Requisites,Border Janitorial Supplies Limited,13/11/2023,163.32
"Communities, Customer & Commercial Services",Sport & Leisure,Premises-Related Expenditure,Clean Mats & Toilet Requisites,Border Janitorial Supplies Limited,13/11/2023,211.10
"Communities, Customer & Commercial Services",Sport & Leisure,Premises-Related Expenditure,Clean Mats & Toilet Requisites,Border Janitorial Supplies Limited,02/11/2023,255.03
"Communities, Customer & Commercial Services",Sport & Leisure,Premises-Related Expenditure,Clean Mats & Toilet Requisites,Border Janitorial Supplies Limited,14/11/2023,226.37
"Communities, Customer & Commercial Services",Sport & Leisure,Premises-Related Expenditure,Clean Mats & Toilet Requisites,Border Janitorial Supplies Limited,14/11/2023,219.25
"Communities, Customer & Commercial Services",Sport & Leisure,Premises-Related Expenditure,Clean Mats & Toilet Requisites,Border Janitorial Supplies Limited,14/11/2023,117.09
"Communities, Customer & Commercial Services",Sport & Leisure,Premises-Related Expenditure,Clean Mats & Toilet Requisites,Border Janitorial Supplies Limited,07/11/2023,259.74
"Communities, Customer & Commercial Services",Sport & Leisure,Premises-Related Expenditure,Clean Mats & Toilet Requisites,Border Janitorial Supplies Limited,14/11/2023,221.41
"Communities, Customer & Commercial Services",Sport & Leisure,Premises-Related Expenditure,Clean Mats & Toilet Requisites,Border Janitorial Supplies Limited,06/11/2023,118.08
"Communities, Customer & Commercial Services",Sport & Leisure,Premises-Related Expenditure,Clean Mats & Toilet Requisites,Border Janitorial Supplies Limited,06/11/2023,201.57
"Communities, Customer & Commercial Services",Sport & Leisure,Premises-Related Expenditure,Clean Mats & Toilet Requisites,Border Janitorial Supplies Limited,09/11/2023,138.41
"Communities, Customer & Commercial Services",Sport & Leisure,Premises-Related Expenditure,Clean Mats & Toilet Requisites,Border Janitorial Supplies Limited,23/11/2023,112.88
"Communities, Customer & Commercial Services",Sport & Leisure,Premises-Related Expenditure,Clean Mats & Toilet Requisites,Border Janitorial Supplies Limited,23/11/2023,416.79
"Communities, Customer & Commercial Services",Sport & Leisure,Premises-Related Expenditure,Clean Mats & Toilet Requisites,Border Janitorial Supplies Limited,23/11/2023,131.94
"Communities, Customer & Commercial Services",Sport & Leisure,Premises-Related Expenditure,Clean Mats & Toilet Requisites,Border Janitorial Supplies Limited,23/11/2023,104.07
"Communities, Customer & Commercial Services",Sport & Leisure,Premises-Related Expenditure,Clean Mats & Toilet Requisites,Border Janitorial Supplies Limited,23/11/2023,403.45
"Communities, Customer & Commercial Services",Sport & Leisure,Premises-Related Expenditure,Clean Mats & Toilet Requisites,Border Janitorial Supplies Limited,16/11/2023,130.60
"Communities, Customer & Commercial Services",Sport & Leisure,Premises-Related Expenditure,Clean Mats & Toilet Requisites,Border Janitorial Supplies Limited,16/11/2023,222.57
"Communities, Customer & Commercial Services",Sport & Leisure,Premises-Related Expenditure,Clean Mats & Toilet Requisites,Border Janitorial Supplies Limited,16/11/2023,230.67
"Communities, Customer & Commercial Services",Sport & Leisure,Premises-Related Expenditure,Clean Mats & Toilet Requisites,Border Janitorial Supplies Limited,16/11/2023,237.13
"Communities, Customer & Commercial Services",Sport & Leisure,Premises-Related Expenditure,Clean Mats & Toilet Requisites,Border Janitorial Supplies Limited,22/11/2023,189.92
"Communities, Customer & Commercial Services",Sport & Leisure,Premises-Related Expenditure,Clean Mats & Toilet Requisites,Border Janitorial Supplies Limited,21/11/2023,122.85
"Communities, Customer & Commercial Services",Sport & Leisure,Premises-Related Expenditure,Clean Mats & Toilet Requisites,Border Janitorial Supplies Limited,23/11/2023,450.50
"Communities, Customer & Commercial Services",Sport & Leisure,Supplies & Services,Chemicals/Cleaning Products,Border Janitorial Supplies Limited,23/11/2023,211.89
Prosperity & Investment,BiT,Premises-Related Expenditure,Clean Mats & Toilet Requisites,Border Janitorial Supplies Limited,16/11/2023,123.75
Prosperity & Investment,BiT,Supplies & Services,Chemicals/Cleaning Products,Border Janitorial Supplies Limited,22/11/2023,115.11
Prosperity & Investment,BiT,Supplies & Services,Chemicals/Cleaning Products,Border Janitorial Supplies Limited,22/11/2023,161.94
Neighbourhood & Enforcement Services,Safer & Stronger Communities,Supplies & Services,Other Services,BOURNVILLE VILLAGE TRUST,21/11/2023,200.00
Prosperity & Investment,BiT,Premises-Related Expenditure,R&M -Buildings DLO Charge,B INDUSTRIAL SERVICES,27/11/2023,243.48
Prosperity & Investment,BiT,Premises-Related Expenditure,R&M -Buildings DLO Charge,B INDUSTRIAL SERVICES,27/11/2023,218.78
Prosperity & Investment,BiT,Premises-Related Expenditure,R&M -Buildings DLO Charge,B INDUSTRIAL SERVICES,27/11/2023,270.81
Prosperity & Investment,BiT,Premises-Related Expenditure,R&M -Buildings DLO Charge,B INDUSTRIAL SERVICES,27/11/2023,135.75
Prosperity & Investment,BiT,Premises-Related Expenditure,R&M -Buildings DLO Charge,B INDUSTRIAL SERVICES,01/11/2023,205.64
Prosperity & Investment,BiT,Premises-Related Expenditure,R&M -Buildings DLO Charge,B INDUSTRIAL SERVICES,01/11/2023,128.57
Prosperity & Investment,BiT,Premises-Related Expenditure,R&M -Buildings DLO Charge,B INDUSTRIAL SERVICES,02/11/2023,122.18
Prosperity & Investment,BiT,Premises-Related Expenditure,R&M -Buildings DLO Charge,B INDUSTRIAL SERVICES,15/11/2023,220.03
Prosperity & Investment,BiT,Premises-Related Expenditure,R&M -Buildings DLO Charge,B INDUSTRIAL SERVICES,15/11/2023,165.97
Prosperity & Investment,BiT,Premises-Related Expenditure,R&M -Buildings DLO Charge,B INDUSTRIAL SERVICES,08/11/2023,172.50
Prosperity & Investment,BiT,Premises-Related Expenditure,R&M -Buildings DLO Charge,B INDUSTRIAL SERVICES,08/11/2023,187.97
Prosperity & Investment,BiT,Premises-Related Expenditure,R&M -Buildings DLO Charge,B INDUSTRIAL SERVICES,08/11/2023,137.00
Prosperity & Investment,BiT,Premises-Related Expenditure,R&M -Buildings DLO Charge,B INDUSTRIAL SERVICES,08/11/2023,153.52
Prosperity & Investment,BiT,Premises-Related Expenditure,R&M -Buildings DLO Charge,B INDUSTRIAL SERVICES,08/11/2023,206.34
Prosperity & Investment,BiT,Premises-Related Expenditure,R&M -Buildings DLO Charge,B INDUSTRIAL SERVICES,27/11/2023,221.90
Prosperity & Investment,BiT,Premises-Related Expenditure,R&M -Buildings DLO Charge,B INDUSTRIAL SERVICES,27/11/2023,238.75
Prosperity & Investment,BiT,Premises-Related Expenditure,R&M -Buildings DLO Charge,B INDUSTRIAL SERVICES,27/11/2023,179.19
Prosperity & Investment,BiT,Premises-Related Expenditure,R&M -Buildings DLO Charge,B INDUSTRIAL SERVICES,28/11/2023,209.26
Prosperity & Investment,BiT,Premises-Related Expenditure,R&M -Buildings DLO Charge,B INDUSTRIAL SERVICES,28/11/2023,276.15
Prosperity & Investment,BiT,Premises-Related Expenditure,Service Contracts,B INDUSTRIAL SERVICES,01/11/2023,193.00
"Communities, Customer & Commercial Services",ICT,Capital Expenditure,Payments to Contractor,B Hub Limited,02/11/2023,"11,000.00"
"Communities, Customer & Commercial Services",ICT,Capital Expenditure,Payments to Contractor,B Hub Limited,02/11/2023,"2,164.05"
"Communities, Customer & Commercial Services",ICT,Capital Expenditure,Payments to Contractor,B Hub Limited,02/11/2023,"8,658.00"
"Communities, Customer & Commercial Services",ICT,Capital Expenditure,Payments to Contractor,B Hub Limited,02/11/2023,"5,500.00"
"Communities, Customer & Commercial Services",Sport & Leisure,Supplies & Services,Chemicals/Cleaning Products,BRENNTAG UK LIMITED,13/11/2023,301.40
"Communities, Customer & Commercial Services",Sport & Leisure,Supplies & Services,Chemicals/Cleaning Products,BRENNTAG UK LIMITED,13/11/2023,"1,290.00"
"Communities, Customer & Commercial Services",Sport & Leisure,Supplies & Services,Chemicals/Cleaning Products,BRENNTAG UK LIMITED,07/11/2023,"3,870.00"
Education & Skills,SEND (0-25),Third Party Payments,DSG - High Needs Block,Brightstar Futures Ltd,16/11/2023,900.00
Prosperity & Investment,BiT,Premises-Related Expenditure,Electricity,BRITISH GAS BUSINESS ,16/11/2023,"1,192.10"
Prosperity & Investment,BiT,Premises-Related Expenditure,Electricity,BRITISH GAS BUSINESS ,16/11/2023,157.95
Prosperity & Investment,BiT,Premises-Related Expenditure,Gas,BRITISH GAS BUSINESS ,27/11/2023,345.14
Prosperity & Investment,BiT,Premises-Related Expenditure,Gas,BRITISH GAS BUSINESS ,16/11/2023,124.27
Prosperity & Investment,Regeneration & Investment,Premises-Related Expenditure,Water Rates,BRITISH GAS BUSINESS ,22/11/2023,389.32
Neighbourhood & Enforcement Services,Enforcement,Supplies & Services,Subscriptions,BRITISH PARKING ASSOCIATION,20/11/2023,720.00
Prosperity & Investment,Regeneration & Investment,Supplies & Services,Stationery,BRITISH PARKING ASSOCIATION,29/11/2023,330.00
"Communities, Customer & Commercial Services",ICT,Supplies & Services,Telephones,BRITISH TELECOMMUNICATIONS PLC ,15/11/2023,"6,888.33"
Adult Social Care,"Commissioning, Procurement & Brokerage",Supplies & Services,Other Grants (Expenses),B Care LTD,21/11/2023,"8,620.95"
Children�s Safeguarding & Family Support,Family Connect & Childrens Centres,Premises-Related Expenditure,Hire Of Rooms,Brookside Central,09/11/2023,120.00
"Communities, Customer & Commercial Services",Community Services,Supplies & Services,Grants To Voluntary Organis,Brookside Central,30/11/2023,"1,250.80"
Education & Skills,Skills,Premises-Related Expenditure,Hire Of Rooms,Brookside Central,27/11/2023,476.00
Education & Skills,Skills,Premises-Related Expenditure,Hire Of Rooms,Brookside Central,27/11/2023,120.00
Health & Wellbeing,Consultant in Public Health,Supplies & Services,Sub Contractors,Buckinghamshire Healthcare NHS Trust,09/11/2023,131.00
"Communities, Customer & Commercial Services",Sport & Leisure,Supplies & Services,Sub Contractors,BUSINESS WATCH GUARDING LIMITED,09/11/2023,574.06
Prosperity & Investment,BiT,Supplies & Services,Security Services,BUSINESS WATCH GUARDING LIMITED,27/11/2023,477.84
Prosperity & Investment,BiT,Supplies & Services,Security Services,BUSINESS WATCH GUARDING LIMITED,16/11/2023,977.05
Prosperity & Investment,BiT,Premises-Related Expenditure,R&M -Buildings DLO Charge,BUSINESS WATCH GUARDING LIMITED,27/11/2023,292.64
Prosperity & Investment,BiT,Premises-Related Expenditure,R&M -Buildings DLO Charge,BUSINESS WATCH GUARDING LIMITED,08/11/2023,283.20
Prosperity & Investment,Regeneration & Investment,Supplies & Services,Security Services,BUSINESS WATCH GUARDING LIMITED,16/11/2023,530.20
Prosperity & Investment,Regeneration & Investment,Supplies & Services,Security Services,BUSINESS WATCH GUARDING LIMITED,06/11/2023,495.04
Prosperity & Investment,Regeneration & Investment,Supplies & Services,Security Services,BUSINESS WATCH GUARDING LIMITED,06/11/2023,259.38
Prosperity & Investment,Regeneration & Investment,Premises-Related Expenditure,Contract Cleaning,BUSY BEE CLEANING LTD,16/11/2023,410.80
Prosperity & Investment,Regeneration & Investment,Premises-Related Expenditure,Contract Cleaning,BUSY BEE CLEANING LTD,16/11/2023,485.67
Prosperity & Investment,Regeneration & Investment,Premises-Related Expenditure,Window Cleaning,BUSY BEE CLEANING LTD,20/11/2023,446.74
Prosperity & Investment,Regeneration & Investment,Premises-Related Expenditure,Contract Cleaning,BUSY BEE CLEANING LTD,20/11/2023,106.00
Neighbourhood & Enforcement Services,Public Protection,Supplies & Services,Sampling & Analysis,BWY Canine Limited,15/11/2023,400.00
Prosperity & Investment,BiT,Premises-Related Expenditure,R&M -Buildings DLO Charge,C & S Carpet & Flooring,01/11/2023,167.86
Prosperity & Investment,BiT,Premises-Related Expenditure,R&M -Buildings DLO Charge,C & S Carpet & Flooring,01/11/2023,393.27
Prosperity & Investment,BiT,Premises-Related Expenditure,R&M -Buildings DLO Charge,C & S Carpet & Flooring,01/11/2023,326.12
Prosperity & Investment,BiT,Premises-Related Expenditure,R&M -Buildings DLO Charge,C & S Carpet & Flooring,01/11/2023,158.26
Prosperity & Investment,BiT,Premises-Related Expenditure,R&M -Buildings DLO Charge,C & S Carpet & Flooring,08/11/2023,522.76
Prosperity & Investment,BiT,Premises-Related Expenditure,R&M -Buildings DLO Charge,C & S Carpet & Flooring,08/11/2023,211.02
Prosperity & Investment,BiT,Premises-Related Expenditure,R&M -Buildings DLO Charge,C & S Carpet & Flooring,08/11/2023,417.25
Prosperity & Investment,BiT,Premises-Related Expenditure,R&M -Buildings DLO Charge,C & S Carpet & Flooring,08/11/2023,191.84
Prosperity & Investment,BiT,Premises-Related Expenditure,R&M -Buildings DLO Charge,C & S Carpet & Flooring,08/11/2023,129.49
Prosperity & Investment,BiT,Premises-Related Expenditure,R&M -Buildings DLO Charge,C & S Carpet & Flooring,30/11/2023,316.53
Prosperity & Investment,BiT,Premises-Related Expenditure,R&M -Buildings DLO Charge,C & S Carpet & Flooring,30/11/2023,249.39
Prosperity & Investment,BiT,Premises-Related Expenditure,R&M -Buildings DLO Charge,C & S Carpet & Flooring,30/11/2023,532.34
Prosperity & Investment,BiT,Premises-Related Expenditure,R&M -Buildings DLO Charge,C & S Carpet & Flooring,30/11/2023,441.23
Prosperity & Investment,BiT,Premises-Related Expenditure,R&M -Buildings DLO Charge,C & S Carpet & Flooring,30/11/2023,258.98
"Communities, Customer & Commercial Services",Sport & Leisure,Supplies & Services,Crockery/Hardware/Light Equip,CALTEL CATERING & LAUNDRY EQUIPMENT LLP,28/11/2023,504.13
"Communities, Customer & Commercial Services",Sport & Leisure,Supplies & Services,Equipment - Purchase,CALTEL CATERING & LAUNDRY EQUIPMENT LLP,16/11/2023,790.00
Prosperity & Investment,BiT,Premises-Related Expenditure,R&M -Buildings DLO Charge,CALTEL CATERING & LAUNDRY EQUIPMENT LLP,01/11/2023,"3,360.96"
Adult Social Care,Prevention & Independence - Older Adults & Disability,Supplies & Services,Aids & Appliances,C Care Global Limited,23/11/2023,207.00
Neighbourhood & Enforcement Services,Strategic Transport & Highway Network Management,Supplies & Services,Consultancy,C West Ltd,01/11/2023,"1,694.00"
Neighbourhood & Enforcement Services,Strategic Transport & Highway Network Management,Supplies & Services,Consultancy,C West Ltd,06/11/2023,"1,694.00"
Neighbourhood & Enforcement Services,Strategic Transport & Highway Network Management,Supplies & Services,Consultancy,C West Ltd,14/11/2023,"1,694.00"
Adult Social Care,ASC Prevention & Enablement,Transport-Related Expenditure,Taxi Costs,C Ambulance,17/11/2023,187.25
Adult Social Care,My Options,Supplies & Services,Equipment - Hire,C WASTE DISPOSAL SERV LTD,09/11/2023,215.25
Education & Skills,Skills,Supplies & Services,Computer Software (Maint),CASCAID LTD,15/11/2023,"7,682.90"
Education & Skills,Consultancy & Advisory Services,Supplies & Services,Other Grants (Expenses),C Cordingley Hall,29/11/2023,"1,750.00"
Education & Skills,Consultancy & Advisory Services,Supplies & Services,Other Grants (Expenses),C Cordingley Hall,29/11/2023,"2,400.00"
"Housing, Employment & Infrastructure",Inward Investment & Business Support,Supplies & Services,Marketing & Publicity,Castlepoint WM Limited,03/11/2023,410.00
Education & Skills,Consultancy & Advisory Services,Supplies & Services,Other Grants (Expenses),CAT - Telford Priory School,02/11/2023,"5,500.00"
Education & Skills,Consultancy & Advisory Services,Supplies & Services,Other Grants (Expenses),CAT - Telford Priory School,29/11/2023,"2,812.50"
Education & Skills,Pupil Support Services,Third Party Payments,Misc. Education Payments to T&W Schools (incl Academies),CAT - Telford Priory School,16/11/2023,"6,143.18"
Education & Skills,Pupil Support Services,Third Party Payments,Misc. Education Payments to T&W Schools (incl Academies),CAT - Telford Priory School,16/11/2023,881.53
Education & Skills,SEND (0-25),Third Party Payments,DSG - High Needs Block,CAT - Telford Priory School,06/11/2023,"6,892.02"
Education & Skills,SEND (0-25),Third Party Payments,DSG - High Needs Block,CAT - Telford Priory School,06/11/2023,"6,892.02"
Education & Skills,SEND (0-25),Third Party Payments,DSG - High Needs Block,CAT - Telford Priory School,21/11/2023,"6,892.02"
Adult Social Care,Prevention & Independence - Older Adults & Disability,Supplies & Services,Comp Hardware (Purch / Hire),CCS MEDIA LIMITED,14/11/2023,135.00
Children�s Safeguarding & Family Support,Child Protection & Family Support,Supplies & Services,Comp Hardware (Purch / Hire),CCS MEDIA LIMITED,14/11/2023,126.00
Children�s Safeguarding & Family Support,Family Connect & Childrens Centres,Supplies & Services,Computer Consumables,CCS MEDIA LIMITED,16/11/2023,108.00
"Communities, Customer & Commercial Services",ICT,Supplies & Services,Comp Hardware (Purch / Hire),CCS MEDIA LIMITED,17/11/2023,"1,924.87"
"Communities, Customer & Commercial Services",ICT,Supplies & Services,Comp Software (Purch / Hire),CCS MEDIA LIMITED,20/11/2023,"2,989.00"
"Communities, Customer & Commercial Services",ICT,Supplies & Services,Comp Hardware (Purch / Hire),CCS MEDIA LIMITED,20/11/2023,850.00
"Communities, Customer & Commercial Services",ICT,Supplies & Services,Comp Hardware (Purch / Hire),CCS MEDIA LIMITED,17/11/2023,"1,085.00"
"Communities, Customer & Commercial Services",ICT,Supplies & Services,Comp Hardware (Purch / Hire),CCS MEDIA LIMITED,17/11/2023,"3,486.00"
"Communities, Customer & Commercial Services",ICT,Supplies & Services,Comp Hardware (Purch / Hire),CCS MEDIA LIMITED,30/11/2023,175.00
"Communities, Customer & Commercial Services",ICT,Supplies & Services,Comp Hardware (Purch / Hire),CCS MEDIA LIMITED,09/11/2023,"4,025.00"
"Communities, Customer & Commercial Services",ICT,Supplies & Services,Comp Hardware (Purch / Hire),CCS MEDIA LIMITED,09/11/2023,142.00
"Communities, Customer & Commercial Services",ICT,Capital Expenditure,Computer Hardware,CCS MEDIA LIMITED,07/11/2023,"40,820.50"
"Communities, Customer & Commercial Services",ICT,Capital Expenditure,Computer Hardware,CCS MEDIA LIMITED,06/11/2023,"11,350.00"
"Communities, Customer & Commercial Services",ICT,Capital Expenditure,Computer Hardware,CCS MEDIA LIMITED,16/11/2023,225.00
"Communities, Customer & Commercial Services",ICT,Capital Expenditure,Computer Hardware,CCS MEDIA LIMITED,16/11/2023,"54,905.00"
"Communities, Customer & Commercial Services",ICT,Capital Expenditure,Computer Hardware,CCS MEDIA LIMITED,30/11/2023,626.56
Prosperity & Investment,Development Management,Supplies & Services,Comp Software (Purch / Hire),CCS MEDIA LIMITED,03/11/2023,625.00
Education & Skills,Consultancy & Advisory Services,Supplies & Services,Other Grants (Expenses),CEIA,29/11/2023,"3,030.42"
Policy & Governance,Governance & Legal Services,Employees,Staff Training,Centre for Governance and Scrutiny,20/11/2023,"1,000.00"
"Communities, Customer & Commercial Services",Sport & Leisure,Transport-Related Expenditure,Fuel,Certas,07/11/2023,"1,481.21"
"Communities, Customer & Commercial Services",ICT,Supplies & Services,Comp Software (Purch / Hire),Certero Limited,29/11/2023,"7,425.00"
"Housing, Employment & Infrastructure",Inward Investment & Business Support,Supplies & Services,Consultancy,CGR Business Solutions Limited,09/11/2023,250.00
"Housing, Employment & Infrastructure",Inward Investment & Business Support,Supplies & Services,Consultancy,CGR Business Solutions Limited,09/11/2023,656.25
"Housing, Employment & Infrastructure",Inward Investment & Business Support,Supplies & Services,Consultancy,CGR Business Solutions Limited,06/11/2023,250.00
Prosperity & Investment,BiT,Premises-Related Expenditure,Trade Refuse,C DOCUMENT,01/11/2023,207.00
Prosperity & Investment,BiT,Premises-Related Expenditure,Trade Refuse,C DOCUMENT,01/11/2023,198.00
Prosperity & Investment,BiT,Premises-Related Expenditure,Trade Refuse,C DOCUMENT,01/11/2023,198.00
Education & Skills,SEND (0-25),Third Party Payments,DSG - High Needs Block,Chalkline Education & Support Ltd,06/11/2023,500.00
Education & Skills,SEND (0-25),Third Party Payments,DSG - High Needs Block,Chalkline Education & Support Ltd,06/11/2023,500.00
Education & Skills,SEND (0-25),Third Party Payments,DSG - High Needs Block,Chalkline Education & Support Ltd,06/11/2023,500.00
Education & Skills,SEND (0-25),Third Party Payments,DSG - High Needs Block,Chalkline Education & Support Ltd,06/11/2023,500.00
Education & Skills,SEND (0-25),Third Party Payments,DSG - High Needs Block,Chalkline Education & Support Ltd,20/11/2023,500.00
Education & Skills,SEND (0-25),Third Party Payments,DSG - High Needs Block,Chalkline Education & Support Ltd,20/11/2023,500.00
Education & Skills,SEND (0-25),Third Party Payments,DSG - High Needs Block,Chalkline Education & Support Ltd,29/11/2023,500.00
Education & Skills,SEND (0-25),Third Party Payments,DSG - High Needs Block,Chalkline Education & Support Ltd,29/11/2023,400.00
"Communities, Customer & Commercial Services",Community Services,Supplies & Services,Grants To Voluntary Organis,Challenging Perceptions CIC,01/11/2023,500.00
Children�s Safeguarding & Family Support,"Family Placements, Children in Care, Leaving Care & Emergency Duty Team",Supplies & Services,Marketing & Publicity,Chapelcroft Ltd,21/11/2023,728.00
"Communities, Customer & Commercial Services",Sport & Leisure,Transport-Related Expenditure,Servicing & Repairs V&P,C AG & Turf,29/11/2023,617.57
"Communities, Customer & Commercial Services",Sport & Leisure,Transport-Related Expenditure,Servicing & Repairs V&P,C AG & Turf,29/11/2023,240.58
"Communities, Customer & Commercial Services",Sport & Leisure,Transport-Related Expenditure,Servicing & Repairs V&P,C AG & Turf,29/11/2023,243.14
"Communities, Customer & Commercial Services",Sport & Leisure,Transport-Related Expenditure,Servicing & Repairs V&P,C AG & Turf,29/11/2023,"1,965.70"
"Communities, Customer & Commercial Services",Sport & Leisure,Transport-Related Expenditure,Servicing & Repairs V&P,C AG & Turf,29/11/2023,872.95
"Communities, Customer & Commercial Services",Sport & Leisure,Supplies & Services,Sub Contractors,C AG & Turf,17/11/2023,161.30
"Communities, Customer & Commercial Services",Sport & Leisure,Transport-Related Expenditure,District Council Vehicles,C AG & Turf,27/11/2023,233.55
"Communities, Customer & Commercial Services",Sport & Leisure,Transport-Related Expenditure,District Council Vehicles,C AG & Turf,27/11/2023,239.85
"Communities, Customer & Commercial Services",ICT,Premises-Related Expenditure,R&M -Building Other,Charlton Academy,21/11/2023,"4,070.74"
"Communities, Customer & Commercial Services",ICT,Premises-Related Expenditure,R&M -Building Other,Charlton Academy,28/11/2023,"3,703.45"
Education & Skills,Consultancy & Advisory Services,Supplies & Services,Other Grants (Expenses),Charlton Academy,06/11/2023,"5,625.00"
Education & Skills,Consultancy & Advisory Services,Supplies & Services,Other Grants (Expenses),Charlton Academy,29/11/2023,"1,229.70"
Education & Skills,SEND (0-25),Third Party Payments,DSG - High Needs Block,Charlton Academy,06/11/2023,"4,623.76"
Education & Skills,SEND (0-25),Third Party Payments,DSG - High Needs Block,Charlton Academy,06/11/2023,"4,623.76"
Education & Skills,SEND (0-25),Third Party Payments,DSG - High Needs Block,Charlton Academy,21/11/2023,"4,623.76"
Health & Wellbeing,Consultant in Public Health,Supplies & Services,Sub Contractors,CHARLTON MEDICAL CENTRE,22/11/2023,"1,000.00"
Children�s Safeguarding & Family Support,Child Protection & Family Support,Third Party Payments,Childminders,Chec Mates Day Care,07/11/2023,"1,263.00"
Health & Wellbeing,Consultant in Public Health,Supplies & Services,Sub Contractors,Chelsea and Westminster Hospital,22/11/2023,218.03
Education & Skills,Consultancy & Advisory Services,Third Party Payments,2 Year Old Funding,Cherry Blossom Day Care Ltd,22/11/2023,"-39,530.40"
Education & Skills,Consultancy & Advisory Services,Third Party Payments,3 & 4 Year Old Funding,Cherry Blossom Day Care Ltd,22/11/2023,"-46,368.55"
Education & Skills,SEND (0-25),Third Party Payments,DSG - High Needs Block,Cherry Blossom Day Care Ltd,22/11/2023,-584.47
Education & Skills,Consultancy & Advisory Services,Third Party Payments,2 Year Old Funding,Small Talk Nurseries,22/11/2023,"39,530.40"
Education & Skills,Consultancy & Advisory Services,Third Party Payments,3 & 4 Year Old Funding,Small Talk Nurseries,22/11/2023,"46,368.55"
Education & Skills,SEND (0-25),Third Party Payments,DSG - High Needs Block,Small Talk Nurseries,22/11/2023,584.47
Children�s Safeguarding & Family Support,"Family Placements, Children in Care, Leaving Care & Emergency Duty Team",Third Party Payments,Childminders,CHILDCARE SOS,10/11/2023,"1,086.75"
Education & Skills,Skills,Third Party Payments,Childminders,CHILDCARE SOS,02/11/2023,569.25
Neighbourhood & Enforcement Services,Enforcement,Supplies & Services,Security Services,Chipside Ltd,27/11/2023,260.67
Neighbourhood & Enforcement Services,Enforcement,Supplies & Services,Security Services,Chipside Ltd,21/11/2023,114.97
Neighbourhood & Enforcement Services,Enforcement,Supplies & Services,Security Services,Chipside Ltd,21/11/2023,346.17
Education & Skills,SEND (0-25),Third Party Payments,DSG - High Needs Block,Church Street Day Nursery,09/11/2023,803.28
"Communities, Customer & Commercial Services",ICT,Premises-Related Expenditure,R&M -Buildings DLO Charge,Churches Fire Security Ltd,06/11/2023,320.00
"Communities, Customer & Commercial Services",ICT,Premises-Related Expenditure,R&M -Buildings DLO Charge,Churches Fire Security Ltd,09/11/2023,320.00
Prosperity & Investment,BiT,Premises-Related Expenditure,Service Contracts,Churches Fire Security Ltd,14/11/2023,180.00
Prosperity & Investment,BiT,Premises-Related Expenditure,Service Contracts,Churches Fire Security Ltd,14/11/2023,205.00
Prosperity & Investment,BiT,Premises-Related Expenditure,R&M -Buildings DLO Charge,Churches Fire Security Ltd,02/11/2023,100.50
Prosperity & Investment,BiT,Premises-Related Expenditure,R&M -Buildings DLO Charge,Churches Fire Security Ltd,13/11/2023,190.00
Prosperity & Investment,BiT,Premises-Related Expenditure,R&M -Buildings DLO Charge,Churches Fire Security Ltd,14/11/2023,190.00
Education & Skills,Skills,Supplies & Services,Exam Fees,CITY & GUILDS,27/11/2023,"1,177.60"
"Communities, Customer & Commercial Services",ICT,Supplies & Services,Comp Software (Purch / Hire),CIVICA UK LIMITED ,06/11/2023,"25,436.98"
Finance & Human Resources,Finance Manager (Corporate & Capital),Employees,Staff Training,CIVICA UK LIMITED ,07/11/2023,"4,579.00"
Finance & Human Resources,Revenues,Supplies & Services,Computer Software (Maint),CIVICA UK LIMITED ,27/11/2023,"1,114.63"
Policy & Governance,Governance & Legal Services,Supplies & Services,Computer Software (Maint),CIVICA UK LIMITED ,01/11/2023,"-2,500.00"
Policy & Governance,Governance & Legal Services,Supplies & Services,Computer Software (Maint),CIVICA UK LIMITED ,13/11/2023,"22,500.00"
Policy & Governance,Governance & Legal Services,Supplies & Services,Equipment - Purchase,CIVICA UK LIMITED ,21/11/2023,"14,681.25"
"Communities, Customer & Commercial Services",Customer Relationships & Welfare Services,Transfer Payments,Crisis Assistance Awards,CLEANIT CLEANING SERVICES,08/11/2023,868.00
Prosperity & Investment,Development Management,Supplies & Services,Consultancy,CLEANIT CLEANING SERVICES,30/11/2023,"2,500.00"
Prosperity & Investment,BiT,Premises-Related Expenditure,Service Contracts,3CL,08/11/2023,"1,220.00"
Adult Social Care,Prevention & Independence - Older Adults & Disability,Supplies & Services,Aids & Appliances,Closomat Limited,01/11/2023,269.24
Adult Social Care,Prevention & Independence - Older Adults & Disability,Supplies & Services,Aids & Appliances,Closomat Limited,01/11/2023,125.00
Adult Social Care,Prevention & Independence - Older Adults & Disability,Supplies & Services,Equipment - Repair,Closomat Limited,29/11/2023,205.00
Adult Social Care,Prevention & Independence - Older Adults & Disability,Supplies & Services,Equipment - Repair,Closomat Limited,02/11/2023,307.00
Adult Social Care,Prevention & Independence - Older Adults & Disability,Supplies & Services,Equipment - Repair,Closomat Limited,29/11/2023,205.00
Prosperity & Investment,BiT,Premises-Related Expenditure,R&M -Buildings DLO Charge,Closomat Limited,23/11/2023,205.00
Education & Skills,SEND (0-25),Third Party Payments,DSG - High Needs Block,CLUB 0-5 LTD ,09/11/2023,401.64
"Communities, Customer & Commercial Services",Culture & Events,Supplies & Services,Advertising,Colston Media Ltd,21/11/2023,150.00
"Communities, Customer & Commercial Services",Culture & Events,Supplies & Services,Advertising,Colston Media Ltd,01/11/2023,150.00
Education & Skills,Skills,Supplies & Services,Telephones,Esendex,15/11/2023,109.50
Prosperity & Investment,BiT,Premises-Related Expenditure,R&M -Buildings DLO Charge,COOL SERVICES LTD,14/11/2023,148.10
Prosperity & Investment,BiT,Premises-Related Expenditure,R&M -Buildings DLO Charge,COOL SERVICES LTD,14/11/2023,813.39
Prosperity & Investment,BiT,Premises-Related Expenditure,R&M -Buildings DLO Charge,COOL SERVICES LTD,27/11/2023,147.59
Prosperity & Investment,BiT,Premises-Related Expenditure,R&M -Buildings DLO Charge,COOL SERVICES LTD,20/11/2023,"4,766.01"
Prosperity & Investment,BiT,Premises-Related Expenditure,R&M -Buildings DLO Charge,COOL SERVICES LTD,20/11/2023,"1,717.84"
Prosperity & Investment,BiT,Premises-Related Expenditure,R&M -Buildings DLO Charge,COOL SERVICES LTD,23/11/2023,171.00
Prosperity & Investment,BiT,Premises-Related Expenditure,R&M -Buildings DLO Charge,COOL SERVICES LTD,23/11/2023,212.09
Prosperity & Investment,BiT,Capital Expenditure,Payments to Contractor,COOL SERVICES LTD,15/11/2023,"11,164.74"
Education & Skills,Education & Skills,Capital Expenditure,Payments to Contractor,C & W LTD,01/11/2023,"47,427.70"
Education & Skills,Education & Skills,Capital Expenditure,Payments to Contractor,C & W LTD,03/11/2023,"53,575.98"
Adult Social Care,My Options,Supplies & Services,Legal Expenses,Cornwall Street Barristers,29/11/2023,750.00
"Communities, Customer & Commercial Services",Sport & Leisure,Supplies & Services,Protective Clothing,CORPORATE TOGS LTD,29/11/2023,697.55
"Communities, Customer & Commercial Services",Sport & Leisure,Supplies & Services,Protective Clothing,CORPORATE TOGS LTD,07/11/2023,929.70
"Communities, Customer & Commercial Services",Culture & Events,Supplies & Services,Artistes Fees,Country Superstars Ltd,09/11/2023,"4,226.40"
Policy & Governance,Governance & Legal Services,Supplies & Services,Legal Expenses,Court Clerk Services Limited,30/11/2023,150.00
Finance & Human Resources,Human Resources,Supplies & Services,Doctors Fees,COURT STREET MEDICAL PRACTICE,29/11/2023,108.00
Health & Wellbeing,Consultant in Public Health,Supplies & Services,Sub Contractors,COURT STREET MEDICAL PRACTICE,15/11/2023,800.00
Health & Wellbeing,Consultant in Public Health,Supplies & Services,Sub Contractors,Cranstoun,21/11/2023,"165,827.00"
Policy & Governance,Organisational Development & Delivery,Employees,Staff Training,C D JACKFIELD LTD,22/11/2023,225.00
Prosperity & Investment,BiT,Premises-Related Expenditure,Grounds Maintenance - Other,C Grounds Maintenance Ltd,08/11/2023,"4,279.12"
Education & Skills,SEND (0-25),Third Party Payments,DSG - High Needs Block,CROSSBAR COACHING,06/11/2023,"5,850.00"
Education & Skills,SEND (0-25),Third Party Payments,DSG - High Needs Block,CROSSBAR COACHING,06/11/2023,"13,950.00"
"Communities, Customer & Commercial Services",Culture & Events,Supplies & Services,Promotion Expenses,crowdEngage Limited,08/11/2023,263.38
Education & Skills,SEND (0-25),Third Party Payments,DSG - High Needs Block,Crudgington Primary School,06/11/2023,610.69
Education & Skills,SEND (0-25),Third Party Payments,DSG - High Needs Block,Crudgington Primary School,06/11/2023,610.69
Education & Skills,SEND (0-25),Third Party Payments,DSG - High Needs Block,Crudgington Primary School,21/11/2023,610.69
Prosperity & Investment,Regeneration & Investment,Premises-Related Expenditure,R&M -Building Other,Cubic FM Ltd,16/11/2023,"11,561.00"
Prosperity & Investment,Regeneration & Investment,Premises-Related Expenditure,R&M -Building Other,Cubic FM Ltd,16/11/2023,"24,978.79"
Prosperity & Investment,Regeneration & Investment,Premises-Related Expenditure,R&M -Building Other,Cubic FM Ltd,28/11/2023,"5,747.69"
Prosperity & Investment,Regeneration & Investment,Premises-Related Expenditure,R&M -Building Other,Cubic FM Ltd,20/11/2023,"15,899.17"
Prosperity & Investment,Regeneration & Investment,Premises-Related Expenditure,R&M -Building Other,Cubic FM Ltd,28/11/2023,"1,830.00"
Prosperity & Investment,Regeneration & Investment,Premises-Related Expenditure,R&M -Building Other,Cubic FM Ltd,30/11/2023,"1,448.00"
Prosperity & Investment,Regeneration & Investment,Capital Expenditure,Payments to Contractor,Cubic FM Ltd,29/11/2023,"16,264.11"
"Communities, Customer & Commercial Services",Sport & Leisure,Premises-Related Expenditure,R&M - Mechanical,C  LTD,27/11/2023,117.72
Prosperity & Investment,BiT,Supplies & Services,Equipment - Hire,C  LTD,28/11/2023,129.92
Neighbourhood & Enforcement Services,Safer & Stronger Communities,Supplies & Services,Other Services,CULTUREKIND,01/11/2023,126.00
Finance & Human Resources,Revenues,Supplies & Services,Printing - Other,CustomerKNECT Limited,07/11/2023,137.00
Finance & Human Resources,Revenues,Supplies & Services,Printing - Other,CustomerKNECT Limited,23/11/2023,195.00
Finance & Human Resources,Revenues,Supplies & Services,Printing - Other,CustomerKNECT Limited,23/11/2023,195.00
Finance & Human Resources,Revenues,Supplies & Services,Printing - Other,CustomerKNECT Limited,16/11/2023,195.00
Finance & Human Resources,Revenues,Supplies & Services,Printing - Other,CustomerKNECT Limited,23/11/2023,145.00
Education & Skills,SEND (0-25),Third Party Payments,DSG - High Needs Block,D C @ OLD HALL,09/11/2023,800.78
"Communities, Customer & Commercial Services",ICT,Capital Expenditure,Computer Hardware,Daisy Corporate Services Trading Limited,20/11/2023,505.32
Children�s Safeguarding & Family Support,"Family Placements, Children in Care, Leaving Care & Emergency Duty Team",Premises-Related Expenditure,Hire Of Rooms,Dawley Baptist Church,02/11/2023,143.00
Children�s Safeguarding & Family Support,"Family Placements, Children in Care, Leaving Care & Emergency Duty Team",Premises-Related Expenditure,Hire Of Rooms,Dawley Baptist Church,02/11/2023,522.50
Education & Skills,SEND (0-25),Third Party Payments,DSG - High Needs Block,Dawley C of E Primary Academy,06/11/2023,610.69
Education & Skills,SEND (0-25),Third Party Payments,DSG - High Needs Block,Dawley C of E Primary Academy,06/11/2023,610.69
Education & Skills,SEND (0-25),Third Party Payments,DSG - High Needs Block,Dawley C of E Primary Academy,21/11/2023,610.69
Neighbourhood & Enforcement Services,Safer & Stronger Communities,Supplies & Services,Other Services,DAWLEY CHRISTIAN CENTRE,09/11/2023,120.00
Health & Wellbeing,Consultant in Public Health,Supplies & Services,Sub Contractors,DAWLEY MEDICAL PRACTICES,15/11/2023,850.00
Policy & Governance,Organisational Development & Delivery,Employees,Professional Subs,D R Training and Consultancy Ltd,08/11/2023,"2,102.90"
Neighbourhood & Enforcement Services,Strategic Transport & Highway Network Management,Transport-Related Expenditure,Servicing & Repairs V&P,DAYS RENTAL,03/11/2023,310.31
Neighbourhood & Enforcement Services,Strategic Transport & Highway Network Management,Transport-Related Expenditure,Outside Hire,DAYS RENTAL,03/11/2023,310.31
Neighbourhood & Enforcement Services,Strategic Transport & Highway Network Management,Transport-Related Expenditure,Outside Hire,DAYS RENTAL,03/11/2023,310.31
Neighbourhood & Enforcement Services,Strategic Transport & Highway Network Management,Transport-Related Expenditure,Outside Hire,DAYS RENTAL,03/11/2023,310.31
Neighbourhood & Enforcement Services,Strategic Transport & Highway Network Management,Transport-Related Expenditure,Outside Hire,DAYS RENTAL,03/11/2023,"1,270.07"
Neighbourhood & Enforcement Services,Strategic Transport & Highway Network Management,Transport-Related Expenditure,Outside Hire,DAYS RENTAL,03/11/2023,310.31
Neighbourhood & Enforcement Services,Strategic Transport & Highway Network Management,Transport-Related Expenditure,Outside Hire,DAYS RENTAL,03/11/2023,310.31
Neighbourhood & Enforcement Services,Strategic Transport & Highway Network Management,Transport-Related Expenditure,Outside Hire,DAYS RENTAL,03/11/2023,444.23
Neighbourhood & Enforcement Services,Strategic Transport & Highway Network Management,Transport-Related Expenditure,Outside Hire,DAYS RENTAL,03/11/2023,310.31
Neighbourhood & Enforcement Services,Strategic Transport & Highway Network Management,Transport-Related Expenditure,Outside Hire,DAYS RENTAL,03/11/2023,310.31
Neighbourhood & Enforcement Services,Strategic Transport & Highway Network Management,Transport-Related Expenditure,Outside Hire,DAYS RENTAL,03/11/2023,423.77
Neighbourhood & Enforcement Services,Strategic Transport & Highway Network Management,Transport-Related Expenditure,Outside Hire,DAYS RENTAL,03/11/2023,423.77
Neighbourhood & Enforcement Services,Strategic Transport & Highway Network Management,Transport-Related Expenditure,Outside Hire,DAYS RENTAL,03/11/2023,950.24
Neighbourhood & Enforcement Services,Strategic Transport & Highway Network Management,Transport-Related Expenditure,Outside Hire,DAYS RENTAL,03/11/2023,950.24
Neighbourhood & Enforcement Services,Strategic Transport & Highway Network Management,Transport-Related Expenditure,Hire Charges from MO,DAYS RENTAL,03/11/2023,423.77
Neighbourhood & Enforcement Services,Strategic Transport & Highway Network Management,Transport-Related Expenditure,Outside Hire,DAYS RENTAL,03/11/2023,"1,170.87"
Neighbourhood & Enforcement Services,Strategic Transport & Highway Network Management,Transport-Related Expenditure,Outside Hire,DAYS RENTAL,03/11/2023,423.77
Neighbourhood & Enforcement Services,Strategic Transport & Highway Network Management,Transport-Related Expenditure,Outside Hire,DAYS RENTAL,03/11/2023,477.30
"Communities, Customer & Commercial Services",Sport & Leisure,Supplies & Services,Provisions,Delice de France,09/11/2023,364.38
Adult Social Care,Prevention & Independence - Older Adults & Disability,Supplies & Services,Aids & Appliances,Direct Healthcare Group Limited,15/11/2023,348.00
"Communities, Customer & Commercial Services",Customer Relationships & Welfare Services,Supplies & Services,Other Grants (Expenses),Discretionary Household Support,21/11/2023,950.00
"Communities, Customer & Commercial Services",Customer Relationships & Welfare Services,Supplies & Services,Other Grants (Expenses),Discretionary Household Support,30/11/2023,"1,000.00"
"Communities, Customer & Commercial Services",Culture & Events,Supplies & Services,Audit Services,DMC STOCKTAKING,16/11/2023,160.00
"Communities, Customer & Commercial Services",Culture & Events,Supplies & Services,Audit Services,DMC STOCKTAKING,16/11/2023,160.00
"Communities, Customer & Commercial Services",Sport & Leisure,Supplies & Services,Provisions,BIKOLD,02/11/2023,129.06
"Communities, Customer & Commercial Services",Sport & Leisure,Supplies & Services,Provisions,BIKOLD,30/11/2023,113.86
"Communities, Customer & Commercial Services",Sport & Leisure,Supplies & Services,Provisions,BIKOLD,02/11/2023,158.76
"Communities, Customer & Commercial Services",Sport & Leisure,Supplies & Services,Provisions,BIKOLD,02/11/2023,156.48
"Communities, Customer & Commercial Services",Sport & Leisure,Supplies & Services,Provisions,BIKOLD,02/11/2023,181.67
"Communities, Customer & Commercial Services",Sport & Leisure,Supplies & Services,Provisions,BIKOLD,02/11/2023,398.42
"Communities, Customer & Commercial Services",Sport & Leisure,Supplies & Services,Provisions,BIKOLD,02/11/2023,275.29
"Communities, Customer & Commercial Services",Sport & Leisure,Supplies & Services,Provisions,BIKOLD,02/11/2023,119.86
"Communities, Customer & Commercial Services",Sport & Leisure,Supplies & Services,Provisions,BIKOLD,10/11/2023,201.84
"Communities, Customer & Commercial Services",Sport & Leisure,Supplies & Services,Provisions,BIKOLD,10/11/2023,138.24
"Communities, Customer & Commercial Services",Sport & Leisure,Supplies & Services,Provisions,BIKOLD,10/11/2023,161.15
"Communities, Customer & Commercial Services",Sport & Leisure,Supplies & Services,Provisions,BIKOLD,10/11/2023,188.02
"Communities, Customer & Commercial Services",Sport & Leisure,Supplies & Services,Provisions,BIKOLD,23/11/2023,166.02
"Communities, Customer & Commercial Services",Sport & Leisure,Supplies & Services,Provisions,BIKOLD,23/11/2023,139.33
"Communities, Customer & Commercial Services",Sport & Leisure,Supplies & Services,Provisions,BIKOLD,23/11/2023,265.65
"Communities, Customer & Commercial Services",Sport & Leisure,Supplies & Services,Provisions,BIKOLD,23/11/2023,114.56
"Communities, Customer & Commercial Services",Sport & Leisure,Supplies & Services,Provisions,BIKOLD,23/11/2023,331.17
"Communities, Customer & Commercial Services",Sport & Leisure,Supplies & Services,Provisions,BIKOLD,23/11/2023,320.41
"Communities, Customer & Commercial Services",Sport & Leisure,Supplies & Services,Provisions,BIKOLD,23/11/2023,271.33
"Communities, Customer & Commercial Services",Sport & Leisure,Supplies & Services,Provisions,BIKOLD,23/11/2023,346.22
"Communities, Customer & Commercial Services",Sport & Leisure,Supplies & Services,Provisions,BIKOLD,23/11/2023,232.24
"Communities, Customer & Commercial Services",Sport & Leisure,Supplies & Services,Provisions,BIKOLD,23/11/2023,930.35
"Communities, Customer & Commercial Services",Sport & Leisure,Supplies & Services,Provisions,BIKOLD,23/11/2023,422.13
"Communities, Customer & Commercial Services",Sport & Leisure,Supplies & Services,Provisions,BIKOLD,23/11/2023,266.76
"Communities, Customer & Commercial Services",Sport & Leisure,Supplies & Services,Provisions,BIKOLD,23/11/2023,158.71
"Communities, Customer & Commercial Services",Sport & Leisure,Supplies & Services,Provisions,BIKOLD,23/11/2023,410.68
"Communities, Customer & Commercial Services",Sport & Leisure,Supplies & Services,Provisions,BIKOLD,23/11/2023,613.92
"Communities, Customer & Commercial Services",Sport & Leisure,Supplies & Services,Provisions,BIKOLD,23/11/2023,154.09
"Communities, Customer & Commercial Services",Sport & Leisure,Supplies & Services,Provisions,BIKOLD,23/11/2023,366.46
"Communities, Customer & Commercial Services",Sport & Leisure,Supplies & Services,Provisions,BIKOLD,23/11/2023,146.56
"Communities, Customer & Commercial Services",Sport & Leisure,Supplies & Services,Provisions,BIKOLD,23/11/2023,219.57
"Communities, Customer & Commercial Services",Sport & Leisure,Supplies & Services,Provisions,BIKOLD,23/11/2023,149.93
"Communities, Customer & Commercial Services",Sport & Leisure,Supplies & Services,Provisions,BIKOLD,23/11/2023,193.71
"Communities, Customer & Commercial Services",Sport & Leisure,Supplies & Services,Provisions,BIKOLD,23/11/2023,127.48
"Communities, Customer & Commercial Services",Sport & Leisure,Supplies & Services,Provisions,BIKOLD,23/11/2023,368.40
"Communities, Customer & Commercial Services",Sport & Leisure,Supplies & Services,Provisions,BIKOLD,23/11/2023,241.23
"Communities, Customer & Commercial Services",Sport & Leisure,Supplies & Services,Provisions,BIKOLD,23/11/2023,172.76
"Communities, Customer & Commercial Services",Sport & Leisure,Supplies & Services,Provisions,BIKOLD,23/11/2023,393.99
"Communities, Customer & Commercial Services",Sport & Leisure,Supplies & Services,Provisions,BIKOLD,23/11/2023,238.92
"Communities, Customer & Commercial Services",Sport & Leisure,Supplies & Services,Provisions,BIKOLD,23/11/2023,211.18
"Communities, Customer & Commercial Services",Sport & Leisure,Supplies & Services,Provisions,BIKOLD,23/11/2023,621.52
"Communities, Customer & Commercial Services",Sport & Leisure,Supplies & Services,Provisions,BIKOLD,23/11/2023,144.16
"Communities, Customer & Commercial Services",Sport & Leisure,Supplies & Services,Provisions,BIKOLD,23/11/2023,218.86
"Communities, Customer & Commercial Services",Sport & Leisure,Supplies & Services,Provisions,BIKOLD,23/11/2023,112.19
"Communities, Customer & Commercial Services",Sport & Leisure,Supplies & Services,Provisions,BIKOLD,23/11/2023,112.90
"Communities, Customer & Commercial Services",Sport & Leisure,Supplies & Services,Provisions,BIKOLD,23/11/2023,254.89
"Communities, Customer & Commercial Services",Sport & Leisure,Supplies & Services,Provisions,BIKOLD,23/11/2023,293.23
"Communities, Customer & Commercial Services",Sport & Leisure,Supplies & Services,Provisions,BIKOLD,23/11/2023,315.70
"Communities, Customer & Commercial Services",Sport & Leisure,Supplies & Services,Provisions,BIKOLD,23/11/2023,341.08
"Communities, Customer & Commercial Services",Sport & Leisure,Supplies & Services,Provisions,BIKOLD,23/11/2023,372.57
"Communities, Customer & Commercial Services",Sport & Leisure,Supplies & Services,Provisions,BIKOLD,23/11/2023,117.56
"Communities, Customer & Commercial Services",Sport & Leisure,Supplies & Services,Provisions,BIKOLD,23/11/2023,313.44
"Communities, Customer & Commercial Services",Sport & Leisure,Supplies & Services,Provisions,BIKOLD,23/11/2023,207.31
"Communities, Customer & Commercial Services",Sport & Leisure,Supplies & Services,Provisions,BIKOLD,23/11/2023,156.45
"Communities, Customer & Commercial Services",Sport & Leisure,Supplies & Services,Provisions,BIKOLD,23/11/2023,106.98
"Communities, Customer & Commercial Services",Sport & Leisure,Supplies & Services,Provisions,BIKOLD,23/11/2023,193.74
"Communities, Customer & Commercial Services",Sport & Leisure,Supplies & Services,Provisions,BIKOLD,23/11/2023,205.45
"Communities, Customer & Commercial Services",Sport & Leisure,Supplies & Services,Provisions,BIKOLD,23/11/2023,158.49
"Communities, Customer & Commercial Services",Sport & Leisure,Supplies & Services,Provisions,BIKOLD,23/11/2023,160.78
"Communities, Customer & Commercial Services",Sport & Leisure,Supplies & Services,Provisions,BIKOLD,23/11/2023,201.07
"Communities, Customer & Commercial Services",Sport & Leisure,Supplies & Services,Provisions,BIKOLD,23/11/2023,214.35
"Communities, Customer & Commercial Services",Sport & Leisure,Supplies & Services,Provisions,BIKOLD,23/11/2023,431.32
"Communities, Customer & Commercial Services",Sport & Leisure,Supplies & Services,Provisions,BIKOLD,23/11/2023,151.69
"Communities, Customer & Commercial Services",Sport & Leisure,Supplies & Services,Provisions,BIKOLD,23/11/2023,423.72
"Communities, Customer & Commercial Services",Sport & Leisure,Supplies & Services,Provisions,BIKOLD,23/11/2023,214.59
"Communities, Customer & Commercial Services",Sport & Leisure,Supplies & Services,Provisions,BIKOLD,23/11/2023,476.78
"Communities, Customer & Commercial Services",Sport & Leisure,Supplies & Services,Provisions,BIKOLD,23/11/2023,115.73
"Communities, Customer & Commercial Services",Sport & Leisure,Supplies & Services,Provisions,BIKOLD,23/11/2023,366.10
"Communities, Customer & Commercial Services",Sport & Leisure,Supplies & Services,Provisions,BIKOLD,23/11/2023,284.20
"Communities, Customer & Commercial Services",Sport & Leisure,Supplies & Services,Provisions,BIKOLD,23/11/2023,167.11
"Communities, Customer & Commercial Services",Sport & Leisure,Supplies & Services,Provisions,BIKOLD,23/11/2023,242.69
"Communities, Customer & Commercial Services",Sport & Leisure,Supplies & Services,Provisions,BIKOLD,23/11/2023,116.13
"Communities, Customer & Commercial Services",Sport & Leisure,Supplies & Services,Provisions,BIKOLD,23/11/2023,108.33
"Communities, Customer & Commercial Services",Sport & Leisure,Supplies & Services,Provisions,BIKOLD,23/11/2023,309.28
"Communities, Customer & Commercial Services",Sport & Leisure,Supplies & Services,Provisions,BIKOLD,23/11/2023,122.87
"Communities, Customer & Commercial Services",Sport & Leisure,Supplies & Services,Provisions,BIKOLD,23/11/2023,183.35
"Communities, Customer & Commercial Services",Sport & Leisure,Supplies & Services,Provisions,BIKOLD,23/11/2023,112.49
"Communities, Customer & Commercial Services",Sport & Leisure,Supplies & Services,Provisions,BIKOLD,23/11/2023,168.02
"Communities, Customer & Commercial Services",Sport & Leisure,Supplies & Services,Provisions,BIKOLD,23/11/2023,151.84
"Communities, Customer & Commercial Services",Sport & Leisure,Supplies & Services,Provisions,BIKOLD,23/11/2023,244.59
"Communities, Customer & Commercial Services",Sport & Leisure,Supplies & Services,Provisions,BIKOLD,23/11/2023,316.79
"Communities, Customer & Commercial Services",Sport & Leisure,Supplies & Services,Provisions,BIKOLD,23/11/2023,138.48
"Communities, Customer & Commercial Services",Sport & Leisure,Supplies & Services,Provisions,BIKOLD,23/11/2023,297.51
"Communities, Customer & Commercial Services",Sport & Leisure,Supplies & Services,Provisions,BIKOLD,23/11/2023,155.67
"Communities, Customer & Commercial Services",Sport & Leisure,Supplies & Services,Provisions,BIKOLD,23/11/2023,217.91
"Communities, Customer & Commercial Services",Sport & Leisure,Supplies & Services,Provisions,BIKOLD,23/11/2023,384.07
"Communities, Customer & Commercial Services",Sport & Leisure,Supplies & Services,Provisions,BIKOLD,23/11/2023,143.37
"Communities, Customer & Commercial Services",Sport & Leisure,Supplies & Services,Provisions,BIKOLD,23/11/2023,433.87
"Communities, Customer & Commercial Services",Sport & Leisure,Supplies & Services,Provisions,BIKOLD,23/11/2023,588.56
"Communities, Customer & Commercial Services",Sport & Leisure,Supplies & Services,Provisions,BIKOLD,23/11/2023,362.78
"Communities, Customer & Commercial Services",Sport & Leisure,Supplies & Services,Provisions,BIKOLD,23/11/2023,155.29
"Communities, Customer & Commercial Services",Sport & Leisure,Supplies & Services,Provisions,BIKOLD,23/11/2023,115.49
"Communities, Customer & Commercial Services",Sport & Leisure,Supplies & Services,Provisions,BIKOLD,23/11/2023,410.95
"Communities, Customer & Commercial Services",Sport & Leisure,Supplies & Services,Provisions,BIKOLD,23/11/2023,371.00
"Communities, Customer & Commercial Services",Sport & Leisure,Supplies & Services,Provisions,BIKOLD,23/11/2023,223.48
"Communities, Customer & Commercial Services",Sport & Leisure,Supplies & Services,Provisions,BIKOLD,23/11/2023,601.08
"Communities, Customer & Commercial Services",Sport & Leisure,Supplies & Services,Provisions,BIKOLD,23/11/2023,329.66
"Communities, Customer & Commercial Services",Sport & Leisure,Supplies & Services,Provisions,BIKOLD,23/11/2023,247.35
"Communities, Customer & Commercial Services",Sport & Leisure,Supplies & Services,Provisions,BIKOLD,23/11/2023,488.38
"Communities, Customer & Commercial Services",Sport & Leisure,Supplies & Services,Provisions,BIKOLD,23/11/2023,203.12
"Communities, Customer & Commercial Services",Sport & Leisure,Supplies & Services,Provisions,BIKOLD,23/11/2023,294.65
"Communities, Customer & Commercial Services",Sport & Leisure,Supplies & Services,Provisions,BIKOLD,23/11/2023,334.18
"Communities, Customer & Commercial Services",Sport & Leisure,Supplies & Services,Provisions,BIKOLD,23/11/2023,321.63
"Communities, Customer & Commercial Services",Sport & Leisure,Supplies & Services,Provisions,BIKOLD,23/11/2023,113.11
"Communities, Customer & Commercial Services",Sport & Leisure,Supplies & Services,Provisions,BIKOLD,23/11/2023,174.69
"Communities, Customer & Commercial Services",Sport & Leisure,Supplies & Services,Provisions,BIKOLD,23/11/2023,291.80
"Communities, Customer & Commercial Services",Sport & Leisure,Supplies & Services,Provisions,BIKOLD,23/11/2023,222.62
"Communities, Customer & Commercial Services",Sport & Leisure,Supplies & Services,Provisions,BIKOLD,23/11/2023,130.52
"Communities, Customer & Commercial Services",Sport & Leisure,Supplies & Services,Provisions,BIKOLD,23/11/2023,550.00
"Communities, Customer & Commercial Services",Sport & Leisure,Supplies & Services,Provisions,BIKOLD,23/11/2023,276.93
"Communities, Customer & Commercial Services",Sport & Leisure,Supplies & Services,Provisions,BIKOLD,23/11/2023,439.48
"Communities, Customer & Commercial Services",Sport & Leisure,Supplies & Services,Provisions,BIKOLD,23/11/2023,204.39
"Communities, Customer & Commercial Services",Sport & Leisure,Supplies & Services,Provisions,BIKOLD,23/11/2023,203.50
"Communities, Customer & Commercial Services",Sport & Leisure,Supplies & Services,Provisions,BIKOLD,23/11/2023,207.06
"Communities, Customer & Commercial Services",Sport & Leisure,Supplies & Services,Provisions,BIKOLD,23/11/2023,122.14
"Communities, Customer & Commercial Services",Sport & Leisure,Supplies & Services,Provisions,BIKOLD,23/11/2023,193.54
"Communities, Customer & Commercial Services",Sport & Leisure,Supplies & Services,Provisions,BIKOLD,23/11/2023,146.21
"Communities, Customer & Commercial Services",Sport & Leisure,Supplies & Services,Provisions,BIKOLD,23/11/2023,101.42
"Communities, Customer & Commercial Services",Sport & Leisure,Supplies & Services,Provisions,BIKOLD,23/11/2023,361.34
"Communities, Customer & Commercial Services",Sport & Leisure,Supplies & Services,Provisions,BIKOLD,23/11/2023,192.16
"Communities, Customer & Commercial Services",Sport & Leisure,Supplies & Services,Provisions,BIKOLD,23/11/2023,131.65
"Communities, Customer & Commercial Services",Sport & Leisure,Supplies & Services,Provisions,BIKOLD,23/11/2023,441.48
"Communities, Customer & Commercial Services",Sport & Leisure,Supplies & Services,Provisions,BIKOLD,16/11/2023,103.34
"Communities, Customer & Commercial Services",Sport & Leisure,Supplies & Services,Provisions,BIKOLD,16/11/2023,193.07
"Communities, Customer & Commercial Services",Sport & Leisure,Supplies & Services,Provisions,BIKOLD,16/11/2023,210.28
"Communities, Customer & Commercial Services",Sport & Leisure,Supplies & Services,Provisions,BIKOLD,16/11/2023,139.68
"Communities, Customer & Commercial Services",Sport & Leisure,Supplies & Services,Provisions,BIKOLD,16/11/2023,182.05
"Communities, Customer & Commercial Services",Sport & Leisure,Supplies & Services,Provisions,BIKOLD,16/11/2023,102.83
"Communities, Customer & Commercial Services",Sport & Leisure,Supplies & Services,Provisions,BIKOLD,16/11/2023,159.96
"Communities, Customer & Commercial Services",Sport & Leisure,Supplies & Services,Provisions,BIKOLD,16/11/2023,169.93
"Communities, Customer & Commercial Services",Sport & Leisure,Supplies & Services,Provisions,BIKOLD,16/11/2023,143.68
"Communities, Customer & Commercial Services",Sport & Leisure,Supplies & Services,Provisions,BIKOLD,16/11/2023,337.73
"Communities, Customer & Commercial Services",Sport & Leisure,Supplies & Services,Provisions,BIKOLD,23/11/2023,189.23
"Communities, Customer & Commercial Services",Sport & Leisure,Supplies & Services,Provisions,BIKOLD,23/11/2023,297.25
"Communities, Customer & Commercial Services",Sport & Leisure,Supplies & Services,Provisions,BIKOLD,23/11/2023,463.14
"Communities, Customer & Commercial Services",Sport & Leisure,Supplies & Services,Provisions,BIKOLD,16/11/2023,165.77
"Communities, Customer & Commercial Services",Sport & Leisure,Supplies & Services,Provisions,BIKOLD,16/11/2023,239.00
"Communities, Customer & Commercial Services",Sport & Leisure,Supplies & Services,Provisions,BIKOLD,16/11/2023,212.72
"Communities, Customer & Commercial Services",Sport & Leisure,Supplies & Services,Provisions,BIKOLD,16/11/2023,160.34
"Communities, Customer & Commercial Services",Sport & Leisure,Supplies & Services,Provisions,BIKOLD,16/11/2023,135.04
"Communities, Customer & Commercial Services",Sport & Leisure,Supplies & Services,Provisions,BIKOLD,16/11/2023,410.96
"Communities, Customer & Commercial Services",Sport & Leisure,Supplies & Services,Provisions,BIKOLD,16/11/2023,128.20
"Communities, Customer & Commercial Services",Sport & Leisure,Supplies & Services,Provisions,BIKOLD,16/11/2023,102.90
"Communities, Customer & Commercial Services",Sport & Leisure,Supplies & Services,Provisions,BIKOLD,16/11/2023,119.06
"Communities, Customer & Commercial Services",Sport & Leisure,Supplies & Services,Provisions,BIKOLD,16/11/2023,132.81
"Communities, Customer & Commercial Services",Sport & Leisure,Supplies & Services,Provisions,BIKOLD,16/11/2023,101.10
"Communities, Customer & Commercial Services",Sport & Leisure,Supplies & Services,Provisions,BIKOLD,16/11/2023,251.04
"Communities, Customer & Commercial Services",Sport & Leisure,Supplies & Services,Provisions,BIKOLD,16/11/2023,293.68
"Communities, Customer & Commercial Services",Sport & Leisure,Supplies & Services,Provisions,BIKOLD,16/11/2023,300.20
"Communities, Customer & Commercial Services",Sport & Leisure,Supplies & Services,Provisions,BIKOLD,16/11/2023,588.14
"Communities, Customer & Commercial Services",Sport & Leisure,Supplies & Services,Provisions,BIKOLD,16/11/2023,250.61
"Communities, Customer & Commercial Services",Sport & Leisure,Supplies & Services,Provisions,BIKOLD,16/11/2023,132.43
"Communities, Customer & Commercial Services",Sport & Leisure,Supplies & Services,Provisions,BIKOLD,16/11/2023,161.48
"Communities, Customer & Commercial Services",Sport & Leisure,Supplies & Services,Provisions,BIKOLD,16/11/2023,122.72
"Communities, Customer & Commercial Services",Sport & Leisure,Supplies & Services,Provisions,BIKOLD,16/11/2023,340.67
"Communities, Customer & Commercial Services",Sport & Leisure,Supplies & Services,Provisions,BIKOLD,16/11/2023,110.89
"Communities, Customer & Commercial Services",Sport & Leisure,Supplies & Services,Provisions,BIKOLD,16/11/2023,145.02
"Communities, Customer & Commercial Services",Sport & Leisure,Supplies & Services,Provisions,BIKOLD,16/11/2023,151.22
"Communities, Customer & Commercial Services",Sport & Leisure,Supplies & Services,Provisions,BIKOLD,16/11/2023,180.84
"Communities, Customer & Commercial Services",Sport & Leisure,Supplies & Services,Provisions,BIKOLD,16/11/2023,266.75
"Communities, Customer & Commercial Services",Sport & Leisure,Supplies & Services,Provisions,BIKOLD,16/11/2023,160.57
"Communities, Customer & Commercial Services",Sport & Leisure,Supplies & Services,Provisions,BIKOLD,16/11/2023,429.77
"Communities, Customer & Commercial Services",Sport & Leisure,Supplies & Services,Provisions,BIKOLD,16/11/2023,307.24
"Communities, Customer & Commercial Services",Sport & Leisure,Supplies & Services,Provisions,BIKOLD,16/11/2023,273.15
"Communities, Customer & Commercial Services",Sport & Leisure,Supplies & Services,Provisions,BIKOLD,16/11/2023,139.35
"Communities, Customer & Commercial Services",Sport & Leisure,Supplies & Services,Provisions,BIKOLD,16/11/2023,223.07
"Communities, Customer & Commercial Services",Sport & Leisure,Supplies & Services,Provisions,BIKOLD,16/11/2023,181.49
"Communities, Customer & Commercial Services",Sport & Leisure,Supplies & Services,Provisions,BIKOLD,16/11/2023,186.71
"Communities, Customer & Commercial Services",Sport & Leisure,Supplies & Services,Provisions,BIKOLD,16/11/2023,143.42
"Communities, Customer & Commercial Services",Sport & Leisure,Supplies & Services,Provisions,BIKOLD,16/11/2023,118.01
"Communities, Customer & Commercial Services",Sport & Leisure,Supplies & Services,Provisions,BIKOLD,16/11/2023,244.57
"Communities, Customer & Commercial Services",Sport & Leisure,Supplies & Services,Provisions,BIKOLD,16/11/2023,100.13
"Communities, Customer & Commercial Services",Sport & Leisure,Supplies & Services,Provisions,BIKOLD,16/11/2023,511.33
"Communities, Customer & Commercial Services",Sport & Leisure,Supplies & Services,Provisions,BIKOLD,16/11/2023,182.55
"Communities, Customer & Commercial Services",Sport & Leisure,Supplies & Services,Provisions,BIKOLD,16/11/2023,476.12
"Communities, Customer & Commercial Services",Sport & Leisure,Supplies & Services,Provisions,BIKOLD,16/11/2023,213.74
"Communities, Customer & Commercial Services",Sport & Leisure,Supplies & Services,Provisions,BIKOLD,16/11/2023,198.76
"Communities, Customer & Commercial Services",Sport & Leisure,Supplies & Services,Provisions,BIKOLD,16/11/2023,153.32
"Communities, Customer & Commercial Services",Sport & Leisure,Supplies & Services,Provisions,BIKOLD,10/11/2023,264.23
"Communities, Customer & Commercial Services",Sport & Leisure,Supplies & Services,Provisions,BIKOLD,10/11/2023,117.54
"Communities, Customer & Commercial Services",Sport & Leisure,Supplies & Services,Provisions,BIKOLD,10/11/2023,418.78
"Communities, Customer & Commercial Services",Sport & Leisure,Supplies & Services,Provisions,BIKOLD,10/11/2023,292.99
"Communities, Customer & Commercial Services",Sport & Leisure,Supplies & Services,Provisions,BIKOLD,10/11/2023,106.85
"Communities, Customer & Commercial Services",Sport & Leisure,Supplies & Services,Provisions,BIKOLD,10/11/2023,257.94
"Communities, Customer & Commercial Services",Sport & Leisure,Supplies & Services,Provisions,BIKOLD,10/11/2023,265.02
"Communities, Customer & Commercial Services",Sport & Leisure,Supplies & Services,Provisions,BIKOLD,10/11/2023,319.27
"Communities, Customer & Commercial Services",Sport & Leisure,Supplies & Services,Provisions,BIKOLD,10/11/2023,153.01
"Communities, Customer & Commercial Services",Sport & Leisure,Supplies & Services,Provisions,BIKOLD,10/11/2023,215.80
"Communities, Customer & Commercial Services",Sport & Leisure,Supplies & Services,Provisions,BIKOLD,10/11/2023,212.97
"Communities, Customer & Commercial Services",Sport & Leisure,Supplies & Services,Provisions,BIKOLD,10/11/2023,188.28
"Communities, Customer & Commercial Services",Sport & Leisure,Supplies & Services,Provisions,BIKOLD,10/11/2023,263.99
"Communities, Customer & Commercial Services",Sport & Leisure,Supplies & Services,Provisions,BIKOLD,10/11/2023,184.64
"Communities, Customer & Commercial Services",Sport & Leisure,Supplies & Services,Provisions,BIKOLD,10/11/2023,608.85
"Communities, Customer & Commercial Services",Sport & Leisure,Supplies & Services,Provisions,BIKOLD,10/11/2023,103.40
"Communities, Customer & Commercial Services",Sport & Leisure,Supplies & Services,Provisions,BIKOLD,10/11/2023,378.12
"Communities, Customer & Commercial Services",Sport & Leisure,Supplies & Services,Provisions,BIKOLD,10/11/2023,175.85
"Communities, Customer & Commercial Services",Sport & Leisure,Supplies & Services,Provisions,BIKOLD,10/11/2023,475.19
"Communities, Customer & Commercial Services",Sport & Leisure,Supplies & Services,Provisions,BIKOLD,10/11/2023,340.03
"Communities, Customer & Commercial Services",Sport & Leisure,Supplies & Services,Provisions,BIKOLD,10/11/2023,259.36
"Communities, Customer & Commercial Services",Sport & Leisure,Supplies & Services,Provisions,BIKOLD,10/11/2023,341.24
"Communities, Customer & Commercial Services",Sport & Leisure,Supplies & Services,Provisions,BIKOLD,10/11/2023,403.99
"Communities, Customer & Commercial Services",Sport & Leisure,Supplies & Services,Provisions,BIKOLD,10/11/2023,620.50
"Communities, Customer & Commercial Services",Sport & Leisure,Supplies & Services,Provisions,BIKOLD,10/11/2023,188.98
"Communities, Customer & Commercial Services",Sport & Leisure,Supplies & Services,Provisions,BIKOLD,10/11/2023,378.96
"Communities, Customer & Commercial Services",Sport & Leisure,Supplies & Services,Provisions,BIKOLD,10/11/2023,200.71
"Communities, Customer & Commercial Services",Sport & Leisure,Supplies & Services,Provisions,BIKOLD,10/11/2023,334.48
"Communities, Customer & Commercial Services",Sport & Leisure,Supplies & Services,Provisions,BIKOLD,10/11/2023,249.52
"Communities, Customer & Commercial Services",Sport & Leisure,Supplies & Services,Provisions,BIKOLD,10/11/2023,248.88
"Communities, Customer & Commercial Services",Sport & Leisure,Supplies & Services,Provisions,BIKOLD,10/11/2023,218.86
"Communities, Customer & Commercial Services",Sport & Leisure,Supplies & Services,Provisions,BIKOLD,10/11/2023,375.97
"Communities, Customer & Commercial Services",Sport & Leisure,Supplies & Services,Provisions,BIKOLD,10/11/2023,188.79
"Communities, Customer & Commercial Services",Sport & Leisure,Supplies & Services,Provisions,BIKOLD,10/11/2023,-196.32
"Communities, Customer & Commercial Services",Sport & Leisure,Supplies & Services,Provisions,BIKOLD,10/11/2023,255.77
"Communities, Customer & Commercial Services",Sport & Leisure,Supplies & Services,Provisions,BIKOLD,10/11/2023,476.91
"Communities, Customer & Commercial Services",Sport & Leisure,Supplies & Services,Provisions,BIKOLD,10/11/2023,499.98
"Communities, Customer & Commercial Services",Sport & Leisure,Supplies & Services,Provisions,BIKOLD,10/11/2023,105.05
"Communities, Customer & Commercial Services",Sport & Leisure,Supplies & Services,Provisions,BIKOLD,10/11/2023,254.50
"Communities, Customer & Commercial Services",Sport & Leisure,Supplies & Services,Provisions,BIKOLD,10/11/2023,443.74
"Communities, Customer & Commercial Services",Sport & Leisure,Supplies & Services,Provisions,BIKOLD,10/11/2023,334.68
"Communities, Customer & Commercial Services",Sport & Leisure,Supplies & Services,Provisions,BIKOLD,10/11/2023,116.02
"Communities, Customer & Commercial Services",Sport & Leisure,Supplies & Services,Provisions,BIKOLD,10/11/2023,181.36
"Communities, Customer & Commercial Services",Sport & Leisure,Supplies & Services,Provisions,BIKOLD,10/11/2023,227.66
"Communities, Customer & Commercial Services",Sport & Leisure,Supplies & Services,Provisions,BIKOLD,10/11/2023,415.92
"Communities, Customer & Commercial Services",Sport & Leisure,Supplies & Services,Provisions,BIKOLD,10/11/2023,593.87
"Communities, Customer & Commercial Services",Sport & Leisure,Supplies & Services,Provisions,BIKOLD,10/11/2023,347.10
"Communities, Customer & Commercial Services",Sport & Leisure,Supplies & Services,Provisions,BIKOLD,10/11/2023,103.06
"Communities, Customer & Commercial Services",Sport & Leisure,Supplies & Services,Provisions,BIKOLD,10/11/2023,101.88
"Communities, Customer & Commercial Services",Sport & Leisure,Supplies & Services,Provisions,BIKOLD,10/11/2023,226.54
"Communities, Customer & Commercial Services",Sport & Leisure,Supplies & Services,Provisions,BIKOLD,10/11/2023,184.84
"Communities, Customer & Commercial Services",Sport & Leisure,Supplies & Services,Provisions,BIKOLD,10/11/2023,375.44
"Communities, Customer & Commercial Services",Sport & Leisure,Supplies & Services,Provisions,BIKOLD,10/11/2023,581.81
"Communities, Customer & Commercial Services",Sport & Leisure,Supplies & Services,Provisions,BIKOLD,10/11/2023,278.02
"Communities, Customer & Commercial Services",Sport & Leisure,Supplies & Services,Provisions,BIKOLD,10/11/2023,117.05
"Communities, Customer & Commercial Services",Sport & Leisure,Supplies & Services,Provisions,BIKOLD,10/11/2023,130.21
"Communities, Customer & Commercial Services",Sport & Leisure,Supplies & Services,Provisions,BIKOLD,10/11/2023,159.70
"Communities, Customer & Commercial Services",Sport & Leisure,Supplies & Services,Provisions,BIKOLD,10/11/2023,172.26
"Communities, Customer & Commercial Services",Sport & Leisure,Supplies & Services,Provisions,BIKOLD,10/11/2023,211.18
"Communities, Customer & Commercial Services",Sport & Leisure,Supplies & Services,Provisions,BIKOLD,10/11/2023,110.72
"Communities, Customer & Commercial Services",Sport & Leisure,Supplies & Services,Provisions,BIKOLD,10/11/2023,178.82
"Communities, Customer & Commercial Services",Sport & Leisure,Supplies & Services,Provisions,BIKOLD,10/11/2023,106.77
"Communities, Customer & Commercial Services",Sport & Leisure,Supplies & Services,Provisions,BIKOLD,10/11/2023,145.91
"Communities, Customer & Commercial Services",Sport & Leisure,Supplies & Services,Provisions,BIKOLD,10/11/2023,139.43
"Communities, Customer & Commercial Services",Sport & Leisure,Supplies & Services,Provisions,BIKOLD,10/11/2023,104.50
"Communities, Customer & Commercial Services",Sport & Leisure,Supplies & Services,Provisions,BIKOLD,10/11/2023,276.30
"Communities, Customer & Commercial Services",Sport & Leisure,Supplies & Services,Provisions,BIKOLD,10/11/2023,151.13
"Communities, Customer & Commercial Services",Sport & Leisure,Supplies & Services,Provisions,BIKOLD,10/11/2023,248.16
"Communities, Customer & Commercial Services",Sport & Leisure,Supplies & Services,Provisions,BIKOLD,10/11/2023,515.58
"Communities, Customer & Commercial Services",Sport & Leisure,Supplies & Services,Provisions,BIKOLD,10/11/2023,162.63
"Communities, Customer & Commercial Services",Sport & Leisure,Supplies & Services,Provisions,BIKOLD,10/11/2023,183.61
"Communities, Customer & Commercial Services",Sport & Leisure,Supplies & Services,Provisions,BIKOLD,10/11/2023,101.37
"Communities, Customer & Commercial Services",Sport & Leisure,Supplies & Services,Provisions,BIKOLD,10/11/2023,156.42
"Communities, Customer & Commercial Services",Sport & Leisure,Supplies & Services,Provisions,BIKOLD,10/11/2023,212.29
"Communities, Customer & Commercial Services",Sport & Leisure,Supplies & Services,Provisions,BIKOLD,10/11/2023,211.91
"Communities, Customer & Commercial Services",Sport & Leisure,Supplies & Services,Provisions,BIKOLD,10/11/2023,208.30
"Communities, Customer & Commercial Services",Sport & Leisure,Supplies & Services,Provisions,BIKOLD,10/11/2023,401.52
"Communities, Customer & Commercial Services",Sport & Leisure,Supplies & Services,Provisions,BIKOLD,10/11/2023,130.29
"Communities, Customer & Commercial Services",Sport & Leisure,Supplies & Services,Provisions,BIKOLD,10/11/2023,272.18
"Communities, Customer & Commercial Services",Sport & Leisure,Supplies & Services,Provisions,BIKOLD,10/11/2023,190.37
"Communities, Customer & Commercial Services",Sport & Leisure,Supplies & Services,Provisions,BIKOLD,10/11/2023,433.25
"Communities, Customer & Commercial Services",Sport & Leisure,Supplies & Services,Provisions,BIKOLD,10/11/2023,165.36
"Communities, Customer & Commercial Services",Sport & Leisure,Supplies & Services,Provisions,BIKOLD,10/11/2023,129.57
"Communities, Customer & Commercial Services",Sport & Leisure,Supplies & Services,Provisions,BIKOLD,10/11/2023,398.68
"Communities, Customer & Commercial Services",Sport & Leisure,Supplies & Services,Provisions,BIKOLD,10/11/2023,513.38
"Communities, Customer & Commercial Services",Sport & Leisure,Supplies & Services,Provisions,BIKOLD,10/11/2023,293.27
"Communities, Customer & Commercial Services",Sport & Leisure,Supplies & Services,Provisions,BIKOLD,10/11/2023,109.31
"Communities, Customer & Commercial Services",Sport & Leisure,Supplies & Services,Provisions,BIKOLD,10/11/2023,102.40
"Communities, Customer & Commercial Services",Sport & Leisure,Supplies & Services,Provisions,BIKOLD,10/11/2023,268.24
"Communities, Customer & Commercial Services",Sport & Leisure,Supplies & Services,Provisions,BIKOLD,10/11/2023,110.65
"Communities, Customer & Commercial Services",Sport & Leisure,Supplies & Services,Provisions,BIKOLD,10/11/2023,388.28
"Communities, Customer & Commercial Services",Sport & Leisure,Supplies & Services,Provisions,BIKOLD,10/11/2023,361.12
"Communities, Customer & Commercial Services",Sport & Leisure,Supplies & Services,Provisions,BIKOLD,10/11/2023,265.03
"Communities, Customer & Commercial Services",Sport & Leisure,Supplies & Services,Provisions,BIKOLD,10/11/2023,117.12
"Communities, Customer & Commercial Services",Sport & Leisure,Supplies & Services,Provisions,BIKOLD,10/11/2023,403.88
"Communities, Customer & Commercial Services",Sport & Leisure,Supplies & Services,Provisions,BIKOLD,10/11/2023,149.77
"Communities, Customer & Commercial Services",Sport & Leisure,Supplies & Services,Provisions,BIKOLD,10/11/2023,655.61
"Communities, Customer & Commercial Services",Sport & Leisure,Supplies & Services,Provisions,BIKOLD,10/11/2023,110.53
"Communities, Customer & Commercial Services",Sport & Leisure,Supplies & Services,Provisions,BIKOLD,10/11/2023,232.71
"Communities, Customer & Commercial Services",Sport & Leisure,Supplies & Services,Provisions,BIKOLD,10/11/2023,145.97
"Communities, Customer & Commercial Services",Sport & Leisure,Supplies & Services,Provisions,BIKOLD,10/11/2023,129.80
"Communities, Customer & Commercial Services",Sport & Leisure,Supplies & Services,Provisions,BIKOLD,10/11/2023,156.04
"Communities, Customer & Commercial Services",Sport & Leisure,Supplies & Services,Provisions,BIKOLD,10/11/2023,459.82
"Communities, Customer & Commercial Services",Sport & Leisure,Supplies & Services,Provisions,BIKOLD,10/11/2023,359.36
"Communities, Customer & Commercial Services",Sport & Leisure,Supplies & Services,Provisions,BIKOLD,10/11/2023,354.50
"Communities, Customer & Commercial Services",Sport & Leisure,Supplies & Services,Provisions,BIKOLD,10/11/2023,158.50
"Communities, Customer & Commercial Services",Sport & Leisure,Supplies & Services,Provisions,BIKOLD,10/11/2023,132.39
"Communities, Customer & Commercial Services",Sport & Leisure,Supplies & Services,Provisions,BIKOLD,10/11/2023,230.55
"Communities, Customer & Commercial Services",Sport & Leisure,Supplies & Services,Provisions,BIKOLD,10/11/2023,136.22
"Communities, Customer & Commercial Services",Sport & Leisure,Supplies & Services,Provisions,BIKOLD,10/11/2023,361.86
"Communities, Customer & Commercial Services",Sport & Leisure,Supplies & Services,Provisions,BIKOLD,10/11/2023,236.68
"Communities, Customer & Commercial Services",Sport & Leisure,Supplies & Services,Provisions,BIKOLD,10/11/2023,367.45
"Communities, Customer & Commercial Services",Sport & Leisure,Supplies & Services,Provisions,BIKOLD,10/11/2023,285.12
"Communities, Customer & Commercial Services",Sport & Leisure,Supplies & Services,Provisions,BIKOLD,10/11/2023,275.79
"Communities, Customer & Commercial Services",Sport & Leisure,Supplies & Services,Provisions,BIKOLD,10/11/2023,367.78
"Communities, Customer & Commercial Services",Sport & Leisure,Supplies & Services,Provisions,BIKOLD,10/11/2023,115.66
"Communities, Customer & Commercial Services",Sport & Leisure,Supplies & Services,Provisions,BIKOLD,16/11/2023,185.73
"Communities, Customer & Commercial Services",Sport & Leisure,Supplies & Services,Provisions,BIKOLD,16/11/2023,220.94
"Communities, Customer & Commercial Services",Sport & Leisure,Supplies & Services,Provisions,BIKOLD,16/11/2023,118.22
"Communities, Customer & Commercial Services",Sport & Leisure,Supplies & Services,Provisions,BIKOLD,16/11/2023,236.16
"Communities, Customer & Commercial Services",Sport & Leisure,Supplies & Services,Provisions,BIKOLD,16/11/2023,163.38
"Communities, Customer & Commercial Services",Sport & Leisure,Supplies & Services,Provisions,BIKOLD,16/11/2023,168.35
"Communities, Customer & Commercial Services",Sport & Leisure,Supplies & Services,Provisions,BIKOLD,16/11/2023,392.69
"Communities, Customer & Commercial Services",Sport & Leisure,Supplies & Services,Provisions,BIKOLD,16/11/2023,247.15
"Communities, Customer & Commercial Services",Sport & Leisure,Supplies & Services,Provisions,BIKOLD,16/11/2023,169.77
"Communities, Customer & Commercial Services",Sport & Leisure,Supplies & Services,Provisions,BIKOLD,16/11/2023,151.90
"Communities, Customer & Commercial Services",Sport & Leisure,Supplies & Services,Provisions,BIKOLD,16/11/2023,108.42
"Communities, Customer & Commercial Services",Sport & Leisure,Supplies & Services,Provisions,BIKOLD,16/11/2023,297.34
"Communities, Customer & Commercial Services",Sport & Leisure,Supplies & Services,Provisions,BIKOLD,16/11/2023,106.98
"Communities, Customer & Commercial Services",Sport & Leisure,Supplies & Services,Provisions,BIKOLD,16/11/2023,313.89
"Communities, Customer & Commercial Services",Sport & Leisure,Supplies & Services,Provisions,BIKOLD,16/11/2023,157.32
"Communities, Customer & Commercial Services",Sport & Leisure,Supplies & Services,Provisions,BIKOLD,16/11/2023,514.75
"Communities, Customer & Commercial Services",Sport & Leisure,Supplies & Services,Provisions,BIKOLD,16/11/2023,140.03
"Communities, Customer & Commercial Services",Sport & Leisure,Supplies & Services,Provisions,BIKOLD,16/11/2023,133.59
"Communities, Customer & Commercial Services",Sport & Leisure,Supplies & Services,Provisions,BIKOLD,16/11/2023,168.83
"Communities, Customer & Commercial Services",Sport & Leisure,Supplies & Services,Provisions,BIKOLD,16/11/2023,476.25
"Communities, Customer & Commercial Services",Sport & Leisure,Supplies & Services,Provisions,BIKOLD,16/11/2023,169.82
"Communities, Customer & Commercial Services",Sport & Leisure,Supplies & Services,Provisions,BIKOLD,16/11/2023,254.38
"Communities, Customer & Commercial Services",Sport & Leisure,Supplies & Services,Provisions,BIKOLD,16/11/2023,356.65
"Communities, Customer & Commercial Services",Sport & Leisure,Supplies & Services,Provisions,BIKOLD,16/11/2023,167.86
"Communities, Customer & Commercial Services",Sport & Leisure,Supplies & Services,Provisions,BIKOLD,16/11/2023,204.97
"Communities, Customer & Commercial Services",Sport & Leisure,Supplies & Services,Provisions,BIKOLD,16/11/2023,318.54
"Communities, Customer & Commercial Services",Sport & Leisure,Supplies & Services,Provisions,BIKOLD,16/11/2023,157.45
"Communities, Customer & Commercial Services",Sport & Leisure,Supplies & Services,Provisions,BIKOLD,16/11/2023,326.38
"Communities, Customer & Commercial Services",Sport & Leisure,Supplies & Services,Provisions,BIKOLD,16/11/2023,363.01
"Communities, Customer & Commercial Services",Sport & Leisure,Supplies & Services,Provisions,BIKOLD,16/11/2023,175.34
"Communities, Customer & Commercial Services",Sport & Leisure,Supplies & Services,Provisions,BIKOLD,16/11/2023,295.77
"Communities, Customer & Commercial Services",Sport & Leisure,Supplies & Services,Provisions,BIKOLD,16/11/2023,139.54
"Communities, Customer & Commercial Services",Sport & Leisure,Supplies & Services,Provisions,BIKOLD,16/11/2023,494.89
"Communities, Customer & Commercial Services",Sport & Leisure,Supplies & Services,Provisions,BIKOLD,16/11/2023,168.48
"Communities, Customer & Commercial Services",Sport & Leisure,Supplies & Services,Provisions,BIKOLD,16/11/2023,171.91
"Communities, Customer & Commercial Services",Sport & Leisure,Supplies & Services,Provisions,BIKOLD,16/11/2023,503.81
"Communities, Customer & Commercial Services",Sport & Leisure,Supplies & Services,Provisions,BIKOLD,16/11/2023,100.46
"Communities, Customer & Commercial Services",Sport & Leisure,Supplies & Services,Provisions,BIKOLD,16/11/2023,128.17
"Communities, Customer & Commercial Services",Sport & Leisure,Supplies & Services,Provisions,BIKOLD,16/11/2023,491.01
"Communities, Customer & Commercial Services",Sport & Leisure,Supplies & Services,Provisions,BIKOLD,16/11/2023,544.95
"Communities, Customer & Commercial Services",Sport & Leisure,Supplies & Services,Provisions,BIKOLD,16/11/2023,350.03
"Communities, Customer & Commercial Services",Sport & Leisure,Supplies & Services,Provisions,BIKOLD,16/11/2023,109.38
"Communities, Customer & Commercial Services",Sport & Leisure,Supplies & Services,Provisions,BIKOLD,16/11/2023,416.51
"Communities, Customer & Commercial Services",Sport & Leisure,Supplies & Services,Provisions,BIKOLD,16/11/2023,353.43
"Communities, Customer & Commercial Services",Sport & Leisure,Supplies & Services,Provisions,BIKOLD,16/11/2023,138.35
"Communities, Customer & Commercial Services",Sport & Leisure,Supplies & Services,Provisions,BIKOLD,16/11/2023,131.33
"Communities, Customer & Commercial Services",Sport & Leisure,Supplies & Services,Provisions,BIKOLD,16/11/2023,158.02
"Communities, Customer & Commercial Services",Sport & Leisure,Supplies & Services,Provisions,BIKOLD,16/11/2023,242.35
"Communities, Customer & Commercial Services",Sport & Leisure,Supplies & Services,Provisions,BIKOLD,16/11/2023,290.92
"Communities, Customer & Commercial Services",Sport & Leisure,Supplies & Services,Provisions,BIKOLD,16/11/2023,357.43
"Communities, Customer & Commercial Services",Sport & Leisure,Supplies & Services,Provisions,BIKOLD,16/11/2023,277.84
"Communities, Customer & Commercial Services",Sport & Leisure,Supplies & Services,Provisions,BIKOLD,16/11/2023,108.75
"Communities, Customer & Commercial Services",Sport & Leisure,Supplies & Services,Provisions,BIKOLD,16/11/2023,390.07
"Communities, Customer & Commercial Services",Sport & Leisure,Supplies & Services,Provisions,BIKOLD,16/11/2023,273.63
"Communities, Customer & Commercial Services",Sport & Leisure,Supplies & Services,Provisions,BIKOLD,16/11/2023,303.57
"Communities, Customer & Commercial Services",Sport & Leisure,Supplies & Services,Provisions,BIKOLD,16/11/2023,335.34
"Communities, Customer & Commercial Services",Sport & Leisure,Supplies & Services,Provisions,BIKOLD,16/11/2023,147.20
"Communities, Customer & Commercial Services",Sport & Leisure,Supplies & Services,Provisions,BIKOLD,16/11/2023,260.13
"Communities, Customer & Commercial Services",Sport & Leisure,Supplies & Services,Provisions,BIKOLD,16/11/2023,170.76
"Communities, Customer & Commercial Services",Sport & Leisure,Supplies & Services,Provisions,BIKOLD,16/11/2023,559.93
"Communities, Customer & Commercial Services",Sport & Leisure,Supplies & Services,Provisions,BIKOLD,16/11/2023,410.55
"Communities, Customer & Commercial Services",Sport & Leisure,Supplies & Services,Provisions,BIKOLD,16/11/2023,476.94
"Communities, Customer & Commercial Services",Sport & Leisure,Supplies & Services,Provisions,BIKOLD,16/11/2023,140.72
"Communities, Customer & Commercial Services",Sport & Leisure,Supplies & Services,Provisions,BIKOLD,16/11/2023,181.56
"Communities, Customer & Commercial Services",Sport & Leisure,Supplies & Services,Provisions,BIKOLD,16/11/2023,340.35
"Communities, Customer & Commercial Services",Sport & Leisure,Supplies & Services,Provisions,BIKOLD,16/11/2023,261.73
"Communities, Customer & Commercial Services",Sport & Leisure,Supplies & Services,Provisions,BIKOLD,16/11/2023,360.16
"Communities, Customer & Commercial Services",Sport & Leisure,Supplies & Services,Provisions,BIKOLD,16/11/2023,101.74
"Communities, Customer & Commercial Services",Sport & Leisure,Supplies & Services,Provisions,BIKOLD,30/11/2023,248.25
"Communities, Customer & Commercial Services",Sport & Leisure,Supplies & Services,Provisions,BIKOLD,30/11/2023,409.75
"Communities, Customer & Commercial Services",Sport & Leisure,Supplies & Services,Provisions,BIKOLD,30/11/2023,152.59
"Communities, Customer & Commercial Services",Sport & Leisure,Supplies & Services,Provisions,BIKOLD,30/11/2023,495.88
"Communities, Customer & Commercial Services",Sport & Leisure,Supplies & Services,Provisions,BIKOLD,30/11/2023,778.34
"Communities, Customer & Commercial Services",Sport & Leisure,Supplies & Services,Provisions,BIKOLD,30/11/2023,209.35
"Communities, Customer & Commercial Services",Sport & Leisure,Supplies & Services,Provisions,BIKOLD,30/11/2023,353.97
"Communities, Customer & Commercial Services",Sport & Leisure,Supplies & Services,Provisions,BIKOLD,30/11/2023,424.98
"Communities, Customer & Commercial Services",Sport & Leisure,Supplies & Services,Provisions,BIKOLD,30/11/2023,217.89
"Communities, Customer & Commercial Services",Sport & Leisure,Supplies & Services,Provisions,BIKOLD,30/11/2023,304.04
"Communities, Customer & Commercial Services",Sport & Leisure,Supplies & Services,Provisions,BIKOLD,30/11/2023,167.52
"Communities, Customer & Commercial Services",Sport & Leisure,Supplies & Services,Provisions,BIKOLD,30/11/2023,144.07
"Communities, Customer & Commercial Services",Sport & Leisure,Supplies & Services,Provisions,BIKOLD,30/11/2023,291.57
"Communities, Customer & Commercial Services",Sport & Leisure,Supplies & Services,Provisions,BIKOLD,30/11/2023,130.63
"Communities, Customer & Commercial Services",Sport & Leisure,Supplies & Services,Provisions,BIKOLD,30/11/2023,347.10
"Communities, Customer & Commercial Services",Sport & Leisure,Supplies & Services,Provisions,BIKOLD,30/11/2023,218.41
"Communities, Customer & Commercial Services",Sport & Leisure,Supplies & Services,Provisions,BIKOLD,30/11/2023,195.57
"Communities, Customer & Commercial Services",Sport & Leisure,Supplies & Services,Provisions,BIKOLD,30/11/2023,344.93
"Communities, Customer & Commercial Services",Sport & Leisure,Supplies & Services,Provisions,BIKOLD,30/11/2023,226.47
"Communities, Customer & Commercial Services",Sport & Leisure,Supplies & Services,Provisions,BIKOLD,30/11/2023,410.15
"Communities, Customer & Commercial Services",Sport & Leisure,Supplies & Services,Provisions,BIKOLD,30/11/2023,390.14
"Communities, Customer & Commercial Services",Sport & Leisure,Supplies & Services,Provisions,BIKOLD,30/11/2023,321.65
"Communities, Customer & Commercial Services",Sport & Leisure,Supplies & Services,Provisions,BIKOLD,30/11/2023,417.28
"Communities, Customer & Commercial Services",Sport & Leisure,Supplies & Services,Provisions,BIKOLD,30/11/2023,464.13
"Communities, Customer & Commercial Services",Sport & Leisure,Supplies & Services,Provisions,BIKOLD,30/11/2023,355.82
"Communities, Customer & Commercial Services",Sport & Leisure,Supplies & Services,Provisions,BIKOLD,30/11/2023,265.73
"Communities, Customer & Commercial Services",Sport & Leisure,Supplies & Services,Provisions,BIKOLD,30/11/2023,169.90
"Communities, Customer & Commercial Services",Sport & Leisure,Supplies & Services,Provisions,BIKOLD,30/11/2023,136.34
"Communities, Customer & Commercial Services",Sport & Leisure,Supplies & Services,Provisions,BIKOLD,30/11/2023,265.38
"Communities, Customer & Commercial Services",Sport & Leisure,Supplies & Services,Provisions,BIKOLD,30/11/2023,349.96
"Communities, Customer & Commercial Services",Sport & Leisure,Supplies & Services,Provisions,BIKOLD,30/11/2023,255.18
"Communities, Customer & Commercial Services",Sport & Leisure,Supplies & Services,Provisions,BIKOLD,30/11/2023,119.04
"Communities, Customer & Commercial Services",Sport & Leisure,Supplies & Services,Provisions,BIKOLD,30/11/2023,209.20
"Communities, Customer & Commercial Services",Sport & Leisure,Supplies & Services,Provisions,BIKOLD,30/11/2023,210.54
"Communities, Customer & Commercial Services",Sport & Leisure,Supplies & Services,Provisions,BIKOLD,30/11/2023,119.75
"Communities, Customer & Commercial Services",Sport & Leisure,Supplies & Services,Provisions,BIKOLD,30/11/2023,245.90
"Communities, Customer & Commercial Services",Sport & Leisure,Supplies & Services,Provisions,BIKOLD,30/11/2023,310.81
"Communities, Customer & Commercial Services",Sport & Leisure,Supplies & Services,Provisions,BIKOLD,30/11/2023,111.39
"Communities, Customer & Commercial Services",Sport & Leisure,Supplies & Services,Provisions,BIKOLD,30/11/2023,340.52
"Communities, Customer & Commercial Services",Sport & Leisure,Supplies & Services,Provisions,BIKOLD,30/11/2023,216.58
"Communities, Customer & Commercial Services",Sport & Leisure,Supplies & Services,Provisions,BIKOLD,30/11/2023,149.67
"Communities, Customer & Commercial Services",Sport & Leisure,Supplies & Services,Provisions,BIKOLD,30/11/2023,194.38
"Communities, Customer & Commercial Services",Sport & Leisure,Supplies & Services,Provisions,BIKOLD,30/11/2023,188.11
"Communities, Customer & Commercial Services",Sport & Leisure,Supplies & Services,Provisions,BIKOLD,30/11/2023,394.00
"Communities, Customer & Commercial Services",Sport & Leisure,Supplies & Services,Provisions,BIKOLD,30/11/2023,162.51
"Communities, Customer & Commercial Services",Sport & Leisure,Supplies & Services,Provisions,BIKOLD,30/11/2023,253.02
"Communities, Customer & Commercial Services",Sport & Leisure,Supplies & Services,Provisions,BIKOLD,30/11/2023,159.07
"Communities, Customer & Commercial Services",Sport & Leisure,Supplies & Services,Provisions,BIKOLD,30/11/2023,133.91
"Communities, Customer & Commercial Services",Sport & Leisure,Supplies & Services,Provisions,BIKOLD,30/11/2023,265.25
"Communities, Customer & Commercial Services",Sport & Leisure,Supplies & Services,Provisions,BIKOLD,30/11/2023,424.33
"Communities, Customer & Commercial Services",Sport & Leisure,Supplies & Services,Provisions,BIKOLD,30/11/2023,551.46
"Communities, Customer & Commercial Services",Sport & Leisure,Supplies & Services,Provisions,BIKOLD,30/11/2023,287.18
"Communities, Customer & Commercial Services",Sport & Leisure,Supplies & Services,Provisions,BIKOLD,30/11/2023,355.06
"Communities, Customer & Commercial Services",Sport & Leisure,Supplies & Services,Provisions,BIKOLD,30/11/2023,110.89
"Communities, Customer & Commercial Services",Sport & Leisure,Supplies & Services,Provisions,BIKOLD,30/11/2023,217.94
"Communities, Customer & Commercial Services",Sport & Leisure,Supplies & Services,Provisions,BIKOLD,30/11/2023,422.70
"Communities, Customer & Commercial Services",Sport & Leisure,Supplies & Services,Provisions,BIKOLD,30/11/2023,106.94
"Communities, Customer & Commercial Services",Sport & Leisure,Supplies & Services,Provisions,BIKOLD,30/11/2023,232.37
"Communities, Customer & Commercial Services",Sport & Leisure,Supplies & Services,Provisions,BIKOLD,30/11/2023,380.38
"Communities, Customer & Commercial Services",Sport & Leisure,Supplies & Services,Provisions,BIKOLD,30/11/2023,386.07
"Communities, Customer & Commercial Services",Sport & Leisure,Supplies & Services,Provisions,BIKOLD,30/11/2023,111.98
"Communities, Customer & Commercial Services",Sport & Leisure,Supplies & Services,Provisions,BIKOLD,30/11/2023,101.77
"Communities, Customer & Commercial Services",Sport & Leisure,Supplies & Services,Provisions,BIKOLD,30/11/2023,168.17
"Communities, Customer & Commercial Services",Sport & Leisure,Supplies & Services,Provisions,BIKOLD,30/11/2023,266.24
"Communities, Customer & Commercial Services",Sport & Leisure,Supplies & Services,Provisions,BIKOLD,30/11/2023,183.09
"Communities, Customer & Commercial Services",Sport & Leisure,Supplies & Services,Provisions,BIKOLD,30/11/2023,431.75
"Communities, Customer & Commercial Services",Sport & Leisure,Supplies & Services,Provisions,BIKOLD,30/11/2023,431.70
"Communities, Customer & Commercial Services",Sport & Leisure,Supplies & Services,Provisions,BIKOLD,30/11/2023,147.11
"Communities, Customer & Commercial Services",Sport & Leisure,Supplies & Services,Provisions,BIKOLD,30/11/2023,105.60
"Communities, Customer & Commercial Services",Sport & Leisure,Supplies & Services,Provisions,BIKOLD,30/11/2023,304.70
"Communities, Customer & Commercial Services",Sport & Leisure,Supplies & Services,Provisions,BIKOLD,30/11/2023,111.45
"Communities, Customer & Commercial Services",Sport & Leisure,Supplies & Services,Provisions,BIKOLD,30/11/2023,331.35
"Communities, Customer & Commercial Services",Sport & Leisure,Supplies & Services,Provisions,BIKOLD,30/11/2023,163.69
"Communities, Customer & Commercial Services",Sport & Leisure,Supplies & Services,Provisions,BIKOLD,30/11/2023,108.89
"Communities, Customer & Commercial Services",Sport & Leisure,Supplies & Services,Provisions,BIKOLD,30/11/2023,167.98
"Communities, Customer & Commercial Services",Sport & Leisure,Supplies & Services,Provisions,BIKOLD,30/11/2023,376.99
"Communities, Customer & Commercial Services",Sport & Leisure,Supplies & Services,Provisions,BIKOLD,30/11/2023,186.03
"Communities, Customer & Commercial Services",Sport & Leisure,Supplies & Services,Provisions,BIKOLD,30/11/2023,285.79
"Communities, Customer & Commercial Services",Sport & Leisure,Supplies & Services,Provisions,BIKOLD,30/11/2023,259.61
"Communities, Customer & Commercial Services",Sport & Leisure,Supplies & Services,Provisions,BIKOLD,30/11/2023,109.64
"Communities, Customer & Commercial Services",Sport & Leisure,Supplies & Services,Provisions,BIKOLD,30/11/2023,154.19
"Communities, Customer & Commercial Services",Sport & Leisure,Supplies & Services,Provisions,BIKOLD,30/11/2023,380.94
"Communities, Customer & Commercial Services",Sport & Leisure,Supplies & Services,Provisions,BIKOLD,30/11/2023,379.69
"Communities, Customer & Commercial Services",Sport & Leisure,Supplies & Services,Provisions,BIKOLD,30/11/2023,308.32
"Communities, Customer & Commercial Services",Sport & Leisure,Supplies & Services,Provisions,BIKOLD,30/11/2023,128.68
"Communities, Customer & Commercial Services",Sport & Leisure,Supplies & Services,Provisions,BIKOLD,30/11/2023,381.94
"Communities, Customer & Commercial Services",Sport & Leisure,Supplies & Services,Provisions,BIKOLD,30/11/2023,126.38
"Communities, Customer & Commercial Services",Sport & Leisure,Supplies & Services,Provisions,BIKOLD,30/11/2023,-126.22
"Communities, Customer & Commercial Services",Sport & Leisure,Supplies & Services,Provisions,BIKOLD,30/11/2023,162.60
"Communities, Customer & Commercial Services",Sport & Leisure,Supplies & Services,Provisions,BIKOLD,30/11/2023,194.81
"Communities, Customer & Commercial Services",Sport & Leisure,Supplies & Services,Provisions,BIKOLD,30/11/2023,126.21
"Communities, Customer & Commercial Services",Sport & Leisure,Supplies & Services,Provisions,BIKOLD,30/11/2023,196.27
"Communities, Customer & Commercial Services",Sport & Leisure,Supplies & Services,Provisions,BIKOLD,30/11/2023,290.10
"Communities, Customer & Commercial Services",Sport & Leisure,Supplies & Services,Provisions,BIKOLD,30/11/2023,615.03
"Communities, Customer & Commercial Services",Sport & Leisure,Supplies & Services,Provisions,BIKOLD,30/11/2023,248.63
"Communities, Customer & Commercial Services",Sport & Leisure,Supplies & Services,Provisions,BIKOLD,30/11/2023,228.99
"Communities, Customer & Commercial Services",Sport & Leisure,Supplies & Services,Provisions,BIKOLD,30/11/2023,160.45
"Communities, Customer & Commercial Services",Sport & Leisure,Supplies & Services,Provisions,BIKOLD,30/11/2023,177.79
"Communities, Customer & Commercial Services",Sport & Leisure,Supplies & Services,Provisions,BIKOLD,30/11/2023,610.48
"Communities, Customer & Commercial Services",Sport & Leisure,Supplies & Services,Provisions,BIKOLD,30/11/2023,325.50
"Communities, Customer & Commercial Services",Sport & Leisure,Supplies & Services,Provisions,BIKOLD,30/11/2023,182.02
"Communities, Customer & Commercial Services",Sport & Leisure,Supplies & Services,Provisions,BIKOLD,30/11/2023,100.65
"Communities, Customer & Commercial Services",Sport & Leisure,Supplies & Services,Provisions,BIKOLD,30/11/2023,169.78
"Communities, Customer & Commercial Services",Sport & Leisure,Supplies & Services,Provisions,BIKOLD,30/11/2023,765.50
"Communities, Customer & Commercial Services",Sport & Leisure,Supplies & Services,Provisions,BIKOLD,30/11/2023,168.49
"Communities, Customer & Commercial Services",Sport & Leisure,Supplies & Services,Provisions,BIKOLD,30/11/2023,125.36
"Communities, Customer & Commercial Services",Sport & Leisure,Supplies & Services,Provisions,BIKOLD,30/11/2023,131.71
"Communities, Customer & Commercial Services",Sport & Leisure,Supplies & Services,Provisions,BIKOLD,30/11/2023,320.76
"Communities, Customer & Commercial Services",Sport & Leisure,Supplies & Services,Provisions,BIKOLD,30/11/2023,240.61
"Communities, Customer & Commercial Services",Sport & Leisure,Supplies & Services,Provisions,BIKOLD,30/11/2023,342.31
"Communities, Customer & Commercial Services",Sport & Leisure,Supplies & Services,Provisions,BIKOLD,30/11/2023,570.98
"Communities, Customer & Commercial Services",Sport & Leisure,Supplies & Services,Provisions,BIKOLD,30/11/2023,503.90
"Communities, Customer & Commercial Services",Sport & Leisure,Supplies & Services,Provisions,BIKOLD,02/11/2023,180.41
"Communities, Customer & Commercial Services",Sport & Leisure,Supplies & Services,Provisions,BIKOLD,02/11/2023,234.95
"Communities, Customer & Commercial Services",Sport & Leisure,Supplies & Services,Provisions,BIKOLD,10/11/2023,256.75
"Communities, Customer & Commercial Services",Sport & Leisure,Supplies & Services,Provisions,BIKOLD,10/11/2023,593.63
"Communities, Customer & Commercial Services",Sport & Leisure,Supplies & Services,Provisions,BIKOLD,23/11/2023,"1,071.80"
"Communities, Customer & Commercial Services",Sport & Leisure,Supplies & Services,Provisions,BIKOLD,23/11/2023,186.91
"Communities, Customer & Commercial Services",Sport & Leisure,Supplies & Services,Provisions,BIKOLD,23/11/2023,173.80
"Communities, Customer & Commercial Services",Sport & Leisure,Supplies & Services,Provisions,BIKOLD,23/11/2023,261.48
"Communities, Customer & Commercial Services",Sport & Leisure,Supplies & Services,Provisions,BIKOLD,23/11/2023,107.43
"Communities, Customer & Commercial Services",Sport & Leisure,Supplies & Services,Provisions,BIKOLD,23/11/2023,203.44
"Communities, Customer & Commercial Services",Sport & Leisure,Supplies & Services,Provisions,BIKOLD,23/11/2023,398.52
"Communities, Customer & Commercial Services",Sport & Leisure,Supplies & Services,Provisions,BIKOLD,23/11/2023,"1,555.32"
"Communities, Customer & Commercial Services",Sport & Leisure,Supplies & Services,Provisions,BIKOLD,23/11/2023,475.74
"Communities, Customer & Commercial Services",Sport & Leisure,Supplies & Services,Provisions,BIKOLD,23/11/2023,193.14
"Communities, Customer & Commercial Services",Sport & Leisure,Supplies & Services,Provisions,BIKOLD,23/11/2023,277.15
"Communities, Customer & Commercial Services",Sport & Leisure,Supplies & Services,Provisions,BIKOLD,23/11/2023,403.68
"Communities, Customer & Commercial Services",Sport & Leisure,Supplies & Services,Provisions,BIKOLD,23/11/2023,383.50
"Communities, Customer & Commercial Services",Sport & Leisure,Supplies & Services,Provisions,BIKOLD,23/11/2023,298.07
"Communities, Customer & Commercial Services",Sport & Leisure,Supplies & Services,Provisions,BIKOLD,23/11/2023,587.43
"Communities, Customer & Commercial Services",Sport & Leisure,Supplies & Services,Provisions,BIKOLD,23/11/2023,"2,260.82"
"Communities, Customer & Commercial Services",Sport & Leisure,Supplies & Services,Provisions,BIKOLD,23/11/2023,593.63
"Communities, Customer & Commercial Services",Sport & Leisure,Supplies & Services,Provisions,BIKOLD,23/11/2023,204.98
"Communities, Customer & Commercial Services",Sport & Leisure,Supplies & Services,Provisions,BIKOLD,23/11/2023,420.22
"Communities, Customer & Commercial Services",Sport & Leisure,Supplies & Services,Provisions,BIKOLD,23/11/2023,229.99
"Communities, Customer & Commercial Services",Sport & Leisure,Supplies & Services,Provisions,BIKOLD,23/11/2023,248.90
"Communities, Customer & Commercial Services",Sport & Leisure,Supplies & Services,Provisions,BIKOLD,23/11/2023,793.86
"Communities, Customer & Commercial Services",Sport & Leisure,Supplies & Services,Provisions,BIKOLD,23/11/2023,105.56
"Communities, Customer & Commercial Services",Sport & Leisure,Supplies & Services,Provisions,BIKOLD,23/11/2023,495.46
"Communities, Customer & Commercial Services",Sport & Leisure,Supplies & Services,Provisions,BIKOLD,23/11/2023,709.55
"Communities, Customer & Commercial Services",Sport & Leisure,Supplies & Services,Provisions,BIKOLD,16/11/2023,122.54
"Communities, Customer & Commercial Services",Sport & Leisure,Supplies & Services,Provisions,BIKOLD,16/11/2023,295.27
"Communities, Customer & Commercial Services",Sport & Leisure,Supplies & Services,Provisions,BIKOLD,16/11/2023,"1,035.19"
"Communities, Customer & Commercial Services",Sport & Leisure,Supplies & Services,Provisions,BIKOLD,16/11/2023,327.58
"Communities, Customer & Commercial Services",Sport & Leisure,Supplies & Services,Provisions,BIKOLD,16/11/2023,169.39
"Communities, Customer & Commercial Services",Sport & Leisure,Supplies & Services,Provisions,BIKOLD,16/11/2023,232.37
"Communities, Customer & Commercial Services",Sport & Leisure,Supplies & Services,Provisions,BIKOLD,16/11/2023,813.03
"Communities, Customer & Commercial Services",Sport & Leisure,Supplies & Services,Provisions,BIKOLD,10/11/2023,"1,774.06"
"Communities, Customer & Commercial Services",Sport & Leisure,Supplies & Services,Provisions,BIKOLD,10/11/2023,255.33
"Communities, Customer & Commercial Services",Sport & Leisure,Supplies & Services,Provisions,BIKOLD,10/11/2023,642.14
"Communities, Customer & Commercial Services",Sport & Leisure,Supplies & Services,Provisions,BIKOLD,10/11/2023,123.50
"Communities, Customer & Commercial Services",Sport & Leisure,Supplies & Services,Provisions,BIKOLD,10/11/2023,379.56
"Communities, Customer & Commercial Services",Sport & Leisure,Supplies & Services,Provisions,BIKOLD,10/11/2023,956.56
"Communities, Customer & Commercial Services",Sport & Leisure,Supplies & Services,Provisions,BIKOLD,10/11/2023,161.02
"Communities, Customer & Commercial Services",Sport & Leisure,Supplies & Services,Provisions,BIKOLD,10/11/2023,302.82
"Communities, Customer & Commercial Services",Sport & Leisure,Supplies & Services,Provisions,BIKOLD,10/11/2023,"2,260.82"
"Communities, Customer & Commercial Services",Sport & Leisure,Supplies & Services,Provisions,BIKOLD,10/11/2023,277.48
"Communities, Customer & Commercial Services",Sport & Leisure,Supplies & Services,Provisions,BIKOLD,10/11/2023,252.60
"Communities, Customer & Commercial Services",Sport & Leisure,Supplies & Services,Provisions,BIKOLD,10/11/2023,203.28
"Communities, Customer & Commercial Services",Sport & Leisure,Supplies & Services,Provisions,BIKOLD,10/11/2023,404.17
"Communities, Customer & Commercial Services",Sport & Leisure,Supplies & Services,Provisions,BIKOLD,10/11/2023,100.83
"Communities, Customer & Commercial Services",Sport & Leisure,Supplies & Services,Provisions,BIKOLD,10/11/2023,166.24
"Communities, Customer & Commercial Services",Sport & Leisure,Supplies & Services,Provisions,BIKOLD,10/11/2023,424.44
"Communities, Customer & Commercial Services",Sport & Leisure,Supplies & Services,Provisions,BIKOLD,10/11/2023,151.50
"Communities, Customer & Commercial Services",Sport & Leisure,Supplies & Services,Provisions,BIKOLD,10/11/2023,459.95
"Communities, Customer & Commercial Services",Sport & Leisure,Supplies & Services,Provisions,BIKOLD,10/11/2023,215.80
"Communities, Customer & Commercial Services",Sport & Leisure,Supplies & Services,Provisions,BIKOLD,10/11/2023,708.10
"Communities, Customer & Commercial Services",Sport & Leisure,Supplies & Services,Provisions,BIKOLD,10/11/2023,678.61
"Communities, Customer & Commercial Services",Sport & Leisure,Supplies & Services,Provisions,BIKOLD,10/11/2023,538.07
"Communities, Customer & Commercial Services",Sport & Leisure,Supplies & Services,Provisions,BIKOLD,16/11/2023,197.60
"Communities, Customer & Commercial Services",Sport & Leisure,Supplies & Services,Provisions,BIKOLD,16/11/2023,678.51
"Communities, Customer & Commercial Services",Sport & Leisure,Supplies & Services,Provisions,BIKOLD,16/11/2023,164.71
"Communities, Customer & Commercial Services",Sport & Leisure,Supplies & Services,Provisions,BIKOLD,16/11/2023,782.74
"Communities, Customer & Commercial Services",Sport & Leisure,Supplies & Services,Provisions,BIKOLD,16/11/2023,532.84
"Communities, Customer & Commercial Services",Sport & Leisure,Supplies & Services,Provisions,BIKOLD,16/11/2023,253.22
"Communities, Customer & Commercial Services",Sport & Leisure,Supplies & Services,Provisions,BIKOLD,16/11/2023,433.99
"Communities, Customer & Commercial Services",Sport & Leisure,Supplies & Services,Provisions,BIKOLD,16/11/2023,178.59
"Communities, Customer & Commercial Services",Sport & Leisure,Supplies & Services,Provisions,BIKOLD,16/11/2023,859.39
"Communities, Customer & Commercial Services",Sport & Leisure,Supplies & Services,Provisions,BIKOLD,16/11/2023,340.04
"Communities, Customer & Commercial Services",Sport & Leisure,Supplies & Services,Provisions,BIKOLD,16/11/2023,450.06
"Communities, Customer & Commercial Services",Sport & Leisure,Supplies & Services,Provisions,BIKOLD,30/11/2023,130.07
"Communities, Customer & Commercial Services",Sport & Leisure,Supplies & Services,Provisions,BIKOLD,30/11/2023,303.96
"Communities, Customer & Commercial Services",Sport & Leisure,Supplies & Services,Provisions,BIKOLD,30/11/2023,169.83
"Communities, Customer & Commercial Services",Sport & Leisure,Supplies & Services,Provisions,BIKOLD,30/11/2023,328.19
"Communities, Customer & Commercial Services",Sport & Leisure,Supplies & Services,Provisions,BIKOLD,30/11/2023,135.92
"Communities, Customer & Commercial Services",Sport & Leisure,Supplies & Services,Provisions,BIKOLD,30/11/2023,759.89
"Communities, Customer & Commercial Services",Sport & Leisure,Supplies & Services,Provisions,BIKOLD,30/11/2023,780.37
"Communities, Customer & Commercial Services",Sport & Leisure,Supplies & Services,Provisions,BIKOLD,30/11/2023,190.00
"Communities, Customer & Commercial Services",Sport & Leisure,Supplies & Services,Provisions,BIKOLD,30/11/2023,237.18
"Communities, Customer & Commercial Services",Sport & Leisure,Supplies & Services,Provisions,BIKOLD,30/11/2023,157.26
"Communities, Customer & Commercial Services",Sport & Leisure,Supplies & Services,Provisions,BIKOLD,30/11/2023,242.59
"Communities, Customer & Commercial Services",Sport & Leisure,Supplies & Services,Provisions,BIKOLD,30/11/2023,444.27
"Communities, Customer & Commercial Services",Sport & Leisure,Supplies & Services,Provisions,BIKOLD,30/11/2023,278.26
"Communities, Customer & Commercial Services",Sport & Leisure,Supplies & Services,Provisions,BIKOLD,30/11/2023,"1,518.14"
"Communities, Customer & Commercial Services",Sport & Leisure,Supplies & Services,Provisions,BIKOLD,30/11/2023,212.29
"Communities, Customer & Commercial Services",Sport & Leisure,Supplies & Services,Provisions,BIKOLD,30/11/2023,164.81
"Communities, Customer & Commercial Services",Sport & Leisure,Supplies & Services,Provisions,BIKOLD,30/11/2023,152.68
"Communities, Customer & Commercial Services",Sport & Leisure,Supplies & Services,Provisions,BIKOLD,30/11/2023,326.19
"Communities, Customer & Commercial Services",Sport & Leisure,Supplies & Services,Provisions,BIKOLD,30/11/2023,484.29
"Communities, Customer & Commercial Services",Sport & Leisure,Supplies & Services,Provisions,BIKOLD,30/11/2023,977.11
"Communities, Customer & Commercial Services",Sport & Leisure,Supplies & Services,Provisions,BIKOLD,30/11/2023,530.37
"Communities, Customer & Commercial Services",Sport & Leisure,Supplies & Services,Provisions,BIKOLD,30/11/2023,135.10
"Communities, Customer & Commercial Services",Sport & Leisure,Supplies & Services,Provisions,BIKOLD,02/11/2023,-453.98
"Communities, Customer & Commercial Services",Sport & Leisure,Supplies & Services,Provisions,BIKOLD,10/11/2023,102.42
"Communities, Customer & Commercial Services",Sport & Leisure,Supplies & Services,Provisions,BIKOLD,10/11/2023,455.96
"Communities, Customer & Commercial Services",Sport & Leisure,Supplies & Services,Provisions,BIKOLD,16/11/2023,116.76
"Communities, Customer & Commercial Services",Sport & Leisure,Supplies & Services,Provisions,BIKOLD,30/11/2023,438.36
"Communities, Customer & Commercial Services",Sport & Leisure,Supplies & Services,Provisions,BIKOLD,30/11/2023,130.15
"Communities, Customer & Commercial Services",Sport & Leisure,Supplies & Services,Provisions,BIKOLD,02/11/2023,560.46
"Communities, Customer & Commercial Services",Sport & Leisure,Supplies & Services,Provisions,BIKOLD,02/11/2023,419.43
"Communities, Customer & Commercial Services",Sport & Leisure,Supplies & Services,Provisions,BIKOLD,02/11/2023,478.08
"Communities, Customer & Commercial Services",Sport & Leisure,Supplies & Services,Provisions,BIKOLD,23/11/2023,568.18
"Communities, Customer & Commercial Services",Sport & Leisure,Supplies & Services,Provisions,BIKOLD,23/11/2023,683.16
"Communities, Customer & Commercial Services",Sport & Leisure,Supplies & Services,Provisions,BIKOLD,23/11/2023,497.33
"Communities, Customer & Commercial Services",Sport & Leisure,Supplies & Services,Provisions,BIKOLD,23/11/2023,108.99
"Communities, Customer & Commercial Services",Sport & Leisure,Supplies & Services,Provisions,BIKOLD,23/11/2023,427.28
"Communities, Customer & Commercial Services",Sport & Leisure,Supplies & Services,Provisions,BIKOLD,16/11/2023,232.45
"Communities, Customer & Commercial Services",Sport & Leisure,Supplies & Services,Provisions,BIKOLD,16/11/2023,293.09
"Communities, Customer & Commercial Services",Sport & Leisure,Supplies & Services,Provisions,BIKOLD,16/11/2023,132.23
"Communities, Customer & Commercial Services",Sport & Leisure,Supplies & Services,Provisions,BIKOLD,10/11/2023,418.88
"Communities, Customer & Commercial Services",Sport & Leisure,Supplies & Services,Provisions,BIKOLD,10/11/2023,156.84
"Communities, Customer & Commercial Services",Sport & Leisure,Supplies & Services,Provisions,BIKOLD,10/11/2023,215.97
"Communities, Customer & Commercial Services",Sport & Leisure,Supplies & Services,Provisions,BIKOLD,10/11/2023,211.19
"Communities, Customer & Commercial Services",Sport & Leisure,Supplies & Services,Provisions,BIKOLD,10/11/2023,336.65
"Communities, Customer & Commercial Services",Sport & Leisure,Supplies & Services,Provisions,BIKOLD,30/11/2023,463.63
"Communities, Customer & Commercial Services",Sport & Leisure,Supplies & Services,Provisions,BIKOLD,30/11/2023,112.91
"Communities, Customer & Commercial Services",Community Services,Supplies & Services,Grants To Voluntary Organis,DONNINGTON & MUXTON PARISH COUNCIL,01/11/2023,300.00
Finance & Human Resources,Human Resources,Supplies & Services,Doctors Fees,DONNINGTON MEDICAL PRACTICE,29/11/2023,155.00
Corporate Items,Corporate Codes,Premises-Related Expenditure,Hire Of Rooms,DONNINGTON PARTNERSHIP CIO,23/11/2023,120.00
Education & Skills,Skills,Premises-Related Expenditure,Hire Of Rooms,DONNINGTON PARTNERSHIP CIO,15/11/2023,493.00
Health & Wellbeing,Health Improvement,Premises-Related Expenditure,Hire Of Rooms,DONNINGTON PARTNERSHIP CIO,01/11/2023,231.00
Prosperity & Investment,Regeneration & Investment,Premises-Related Expenditure,R&M -Building Other,DOOR LOADING SERVICES UK LTD,02/11/2023,860.00
Education & Skills,Education & Skills,Capital Expenditure,Payments to Contractor,DR.E. Contractors LTD,16/11/2023,"24,969.62"
Education & Skills,Education & Skills,Capital Expenditure,Payments to Contractor,DR.E. Contractors LTD,14/11/2023,"3,656.50"
Health & Wellbeing,Consultant in Public Health,Supplies & Services,Sub Contractors,Dudley Group of Hospitals NHS Foundation Trust,22/11/2023,134.00
"Communities, Customer & Commercial Services",Customer Relationships & Welfare Services,Employees,Staff Training,DUDLEY METROPOLITAN BOROUGH COUNCIL,01/11/2023,280.00
Neighbourhood & Enforcement Services,Enforcement,Capital Expenditure,Fixtures & Fittings & Equipment,EarthSense Systems Limited,27/11/2023,750.00
Neighbourhood & Enforcement Services,Enforcement,Capital Expenditure,Fixtures & Fittings & Equipment,EarthSense Systems Limited,30/11/2023,"54,414.00"
Adult Social Care,Prevention & Independence - Older Adults & Disability,Supplies & Services,Aids & Appliances,Easylink,06/11/2023,104.59
Adult Social Care,Prevention & Independence - Older Adults & Disability,Supplies & Services,Aids & Appliances,Easylink,09/11/2023,126.72
"Communities, Customer & Commercial Services",Customer Relationships & Welfare Services,Employees,Agency Supply Costs,E B LTD,09/11/2023,607.50
"Communities, Customer & Commercial Services",Customer Relationships & Welfare Services,Employees,Agency Supply Costs,E B LTD,13/11/2023,"1,012.50"
"Communities, Customer & Commercial Services",Customer Relationships & Welfare Services,Employees,Agency Supply Costs,E B LTD,28/11/2023,"1,012.50"
"Communities, Customer & Commercial Services",Customer Relationships & Welfare Services,Employees,Agency Supply Costs,E B LTD,28/11/2023,"1,012.50"
"Communities, Customer & Commercial Services",Customer Relationships & Welfare Services,Employees,Agency Supply Costs,E B LTD,28/11/2023,"1,012.50"
"Communities, Customer & Commercial Services",Customer Relationships & Welfare Services,Employees,Agency Supply Costs,E B LTD,28/11/2023,"1,012.50"
"Communities, Customer & Commercial Services",Customer Relationships & Welfare Services,Employees,Agency Supply Costs,E B LTD,28/11/2023,992.25
"Communities, Customer & Commercial Services",Customer Relationships & Welfare Services,Employees,Agency Supply Costs,E B LTD,28/11/2023,560.25
"Communities, Customer & Commercial Services",Customer Relationships & Welfare Services,Employees,Agency Supply Costs,E B LTD,27/11/2023,"1,012.50"
"Communities, Customer & Commercial Services",Culture & Events,Supplies & Services,Confectionery & Snacks,E F Hulleys,27/11/2023,121.60
"Communities, Customer & Commercial Services",Culture & Events,Supplies & Services,Confectionery & Snacks,E F Hulleys,23/11/2023,120.00
"Communities, Customer & Commercial Services",Culture & Events,Supplies & Services,Confectionery & Snacks,E F Hulleys,23/11/2023,168.00
"Communities, Customer & Commercial Services",Culture & Events,Supplies & Services,Confectionery & Snacks,E F Hulleys,23/11/2023,120.00
Prosperity & Investment,Development Management,Employees,Training Expenses,Edinburgh Napier University,09/11/2023,"2,383.00"
Prosperity & Investment,Development Management,Employees,Training Expenses,Edinburgh Napier University ,09/11/2023,795.00
Prosperity & Investment,Development Management,Employees,Training Expenses,Edinburgh Napier University ,09/11/2023,795.00
Prosperity & Investment,BiT,Premises-Related Expenditure,R&M -Buildings DLO Charge,EELECTRICAL LTD,30/11/2023,370.00
Education & Skills,Consultancy & Advisory Services,Supplies & Services,Other Grants (Expenses),Educating Kids Outdoors Ltd,29/11/2023,750.00
"Communities, Customer & Commercial Services",Culture & Events,Supplies & Services,Artistes Fees,E Live Ltd,13/11/2023,"5,172.14"
"Communities, Customer & Commercial Services",Culture & Events,Supplies & Services,Artistes Fees,E Live Ltd,23/11/2023,"7,259.31"
Prosperity & Investment,BiT,Premises-Related Expenditure,R&M -Buildings DLO Charge,E Limited,14/11/2023,539.00
Prosperity & Investment,BiT,Premises-Related Expenditure,R&M -Buildings DLO Charge,E Limited,28/11/2023,180.90
Prosperity & Investment,BiT,Premises-Related Expenditure,R&M -Buildings DLO Charge,E Limited,13/11/2023,898.00
"Housing, Employment & Infrastructure",Inward Investment & Business Support,Capital Expenditure,Expenditure on loans & other financial assistance,E Cafe Limited,14/11/2023,"10,000.00"
Education & Skills,Consultancy & Advisory Services,Supplies & Services,Graphic Design Charges,EMERGE DESIGN LTD,10/11/2023,693.00
Adult Social Care,Community Social Work & Adult Safeguarding,Supplies & Services,Other Grants (Expenses),Engaging Communities Solutions CIC,09/11/2023,"25,000.00"
Neighbourhood & Enforcement Services,Strategic Transport & Highway Network Management,Transport-Related Expenditure,Outside Hire,Enterprise Flexi Rent,03/11/2023,686.42
Neighbourhood & Enforcement Services,Strategic Transport & Highway Network Management,Transport-Related Expenditure,Outside Hire,Enterprise Flexi Rent,20/11/2023,"1,349.79"
Neighbourhood & Enforcement Services,Strategic Transport & Highway Network Management,Transport-Related Expenditure,Outside Hire,Enterprise Flexi Rent,20/11/2023,"1,349.79"
Neighbourhood & Enforcement Services,Strategic Transport & Highway Network Management,Transport-Related Expenditure,Outside Hire,Enterprise Flexi Rent,20/11/2023,"1,349.79"
Neighbourhood & Enforcement Services,Strategic Transport & Highway Network Management,Transport-Related Expenditure,Outside Hire,Enterprise Flexi Rent,20/11/2023,"1,349.79"
Neighbourhood & Enforcement Services,Strategic Transport & Highway Network Management,Transport-Related Expenditure,Outside Hire,Enterprise Flexi Rent,20/11/2023,"1,349.79"
Neighbourhood & Enforcement Services,Strategic Transport & Highway Network Management,Transport-Related Expenditure,Outside Hire,Enterprise Flexi Rent,27/11/2023,664.28
Neighbourhood & Enforcement Services,Strategic Transport & Highway Network Management,Transport-Related Expenditure,Outside Hire,Enterprise Flexi Rent,27/11/2023,"1,560.00"
Neighbourhood & Enforcement Services,Strategic Transport & Highway Network Management,Transport-Related Expenditure,Outside Hire,Enterprise Flexi Rent,27/11/2023,"1,560.00"
Neighbourhood & Enforcement Services,Strategic Transport & Highway Network Management,Transport-Related Expenditure,Outside Hire,Enterprise Flexi Rent,27/11/2023,"1,560.00"
Neighbourhood & Enforcement Services,Strategic Transport & Highway Network Management,Transport-Related Expenditure,Outside Hire,Enterprise Flexi Rent,27/11/2023,"1,560.00"
Neighbourhood & Enforcement Services,Strategic Transport & Highway Network Management,Transport-Related Expenditure,Outside Hire,Enterprise Flexi Rent,27/11/2023,"1,560.00"
Neighbourhood & Enforcement Services,Strategic Transport & Highway Network Management,Transport-Related Expenditure,Outside Hire,Enterprise Flexi Rent,27/11/2023,"1,560.00"
Neighbourhood & Enforcement Services,Strategic Transport & Highway Network Management,Transport-Related Expenditure,Outside Hire,Enterprise Flexi Rent,27/11/2023,"1,560.00"
Neighbourhood & Enforcement Services,Strategic Transport & Highway Network Management,Transport-Related Expenditure,Outside Hire,Enterprise Flexi Rent,27/11/2023,"12,480.00"
Neighbourhood & Enforcement Services,Strategic Transport & Highway Network Management,Transport-Related Expenditure,Outside Hire,Enterprise Flexi Rent,27/11/2023,"1,560.00"
Neighbourhood & Enforcement Services,Strategic Transport & Highway Network Management,Transport-Related Expenditure,Outside Hire,Enterprise Flexi Rent,27/11/2023,440.00
Neighbourhood & Enforcement Services,Strategic Transport & Highway Network Management,Transport-Related Expenditure,Outside Hire,Enterprise Flexi Rent,27/11/2023,165.00
Neighbourhood & Enforcement Services,Strategic Transport & Highway Network Management,Transport-Related Expenditure,Outside Hire,Enterprise Flexi Rent,20/11/2023,125.00
Neighbourhood & Enforcement Services,Strategic Transport & Highway Network Management,Transport-Related Expenditure,Outside Hire,Enterprise Flexi Rent,20/11/2023,125.00
Education & Skills,Pupil Support Services,Supplies & Services,Other Expenses,Entrust Support Services Ltd,08/11/2023,"5,766.12"
Neighbourhood & Enforcement Services,"Highways, Engineering & Project Delivery",Supplies & Services,Other Services,ENVIRONMENT AGENCY,21/11/2023,"16,928.80"
"Communities, Customer & Commercial Services",Sport & Leisure,Premises-Related Expenditure,Electricity,EON next,16/11/2023,201.07
Prosperity & Investment,BiT,Premises-Related Expenditure,Electricity,EON next,14/11/2023,240.16
Prosperity & Investment,Regeneration & Investment,Premises-Related Expenditure,Electricity,EON next,23/11/2023,378.74
Prosperity & Investment,Regeneration & Investment,Premises-Related Expenditure,Electricity,EON next,23/11/2023,105.84
Education & Skills,Pupil Support Services,Third Party Payments,DSG - High Needs Block,Ercall Wood Academy,09/11/2023,"16,429.00"
Education & Skills,SEND (0-25),Third Party Payments,DSG - High Needs Block,Ercall Wood Academy,06/11/2023,"9,160.28"
Education & Skills,SEND (0-25),Third Party Payments,DSG - High Needs Block,Ercall Wood Academy,06/11/2023,"9,160.28"
Education & Skills,SEND (0-25),Third Party Payments,DSG - High Needs Block,Ercall Wood Academy,21/11/2023,"9,160.28"
"Communities, Customer & Commercial Services",Sport & Leisure,Supplies & Services,Crockery/Hardware/Light Equip,E N CATERING EQUIPMENT AND SERVICES  LTD,22/11/2023,-161.00
Prosperity & Investment,BiT,Premises-Related Expenditure,R&M -Buildings DLO Charge,E N CATERING EQUIPMENT AND SERVICES  LTD,06/11/2023,335.00
Prosperity & Investment,BiT,Premises-Related Expenditure,R&M -Buildings DLO Charge,E N CATERING EQUIPMENT AND SERVICES  LTD,20/11/2023,"15,877.99"
Prosperity & Investment,BiT,Premises-Related Expenditure,R&M -Buildings DLO Charge,E N CATERING EQUIPMENT AND SERVICES  LTD,01/11/2023,484.18
Education & Skills,SEND (0-25),Third Party Payments,DSG - High Needs Block,ESWB Tutoring and Support Ltd,06/11/2023,780.00
Education & Skills,SEND (0-25),Third Party Payments,DSG - High Needs Block,ESWB Tutoring and Support Ltd,06/11/2023,456.00
Education & Skills,SEND (0-25),Third Party Payments,DSG - High Needs Block,ESWB Tutoring and Support Ltd,06/11/2023,855.00
Education & Skills,SEND (0-25),Third Party Payments,DSG - High Needs Block,ESWB Tutoring and Support Ltd,06/11/2023,128.25
Education & Skills,SEND (0-25),Third Party Payments,DSG - High Needs Block,ESWB Tutoring and Support Ltd,06/11/2023,780.00
Education & Skills,SEND (0-25),Third Party Payments,DSG - High Needs Block,ESWB Tutoring and Support Ltd,06/11/2023,780.00
Education & Skills,SEND (0-25),Third Party Payments,DSG - High Needs Block,ESWB Tutoring and Support Ltd,06/11/2023,684.00
Education & Skills,SEND (0-25),Third Party Payments,DSG - High Needs Block,ESWB Tutoring and Support Ltd,06/11/2023,"1,040.00"
Education & Skills,SEND (0-25),Third Party Payments,DSG - High Needs Block,ESWB Tutoring and Support Ltd,06/11/2023,256.50
Education & Skills,SEND (0-25),Third Party Payments,DSG - High Needs Block,ESWB Tutoring and Support Ltd,06/11/2023,"1,114.75"
Education & Skills,SEND (0-25),Third Party Payments,DSG - High Needs Block,ESWB Tutoring and Support Ltd,06/11/2023,780.00
Education & Skills,SEND (0-25),Third Party Payments,DSG - High Needs Block,ESWB Tutoring and Support Ltd,06/11/2023,456.00
Education & Skills,SEND (0-25),Third Party Payments,DSG - High Needs Block,ESWB Tutoring and Support Ltd,06/11/2023,570.00
Education & Skills,SEND (0-25),Third Party Payments,DSG - High Needs Block,ESWB Tutoring and Support Ltd,06/11/2023,"1,127.00"
Education & Skills,SEND (0-25),Third Party Payments,DSG - High Needs Block,ESWB Tutoring and Support Ltd,06/11/2023,780.00
Education & Skills,SEND (0-25),Third Party Payments,DSG - High Needs Block,ESWB Tutoring and Support Ltd,06/11/2023,570.00
Education & Skills,SEND (0-25),Third Party Payments,DSG - High Needs Block,ESWB Tutoring and Support Ltd,06/11/2023,780.00
Education & Skills,SEND (0-25),Third Party Payments,DSG - High Needs Block,ESWB Tutoring and Support Ltd,06/11/2023,456.00
Education & Skills,SEND (0-25),Third Party Payments,DSG - High Needs Block,ESWB Tutoring and Support Ltd,06/11/2023,285.00
Education & Skills,SEND (0-25),Third Party Payments,DSG - High Needs Block,ESWB Tutoring and Support Ltd,06/11/2023,912.00
Education & Skills,SEND (0-25),Third Party Payments,DSG - High Needs Block,ESWB Tutoring and Support Ltd,06/11/2023,285.00
Education & Skills,SEND (0-25),Third Party Payments,DSG - High Needs Block,ESWB Tutoring and Support Ltd,06/11/2023,780.00
Education & Skills,SEND (0-25),Third Party Payments,DSG - High Needs Block,ESWB Tutoring and Support Ltd,06/11/2023,456.00
Education & Skills,SEND (0-25),Third Party Payments,DSG - High Needs Block,ESWB Tutoring and Support Ltd,06/11/2023,570.00
Education & Skills,SEND (0-25),Third Party Payments,DSG - High Needs Block,ESWB Tutoring and Support Ltd,06/11/2023,780.00
Education & Skills,SEND (0-25),Third Party Payments,DSG - High Needs Block,ESWB Tutoring and Support Ltd,06/11/2023,"1,040.00"
Education & Skills,SEND (0-25),Third Party Payments,DSG - High Needs Block,ESWB Tutoring and Support Ltd,06/11/2023,780.00
Education & Skills,SEND (0-25),Third Party Payments,DSG - High Needs Block,ESWB Tutoring and Support Ltd,06/11/2023,"1,040.00"
Education & Skills,SEND (0-25),Third Party Payments,DSG - High Needs Block,ESWB Tutoring and Support Ltd,06/11/2023,285.00
Education & Skills,SEND (0-25),Third Party Payments,DSG - High Needs Block,ESWB Tutoring and Support Ltd,06/11/2023,780.00
Education & Skills,SEND (0-25),Third Party Payments,DSG - High Needs Block,ESWB Tutoring and Support Ltd,06/11/2023,780.00
Education & Skills,SEND (0-25),Third Party Payments,DSG - High Needs Block,ESWB Tutoring and Support Ltd,06/11/2023,416.00
Education & Skills,SEND (0-25),Third Party Payments,DSG - High Needs Block,ESWB Tutoring and Support Ltd,20/11/2023,884.00
Education & Skills,SEND (0-25),Third Party Payments,DSG - High Needs Block,ESWB Tutoring and Support Ltd,20/11/2023,780.00
Education & Skills,SEND (0-25),Third Party Payments,DSG - High Needs Block,ESWB Tutoring and Support Ltd,20/11/2023,780.00
Education & Skills,SEND (0-25),Third Party Payments,DSG - High Needs Block,ESWB Tutoring and Support Ltd,20/11/2023,456.00
Education & Skills,SEND (0-25),Third Party Payments,DSG - High Needs Block,ESWB Tutoring and Support Ltd,20/11/2023,624.00
Education & Skills,SEND (0-25),Third Party Payments,DSG - High Needs Block,ESWB Tutoring and Support Ltd,20/11/2023,780.00
Education & Skills,SEND (0-25),Third Party Payments,DSG - High Needs Block,ESWB Tutoring and Support Ltd,20/11/2023,285.00
Education & Skills,SEND (0-25),Third Party Payments,DSG - High Needs Block,ESWB Tutoring and Support Ltd,20/11/2023,342.00
Education & Skills,SEND (0-25),Third Party Payments,DSG - High Needs Block,ESWB Tutoring and Support Ltd,20/11/2023,570.00
Neighbourhood & Enforcement Services,Enforcement,Supplies & Services,Security Services,ETAK Creative Ltd,16/11/2023,753.48
Prosperity & Investment,Development Management,Supplies & Services,Protective Clothing,ETAK Creative Ltd,30/11/2023,299.19
"Communities, Customer & Commercial Services",Customer Relationships & Welfare Services,Supplies & Services,Bus Pass Production,Euclid Limited,08/11/2023,814.88
"Communities, Customer & Commercial Services",Sport & Leisure,Supplies & Services,Equipment - Purchase,European Golf Machinery,23/11/2023,161.95
"Housing, Employment & Infrastructure",Inward Investment & Business Support,Supplies & Services,Other Grants (Expenses),European Innovation Limited,23/11/2023,"9,570.00"
Adult Social Care,"Commissioning, Procurement & Brokerage",Supplies & Services,Other Grants (Expenses),Everready Health and Social Care Solutions LTD,03/11/2023,"2,304.00"
Prosperity & Investment,BiT,Premises-Related Expenditure,Service Contracts,E Solutions Ltd,01/11/2023,105.00
Prosperity & Investment,BiT,Premises-Related Expenditure,Service Contracts,E Solutions Ltd,01/11/2023,176.00
Prosperity & Investment,BiT,Premises-Related Expenditure,Service Contracts,E Solutions Ltd,01/11/2023,480.00
Prosperity & Investment,BiT,Premises-Related Expenditure,Service Contracts,E Solutions Ltd,27/11/2023,180.00
Prosperity & Investment,BiT,Premises-Related Expenditure,R&M -Buildings DLO Charge,E Solutions Ltd,01/11/2023,260.00
Prosperity & Investment,BiT,Premises-Related Expenditure,R&M -Buildings DLO Charge,E Solutions Ltd,08/11/2023,785.00
Prosperity & Investment,BiT,Premises-Related Expenditure,R&M -Buildings DLO Charge,E Solutions Ltd,08/11/2023,420.00
Prosperity & Investment,BiT,Premises-Related Expenditure,R&M -Buildings DLO Charge,E Solutions Ltd,08/11/2023,300.00
Children�s Safeguarding & Family Support,Child Protection & Family Support,Transport-Related Expenditure,Taxi Costs,Ezy Car Ltd,07/11/2023,559.65
Children�s Safeguarding & Family Support,Child Protection & Family Support,Transport-Related Expenditure,Taxi Costs,Ezy Car Ltd,07/11/2023,"1,439.10"
Children�s Safeguarding & Family Support,Child Protection & Family Support,Transport-Related Expenditure,Taxi Costs,Ezy Car Ltd,28/11/2023,629.10
Education & Skills,SEND (0-25),Third Party Payments,DSG - High Needs Block,Family Nurseries Ltd,09/11/2023,399.14
"Communities, Customer & Commercial Services",ICT,Capital Expenditure,Payments to Contractor,FarrPoint Ltd,09/11/2023,"4,272.00"
"Communities, Customer & Commercial Services",Sport & Leisure,Premises-Related Expenditure,Trade Refuse,FCC Recycling Ltd ,08/11/2023,-199.89
"Communities, Customer & Commercial Services",Sport & Leisure,Premises-Related Expenditure,Trade Refuse,FCC Recycling Ltd ,16/11/2023,399.78
Prosperity & Investment,BiT,Premises-Related Expenditure,Trade Refuse,FCC Recycling Ltd ,20/11/2023,610.48
Prosperity & Investment,BiT,Premises-Related Expenditure,Trade Refuse,FCC Recycling Ltd ,14/11/2023,187.84
Prosperity & Investment,BiT,Premises-Related Expenditure,Trade Refuse,FCC Recycling Ltd ,27/11/2023,234.80
"Communities, Customer & Commercial Services",Customer Relationships & Welfare Services,Supplies & Services,Printing - Other,Financial Data Management plc,03/11/2023,122.19
"Communities, Customer & Commercial Services",Customer Relationships & Welfare Services,Supplies & Services,Postages,Financial Data Management plc,03/11/2023,102.63
"Communities, Customer & Commercial Services",Customer Relationships & Welfare Services,Supplies & Services,Printing - Other,Financial Data Management plc,03/11/2023,147.58
"Communities, Customer & Commercial Services",Customer Relationships & Welfare Services,Supplies & Services,Postages,Financial Data Management plc,27/11/2023,144.05
"Communities, Customer & Commercial Services",Customer Relationships & Welfare Services,Supplies & Services,Postages,Financial Data Management plc,27/11/2023,139.35
"Communities, Customer & Commercial Services",Customer Relationships & Welfare Services,Supplies & Services,Postages,Financial Data Management plc,27/11/2023,115.14
"Communities, Customer & Commercial Services",Customer Relationships & Welfare Services,Supplies & Services,Postages,Financial Data Management plc,27/11/2023,120.86
"Communities, Customer & Commercial Services",Customer Relationships & Welfare Services,Supplies & Services,Postages,Financial Data Management plc,27/11/2023,126.08
"Communities, Customer & Commercial Services",Customer Relationships & Welfare Services,Supplies & Services,Postages,Financial Data Management plc,27/11/2023,178.24
"Communities, Customer & Commercial Services",Customer Relationships & Welfare Services,Supplies & Services,Printing - Other,Financial Data Management plc,27/11/2023,161.29
"Communities, Customer & Commercial Services",Customer Relationships & Welfare Services,Supplies & Services,Postages,Financial Data Management plc,27/11/2023,181.04
Finance & Human Resources,Revenues,Supplies & Services,Postages,Financial Data Management plc,03/11/2023,225.38
Finance & Human Resources,Revenues,Supplies & Services,Postages,Financial Data Management plc,03/11/2023,119.93
Finance & Human Resources,Revenues,Supplies & Services,Printing - Other,Financial Data Management plc,03/11/2023,415.86
Finance & Human Resources,Revenues,Supplies & Services,Printing - Other,Financial Data Management plc,03/11/2023,186.23
Finance & Human Resources,Revenues,Supplies & Services,Postages,Financial Data Management plc,03/11/2023,646.38
Finance & Human Resources,Revenues,Supplies & Services,Postages,Financial Data Management plc,03/11/2023,414.05
Finance & Human Resources,Revenues,Supplies & Services,Postages,Financial Data Management plc,03/11/2023,562.09
Finance & Human Resources,Revenues,Supplies & Services,Printing - Other,Financial Data Management plc,03/11/2023,425.57
Finance & Human Resources,Revenues,Supplies & Services,Printing - Other,Financial Data Management plc,03/11/2023,230.17
Finance & Human Resources,Revenues,Supplies & Services,Printing - Other,Financial Data Management plc,23/11/2023,340.00
Finance & Human Resources,Revenues,Supplies & Services,Postages,Financial Data Management plc,27/11/2023,574.90
Finance & Human Resources,Revenues,Supplies & Services,Postages,Financial Data Management plc,27/11/2023,474.97
Finance & Human Resources,Revenues,Supplies & Services,Postages,Financial Data Management plc,27/11/2023,"1,111.86"
Finance & Human Resources,Revenues,Supplies & Services,Postages,Financial Data Management plc,27/11/2023,172.81
Finance & Human Resources,Revenues,Supplies & Services,Postages,Financial Data Management plc,27/11/2023,467.85
Finance & Human Resources,Revenues,Supplies & Services,Postages,Financial Data Management plc,27/11/2023,164.13
Finance & Human Resources,Revenues,Supplies & Services,Postages,Financial Data Management plc,27/11/2023,741.71
Finance & Human Resources,Revenues,Supplies & Services,Postages,Financial Data Management plc,27/11/2023,488.16
Finance & Human Resources,Revenues,Supplies & Services,Postages,Financial Data Management plc,27/11/2023,931.12
Finance & Human Resources,Revenues,Supplies & Services,Postages,Financial Data Management plc,27/11/2023,813.69
Finance & Human Resources,Revenues,Supplies & Services,Printing - Other,Financial Data Management plc,27/11/2023,411.35
Finance & Human Resources,Revenues,Supplies & Services,Printing - Other,Financial Data Management plc,27/11/2023,217.59
Finance & Human Resources,Revenues,Supplies & Services,Postages,Financial Data Management plc,27/11/2023,"1,478.15"
Finance & Human Resources,Revenues,Supplies & Services,Postages,Financial Data Management plc,27/11/2023,250.39
Finance & Human Resources,Revenues,Supplies & Services,Postages,Financial Data Management plc,27/11/2023,680.90
Finance & Human Resources,Revenues,Supplies & Services,Postages,Financial Data Management plc,27/11/2023,440.03
Finance & Human Resources,Revenues,Supplies & Services,Postages,Financial Data Management plc,27/11/2023,"1,155.41"
Finance & Human Resources,Revenues,Supplies & Services,Postages,Financial Data Management plc,27/11/2023,425.43
Finance & Human Resources,Revenues,Supplies & Services,Postages,Financial Data Management plc,27/11/2023,696.36
Finance & Human Resources,Revenues,Supplies & Services,Postages,Financial Data Management plc,27/11/2023,309.31
Finance & Human Resources,Revenues,Supplies & Services,Postages,Financial Data Management plc,27/11/2023,266.39
Finance & Human Resources,Revenues,Supplies & Services,Postages,Financial Data Management plc,27/11/2023,200.89
Finance & Human Resources,Revenues,Supplies & Services,Postages,Financial Data Management plc,03/11/2023,175.04
Finance & Human Resources,Revenues,Supplies & Services,Postages,Financial Data Management plc,06/11/2023,217.25
Finance & Human Resources,Revenues,Supplies & Services,Postages,Financial Data Management plc,06/11/2023,245.16
Prosperity & Investment,BiT,Premises-Related Expenditure,R&M -Buildings DLO Charge,Firntec Ltd,08/11/2023,967.10
Prosperity & Investment,BiT,Premises-Related Expenditure,R&M -Buildings DLO Charge,Firntec Ltd,08/11/2023,"2,346.83"
Prosperity & Investment,BiT,Capital Expenditure,External Professional Fees,Focus Consultants 2010 LLP,15/11/2023,"4,010.00"
Policy & Governance,Governance & Legal Services,Supplies & Services,Legal Expenses,F Solicitors,14/11/2023,647.00
Policy & Governance,Governance & Legal Services,Supplies & Services,Legal Expenses,F Solicitors,14/11/2023,"1,668.50"
"Communities, Customer & Commercial Services",Community Services,Supplies & Services,Grants To Voluntary Organis,Forum 50+,07/11/2023,500.00
Children�s Safeguarding & Family Support,"Family Placements, Children in Care, Leaving Care & Emergency Duty Team",Supplies & Services,Subscriptions,FOSTERING NETWORK,23/11/2023,644.00
Finance & Human Resources,Revenues,Supplies & Services,Franking machine service,FRANCOTYP-POSTALIA LTD ,24/11/2023,"1,000.00"
Finance & Human Resources,Revenues,Supplies & Services,Postages,FREELANCE BUSINESS ASSOCIATES,06/11/2023,261.00
Finance & Human Resources,Revenues,Supplies & Services,Postages,FREELANCE BUSINESS ASSOCIATES,06/11/2023,162.00
Finance & Human Resources,Revenues,Supplies & Services,Postages,FREELANCE BUSINESS ASSOCIATES,06/11/2023,396.00
Finance & Human Resources,Revenues,Supplies & Services,Postages,FREELANCE BUSINESS ASSOCIATES,13/11/2023,378.00
Finance & Human Resources,Revenues,Supplies & Services,Postages,FREELANCE BUSINESS ASSOCIATES,13/11/2023,378.00
"Communities, Customer & Commercial Services",Culture & Events,Supplies & Services,Equipment - Hire,FREEMANS OF TELFORD LTD,28/11/2023,701.83
Education & Skills,Education & Skills,Capital Expenditure,Legal Fees,F LLP,01/11/2023,"1,146.80"
Prosperity & Investment,Regeneration & Investment,Capital Expenditure,External Professional Fees,F LLP,09/11/2023,"1,237.60"
Prosperity & Investment,Regeneration & Investment,Capital Expenditure,External Professional Fees,F LLP,22/11/2023,582.40
Prosperity & Investment,Regeneration & Investment,Capital Expenditure,Legal Fees,F LLP,09/11/2023,145.60
Prosperity & Investment,Regeneration & Investment,Capital Expenditure,Legal Fees,F LLP,22/11/2023,"1,962.30"
Prosperity & Investment,Regeneration & Investment,Capital Expenditure,Legal Fees,F LLP,22/11/2023,590.00
Prosperity & Investment,Regeneration & Investment,Capital Expenditure,Legal Fees,F LLP,17/11/2023,"3,389.10"
Prosperity & Investment,Regeneration & Investment,Capital Expenditure,Compensation,FREETHS LLP ,20/11/2023,"3,100.00"
Prosperity & Investment,Regeneration & Investment,Capital Expenditure,Purchase of Buildings,FREETHS LLP ,21/11/2023,"240,000.00"
Prosperity & Investment,Regeneration & Investment,Capital Expenditure,Legal Fees,FREETHS LLP ,16/11/2023,"250,000.00"
Neighbourhood & Enforcement Services,Strategic Transport & Highway Network Management,Transport-Related Expenditure,Servicing & Repairs V&P,FURROWS OF TELFORD,03/11/2023,592.71
Prosperity & Investment,Development Management,Employees,Agency Supply Costs,G2 Recruitment Solutions,09/11/2023,"2,340.00"
Prosperity & Investment,Regeneration & Investment,Capital Expenditure,Payments to Contractor,G Demolition Ltd,13/11/2023,"2,200.00"
Prosperity & Investment,BiT,Premises-Related Expenditure,R&M -Buildings DLO Charge,GAS ALARM SYSTEMS LTD,08/11/2023,496.00
Prosperity & Investment,BiT,Premises-Related Expenditure,Gas,GAS DIRECT LTD,02/11/2023,259.98
Education & Skills,Consultancy & Advisory Services,Supplies & Services,Other Grants (Expenses),Genius Tuition,29/11/2023,"2,995.20"
Education & Skills,Consultancy & Advisory Services,Supplies & Services,Other Grants (Expenses),Genius Tuition,29/11/2023,"2,995.20"
Education & Skills,Consultancy & Advisory Services,Supplies & Services,Other Grants (Expenses),Genius Tuition,29/11/2023,"3,744.11"
Education & Skills,Consultancy & Advisory Services,Supplies & Services,Other Grants (Expenses),Genius Tuition,29/11/2023,"9,926.25"
Adult Social Care,My Options,Supplies & Services,Respite Care,REDACTED PERSONAL INFORMATION,14/11/2023,"1,030.40"
Prosperity & Investment,BiT,Premises-Related Expenditure,R&M -Buildings DLO Charge,G N CHARTERED SURVEYORS,23/11/2023,"32,475.73"
Prosperity & Investment,BiT,Premises-Related Expenditure,R&M -Buildings DLO Charge,G N CHARTERED SURVEYORS,20/11/2023,"14,947.37"
Neighbourhood & Enforcement Services,Safer & Stronger Communities,Premises-Related Expenditure,Leasehold Rents,GPS Property Shropshire LLP,10/11/2023,700.00
Neighbourhood & Enforcement Services,Safer & Stronger Communities,Premises-Related Expenditure,Leasehold Rents,GPS Property Shropshire LLP,21/11/2023,725.00
Education & Skills,SEND (0-25),Third Party Payments,DSG - High Needs Block,Grange Park Primary School - Community Academies Trust,06/11/2023,"4,013.07"
Education & Skills,SEND (0-25),Third Party Payments,DSG - High Needs Block,Grange Park Primary School - Community Academies Trust,06/11/2023,"4,013.07"
Education & Skills,SEND (0-25),Third Party Payments,DSG - High Needs Block,Grange Park Primary School - Community Academies Trust,21/11/2023,"4,013.07"
Education & Skills,SEND (0-25),Third Party Payments,DSG - High Needs Block,Grange Park Primary School - Community Academies Trust,06/11/2023,141.04
Education & Skills,SEND (0-25),Third Party Payments,DSG - High Needs Block,Grange Park Primary School - Community Academies Trust,06/11/2023,141.04
Education & Skills,SEND (0-25),Third Party Payments,DSG - High Needs Block,Grange Park Primary School - Community Academies Trust,21/11/2023,141.04
Finance & Human Resources,Finance,Supplies & Services,External Audit Fees,G T UK LLP,07/11/2023,"7,500.00"
Children�s Safeguarding & Family Support,Family Connect & Childrens Centres,Premises-Related Expenditure,R&M -Building Other,GRANVILLE CONSTRUCTION & MAINTENANCE LTD,01/11/2023,201.12
Children�s Safeguarding & Family Support,Family Connect & Childrens Centres,Premises-Related Expenditure,R&M -Building Other,GRANVILLE CONSTRUCTION & MAINTENANCE LTD,01/11/2023,211.61
Children�s Safeguarding & Family Support,Family Connect & Childrens Centres,Supplies & Services,Bulk Refuse Contracts Hire,GRANVILLE CONSTRUCTION & MAINTENANCE LTD,09/11/2023,129.00
"Communities, Customer & Commercial Services",Sport & Leisure,Supplies & Services,Equipment - Purchase,GRANVILLE CONSTRUCTION & MAINTENANCE LTD,01/11/2023,"2,020.00"
"Communities, Customer & Commercial Services",Sport & Leisure,Supplies & Services,Equipment - Purchase,GRANVILLE CONSTRUCTION & MAINTENANCE LTD,01/11/2023,"5,160.00"
Education & Skills,Education & Skills,Capital Expenditure,Payments to Contractor,GRANVILLE CONSTRUCTION & MAINTENANCE LTD,01/11/2023,"4,200.00"
Education & Skills,Education & Skills,Capital Expenditure,Payments to Contractor,GRANVILLE CONSTRUCTION & MAINTENANCE LTD,01/11/2023,"6,082.77"
Education & Skills,Education & Skills,Capital Expenditure,Payments to Contractor,GRANVILLE CONSTRUCTION & MAINTENANCE LTD,14/11/2023,288.00
Education & Skills,Education & Skills,Capital Expenditure,Payments to Contractor,GRANVILLE CONSTRUCTION & MAINTENANCE LTD,21/11/2023,"1,463.36"
Education & Skills,Education & Skills,Capital Expenditure,Payments to Contractor,GRANVILLE CONSTRUCTION & MAINTENANCE LTD,21/11/2023,"40,260.00"
Education & Skills,Education & Skills,Capital Expenditure,Payments to Contractor,GRANVILLE CONSTRUCTION & MAINTENANCE LTD,21/11/2023,"46,840.27"
Education & Skills,Education & Skills,Capital Expenditure,Payments to Contractor,GRANVILLE CONSTRUCTION & MAINTENANCE LTD,14/11/2023,"8,232.00"
Education & Skills,Education & Skills,Capital Expenditure,Payments to Contractor,GRANVILLE CONSTRUCTION & MAINTENANCE LTD,14/11/2023,"10,507.00"
Education & Skills,Education & Skills,Capital Expenditure,Payments to Contractor,GRANVILLE CONSTRUCTION & MAINTENANCE LTD,16/11/2023,"12,600.00"
Education & Skills,Education & Skills,Capital Expenditure,Payments to Contractor,GRANVILLE CONSTRUCTION & MAINTENANCE LTD,16/11/2023,"17,463.83"
"Housing, Employment & Infrastructure",Private Sector Housing & Enforcement,Supplies & Services,Print Room Recharges,GRANVILLE CONSTRUCTION & MAINTENANCE LTD,20/11/2023,"2,060.00"
"Housing, Employment & Infrastructure",Private Sector Housing & Enforcement,Supplies & Services,Print Room Recharges,GRANVILLE CONSTRUCTION & MAINTENANCE LTD,20/11/2023,"2,775.00"
Prosperity & Investment,BiT,Premises-Related Expenditure,R&M -Buildings DLO Charge,GRANVILLE CONSTRUCTION & MAINTENANCE LTD,15/11/2023,"1,001.18"
Prosperity & Investment,BiT,Premises-Related Expenditure,R&M -Buildings DLO Charge,GRANVILLE CONSTRUCTION & MAINTENANCE LTD,15/11/2023,795.00
Prosperity & Investment,BiT,Premises-Related Expenditure,R&M -Buildings DLO Charge,GRANVILLE CONSTRUCTION & MAINTENANCE LTD,15/11/2023,335.03
Prosperity & Investment,BiT,Premises-Related Expenditure,R&M -Buildings DLO Charge,GRANVILLE CONSTRUCTION & MAINTENANCE LTD,15/11/2023,188.14
Prosperity & Investment,BiT,Premises-Related Expenditure,R&M -Buildings DLO Charge,GRANVILLE CONSTRUCTION & MAINTENANCE LTD,27/11/2023,549.57
Prosperity & Investment,BiT,Premises-Related Expenditure,R&M -Buildings DLO Charge,GRANVILLE CONSTRUCTION & MAINTENANCE LTD,27/11/2023,549.57
Prosperity & Investment,BiT,Premises-Related Expenditure,R&M -Buildings DLO Charge,GRANVILLE CONSTRUCTION & MAINTENANCE LTD,01/11/2023,222.23
Prosperity & Investment,BiT,Premises-Related Expenditure,R&M -Buildings DLO Charge,GRANVILLE CONSTRUCTION & MAINTENANCE LTD,01/11/2023,137.99
Prosperity & Investment,BiT,Premises-Related Expenditure,R&M -Buildings DLO Charge,GRANVILLE CONSTRUCTION & MAINTENANCE LTD,01/11/2023,114.20
Prosperity & Investment,BiT,Premises-Related Expenditure,R&M -Buildings DLO Charge,GRANVILLE CONSTRUCTION & MAINTENANCE LTD,15/11/2023,112.25
Prosperity & Investment,BiT,Premises-Related Expenditure,R&M -Buildings DLO Charge,GRANVILLE CONSTRUCTION & MAINTENANCE LTD,15/11/2023,699.28
Prosperity & Investment,BiT,Premises-Related Expenditure,R&M -Buildings DLO Charge,GRANVILLE CONSTRUCTION & MAINTENANCE LTD,15/11/2023,363.58
Prosperity & Investment,BiT,Premises-Related Expenditure,R&M -Buildings DLO Charge,GRANVILLE CONSTRUCTION & MAINTENANCE LTD,27/11/2023,163.95
Prosperity & Investment,BiT,Premises-Related Expenditure,R&M -Buildings DLO Charge,GRANVILLE CONSTRUCTION & MAINTENANCE LTD,20/11/2023,200.10
Prosperity & Investment,BiT,Premises-Related Expenditure,R&M -Buildings DLO Charge,GRANVILLE CONSTRUCTION & MAINTENANCE LTD,21/11/2023,"4,800.00"
Prosperity & Investment,BiT,Premises-Related Expenditure,R&M -Buildings DLO Charge,GRANVILLE CONSTRUCTION & MAINTENANCE LTD,21/11/2023,751.70
Prosperity & Investment,BiT,Premises-Related Expenditure,R&M -Buildings DLO Charge,GRANVILLE CONSTRUCTION & MAINTENANCE LTD,21/11/2023,"3,392.08"
Prosperity & Investment,BiT,Premises-Related Expenditure,R&M -Buildings DLO Charge,GRANVILLE CONSTRUCTION & MAINTENANCE LTD,21/11/2023,"1,800.00"
Prosperity & Investment,BiT,Premises-Related Expenditure,R&M -Buildings DLO Charge,GRANVILLE CONSTRUCTION & MAINTENANCE LTD,21/11/2023,"3,104.16"
Prosperity & Investment,BiT,Premises-Related Expenditure,R&M -Buildings DLO Charge,GRANVILLE CONSTRUCTION & MAINTENANCE LTD,01/11/2023,118.73
Prosperity & Investment,BiT,Premises-Related Expenditure,R&M -Buildings DLO Charge,GRANVILLE CONSTRUCTION & MAINTENANCE LTD,01/11/2023,167.22
Prosperity & Investment,BiT,Premises-Related Expenditure,R&M -Buildings DLO Charge,GRANVILLE CONSTRUCTION & MAINTENANCE LTD,01/11/2023,255.26
Prosperity & Investment,BiT,Premises-Related Expenditure,R&M -Buildings DLO Charge,GRANVILLE CONSTRUCTION & MAINTENANCE LTD,01/11/2023,443.00
Prosperity & Investment,BiT,Premises-Related Expenditure,R&M -Buildings DLO Charge,GRANVILLE CONSTRUCTION & MAINTENANCE LTD,01/11/2023,170.93
Prosperity & Investment,BiT,Premises-Related Expenditure,R&M -Buildings DLO Charge,GRANVILLE CONSTRUCTION & MAINTENANCE LTD,01/11/2023,162.86
Prosperity & Investment,BiT,Premises-Related Expenditure,R&M -Buildings DLO Charge,GRANVILLE CONSTRUCTION & MAINTENANCE LTD,01/11/2023,197.14
Prosperity & Investment,BiT,Premises-Related Expenditure,R&M -Buildings DLO Charge,GRANVILLE CONSTRUCTION & MAINTENANCE LTD,13/11/2023,376.00
Prosperity & Investment,BiT,Premises-Related Expenditure,R&M -Buildings DLO Charge,GRANVILLE CONSTRUCTION & MAINTENANCE LTD,13/11/2023,286.23
Prosperity & Investment,BiT,Premises-Related Expenditure,R&M -Buildings DLO Charge,GRANVILLE CONSTRUCTION & MAINTENANCE LTD,14/11/2023,243.00
Prosperity & Investment,BiT,Premises-Related Expenditure,R&M -Buildings DLO Charge,GRANVILLE CONSTRUCTION & MAINTENANCE LTD,06/11/2023,168.00
Prosperity & Investment,BiT,Premises-Related Expenditure,R&M -Buildings DLO Charge,GRANVILLE CONSTRUCTION & MAINTENANCE LTD,06/11/2023,180.00
Prosperity & Investment,BiT,Premises-Related Expenditure,R&M -Buildings DLO Charge,GRANVILLE CONSTRUCTION & MAINTENANCE LTD,06/11/2023,165.00
Prosperity & Investment,BiT,Premises-Related Expenditure,R&M -Buildings DLO Charge,GRANVILLE CONSTRUCTION & MAINTENANCE LTD,08/11/2023,121.55
Prosperity & Investment,BiT,Premises-Related Expenditure,R&M -Buildings DLO Charge,GRANVILLE CONSTRUCTION & MAINTENANCE LTD,08/11/2023,325.95
Prosperity & Investment,BiT,Premises-Related Expenditure,R&M -Buildings DLO Charge,GRANVILLE CONSTRUCTION & MAINTENANCE LTD,23/11/2023,673.00
Prosperity & Investment,BiT,Premises-Related Expenditure,R&M -Buildings DLO Charge,GRANVILLE CONSTRUCTION & MAINTENANCE LTD,23/11/2023,349.77
Prosperity & Investment,BiT,Premises-Related Expenditure,R&M -Buildings DLO Charge,GRANVILLE CONSTRUCTION & MAINTENANCE LTD,23/11/2023,"1,020.00"
Prosperity & Investment,BiT,Premises-Related Expenditure,R&M -Buildings DLO Charge,GRANVILLE CONSTRUCTION & MAINTENANCE LTD,23/11/2023,639.00
Prosperity & Investment,BiT,Premises-Related Expenditure,R&M -Buildings DLO Charge,GRANVILLE CONSTRUCTION & MAINTENANCE LTD,09/11/2023,"1,180.00"
Prosperity & Investment,BiT,Premises-Related Expenditure,R&M -Buildings DLO Charge,GRANVILLE CONSTRUCTION & MAINTENANCE LTD,09/11/2023,180.00
Prosperity & Investment,BiT,Premises-Related Expenditure,R&M -Buildings DLO Charge,GRANVILLE CONSTRUCTION & MAINTENANCE LTD,09/11/2023,186.10
Prosperity & Investment,BiT,Premises-Related Expenditure,R&M -Buildings DLO Charge,GRANVILLE CONSTRUCTION & MAINTENANCE LTD,09/11/2023,180.00
Prosperity & Investment,BiT,Premises-Related Expenditure,R&M -Buildings DLO Charge,GRANVILLE CONSTRUCTION & MAINTENANCE LTD,09/11/2023,"1,297.00"
Prosperity & Investment,BiT,Premises-Related Expenditure,R&M -Buildings DLO Charge,GRANVILLE CONSTRUCTION & MAINTENANCE LTD,09/11/2023,134.48
Prosperity & Investment,BiT,Premises-Related Expenditure,R&M -Buildings DLO Charge,GRANVILLE CONSTRUCTION & MAINTENANCE LTD,14/11/2023,109.00
Prosperity & Investment,BiT,Premises-Related Expenditure,R&M -Buildings DLO Charge,GRANVILLE CONSTRUCTION & MAINTENANCE LTD,23/11/2023,113.52
Prosperity & Investment,BiT,Premises-Related Expenditure,R&M -Buildings DLO Charge,GRANVILLE CONSTRUCTION & MAINTENANCE LTD,23/11/2023,652.53
Prosperity & Investment,BiT,Premises-Related Expenditure,R&M -Buildings DLO Charge,GRANVILLE CONSTRUCTION & MAINTENANCE LTD,23/11/2023,690.00
Prosperity & Investment,BiT,Premises-Related Expenditure,R&M -Buildings DLO Charge,GRANVILLE CONSTRUCTION & MAINTENANCE LTD,23/11/2023,116.40
Prosperity & Investment,BiT,Premises-Related Expenditure,R&M -Buildings DLO Charge,GRANVILLE CONSTRUCTION & MAINTENANCE LTD,23/11/2023,"2,219.98"
Prosperity & Investment,BiT,Premises-Related Expenditure,R&M -Buildings DLO Charge,GRANVILLE CONSTRUCTION & MAINTENANCE LTD,23/11/2023,"1,673.00"
Prosperity & Investment,BiT,Premises-Related Expenditure,R&M -Building Other,GRANVILLE CONSTRUCTION & MAINTENANCE LTD,01/11/2023,118.74
Prosperity & Investment,BiT,Premises-Related Expenditure,R&M -Building Other,GRANVILLE CONSTRUCTION & MAINTENANCE LTD,01/11/2023,112.95
Prosperity & Investment,BiT,Premises-Related Expenditure,R&M -Building Other,GRANVILLE CONSTRUCTION & MAINTENANCE LTD,01/11/2023,264.00
Prosperity & Investment,BiT,Premises-Related Expenditure,R&M -Building Other,GRANVILLE CONSTRUCTION & MAINTENANCE LTD,01/11/2023,358.58
Prosperity & Investment,BiT,Premises-Related Expenditure,R&M -Building Other,GRANVILLE CONSTRUCTION & MAINTENANCE LTD,06/11/2023,149.73
Prosperity & Investment,BiT,Premises-Related Expenditure,R&M -Building Other,GRANVILLE CONSTRUCTION & MAINTENANCE LTD,06/11/2023,333.00
Prosperity & Investment,BiT,Premises-Related Expenditure,R&M -Building Other,GRANVILLE CONSTRUCTION & MAINTENANCE LTD,06/11/2023,290.40
Prosperity & Investment,BiT,Premises-Related Expenditure,R&M -Building Other,GRANVILLE CONSTRUCTION & MAINTENANCE LTD,06/11/2023,174.00
Prosperity & Investment,BiT,Premises-Related Expenditure,R&M -Building Other,GRANVILLE CONSTRUCTION & MAINTENANCE LTD,23/11/2023,152.94
Prosperity & Investment,BiT,Premises-Related Expenditure,R&M -Building Other,GRANVILLE CONSTRUCTION & MAINTENANCE LTD,23/11/2023,244.18
Prosperity & Investment,BiT,Premises-Related Expenditure,R&M -Building Other,GRANVILLE CONSTRUCTION & MAINTENANCE LTD,14/11/2023,290.70
Prosperity & Investment,BiT,Premises-Related Expenditure,R&M -Buildings DLO Charge,GRANVILLE CONSTRUCTION & MAINTENANCE LTD,01/11/2023,638.79
Prosperity & Investment,BiT,Premises-Related Expenditure,R&M -Buildings DLO Charge,GRANVILLE CONSTRUCTION & MAINTENANCE LTD,06/11/2023,554.05
Prosperity & Investment,BiT,Premises-Related Expenditure,R&M -Buildings DLO Charge,GRANVILLE CONSTRUCTION & MAINTENANCE LTD,21/11/2023,"1,176.00"
Prosperity & Investment,BiT,Premises-Related Expenditure,R&M -Buildings DLO Charge,GRANVILLE CONSTRUCTION & MAINTENANCE LTD,01/11/2023,276.43
Prosperity & Investment,BiT,Premises-Related Expenditure,R&M -Buildings DLO Charge,GRANVILLE CONSTRUCTION & MAINTENANCE LTD,08/11/2023,252.00
Prosperity & Investment,BiT,Premises-Related Expenditure,R&M -Buildings DLO Charge,GRANVILLE CONSTRUCTION & MAINTENANCE LTD,08/11/2023,107.98
Prosperity & Investment,BiT,Capital Expenditure,Payments to Contractor,GRANVILLE CONSTRUCTION & MAINTENANCE LTD,15/11/2023,"26,700.00"
Prosperity & Investment,BiT,Capital Expenditure,Payments to Contractor,GRANVILLE CONSTRUCTION & MAINTENANCE LTD,15/11/2023,"24,601.21"
Prosperity & Investment,BiT,Capital Expenditure,Payments to Contractor,GRANVILLE CONSTRUCTION & MAINTENANCE LTD,21/11/2023,112.50
Prosperity & Investment,Regeneration & Investment,Premises-Related Expenditure,R&M -Building Other,GRANVILLE CONSTRUCTION & MAINTENANCE LTD,22/11/2023,312.00
Prosperity & Investment,Regeneration & Investment,Premises-Related Expenditure,R&M -Building Other,GRANVILLE CONSTRUCTION & MAINTENANCE LTD,20/11/2023,323.47
Prosperity & Investment,Regeneration & Investment,Premises-Related Expenditure,Insurance Loss Over 250,GRANVILLE CONSTRUCTION & MAINTENANCE LTD,22/11/2023,"3,180.00"
Prosperity & Investment,Regeneration & Investment,Premises-Related Expenditure,Insurance Loss Over 250,GRANVILLE CONSTRUCTION & MAINTENANCE LTD,22/11/2023,"2,087.85"
Prosperity & Investment,Regeneration & Investment,Premises-Related Expenditure,R&M -Building Other,GRANVILLE CONSTRUCTION & MAINTENANCE LTD,01/11/2023,248.05
Prosperity & Investment,Regeneration & Investment,Premises-Related Expenditure,R&M -Building Other,GRANVILLE CONSTRUCTION & MAINTENANCE LTD,09/11/2023,303.87
Prosperity & Investment,Regeneration & Investment,Premises-Related Expenditure,R&M -Building Other,GRANVILLE CONSTRUCTION & MAINTENANCE LTD,09/11/2023,160.95
Prosperity & Investment,Regeneration & Investment,Premises-Related Expenditure,R&M -Building Other,GRANVILLE CONSTRUCTION & MAINTENANCE LTD,13/11/2023,247.12
Prosperity & Investment,Regeneration & Investment,Premises-Related Expenditure,R&M -Building Other,GRANVILLE CONSTRUCTION & MAINTENANCE LTD,13/11/2023,280.95
Prosperity & Investment,Regeneration & Investment,Premises-Related Expenditure,R&M -Building Other,GRANVILLE CONSTRUCTION & MAINTENANCE LTD,24/11/2023,280.95
Prosperity & Investment,Regeneration & Investment,Premises-Related Expenditure,R&M -Building Other,GRANVILLE CONSTRUCTION & MAINTENANCE LTD,24/11/2023,426.80
Prosperity & Investment,Regeneration & Investment,Premises-Related Expenditure,R&M -Building Other,GRANVILLE CONSTRUCTION & MAINTENANCE LTD,14/11/2023,"1,518.67"
Prosperity & Investment,Regeneration & Investment,Premises-Related Expenditure,R&M -Building Other,GRANVILLE CONSTRUCTION & MAINTENANCE LTD,14/11/2023,160.53
Prosperity & Investment,Regeneration & Investment,Premises-Related Expenditure,R&M -Building Other,GRANVILLE CONSTRUCTION & MAINTENANCE LTD,16/11/2023,190.95
Prosperity & Investment,Regeneration & Investment,Premises-Related Expenditure,R&M -Building Other,GRANVILLE CONSTRUCTION & MAINTENANCE LTD,15/11/2023,931.12
Prosperity & Investment,Regeneration & Investment,Premises-Related Expenditure,R&M -Building Other,GRANVILLE CONSTRUCTION & MAINTENANCE LTD,22/11/2023,"2,194.70"
Prosperity & Investment,Regeneration & Investment,Premises-Related Expenditure,R&M -Building Other,GRANVILLE CONSTRUCTION & MAINTENANCE LTD,23/11/2023,243.60
Prosperity & Investment,Regeneration & Investment,Premises-Related Expenditure,R&M -Building Other,GRANVILLE CONSTRUCTION & MAINTENANCE LTD,02/11/2023,605.92
Prosperity & Investment,Regeneration & Investment,Premises-Related Expenditure,R&M WC Planned,GRANVILLE CONSTRUCTION & MAINTENANCE LTD,01/11/2023,"1,352.00"
Prosperity & Investment,Regeneration & Investment,Premises-Related Expenditure,R&M WC Planned,GRANVILLE CONSTRUCTION & MAINTENANCE LTD,01/11/2023,"1,096.00"
Prosperity & Investment,Regeneration & Investment,Premises-Related Expenditure,R&M WC Contingency,GRANVILLE CONSTRUCTION & MAINTENANCE LTD,01/11/2023,158.94
Prosperity & Investment,Regeneration & Investment,Premises-Related Expenditure,R&M WC Planned,GRANVILLE CONSTRUCTION & MAINTENANCE LTD,02/11/2023,813.97
Prosperity & Investment,Regeneration & Investment,Premises-Related Expenditure,R&M -Building Other,GRANVILLE CONSTRUCTION & MAINTENANCE LTD,15/11/2023,147.16
Prosperity & Investment,Regeneration & Investment,Premises-Related Expenditure,Grounds Maintenance - L&CS,GRANVILLE CONSTRUCTION & MAINTENANCE LTD,16/11/2023,398.49
Prosperity & Investment,Regeneration & Investment,Third Party Payments,Contractor Recharge,GRANVILLE CONSTRUCTION & MAINTENANCE LTD,15/11/2023,273.38
"Communities, Customer & Commercial Services",Community Services,Supplies & Services,Grants To Voluntary Organis,Great Dawley Town Council,15/11/2023,250.00
"Communities, Customer & Commercial Services",Community Services,Supplies & Services,Grants To Voluntary Organis,Great Dawley Town Council,15/11/2023,900.00
"Communities, Customer & Commercial Services",Community Services,Supplies & Services,Grants To Voluntary Organis,Great Dawley Town Council,29/11/2023,600.00
"Communities, Customer & Commercial Services",Community Services,Supplies & Services,Grants To Voluntary Organis,Great Dawley Town Council,29/11/2023,300.00
Education & Skills,Consultancy & Advisory Services,Supplies & Services,Other Grants (Expenses),Great Dawley Town Council,29/11/2023,"2,895.00"
"Housing, Employment & Infrastructure",Inward Investment & Business Support,Capital Expenditure,Payments to Contractor,Great Dawley Town Council,03/11/2023,"10,000.00"
Prosperity & Investment,BiT,Premises-Related Expenditure,Service Contracts,Green Assess Telford and Wrekin,30/11/2023,105.00
Prosperity & Investment,BiT,Premises-Related Expenditure,Service Contracts,Green Assess Telford and Wrekin,30/11/2023,105.00
Prosperity & Investment,BiT,Premises-Related Expenditure,Service Contracts,Green Assess Telford and Wrekin,30/11/2023,105.00
Finance & Human Resources,Revenues,Supplies & Services,Consultancy,G K Ltd,23/11/2023,627.00
Neighbourhood & Enforcement Services,"Highways, Engineering & Project Delivery",Supplies & Services,Other Services,GROUND INVESTIGATION & PILING LTD,27/11/2023,"7,772.35"
Neighbourhood & Enforcement Services,"Highways, Engineering & Project Delivery",Supplies & Services,Other Services,GROUND INVESTIGATION & PILING LTD,27/11/2023,"3,298.70"
"Housing, Employment & Infrastructure",Private Sector Housing & Enforcement,Capital Expenditure,Payments to Contractor,GCrystal Clean,20/11/2023,700.00
Education & Skills,SEND (0-25),Employees,Agency Supply Costs,Guide Dogs for the Blind,29/11/2023,"4,210.26"
Education & Skills,SEND (0-25),Supplies & Services,Other Services,Hachette UK distribution LTD,24/11/2023,660.00
Education & Skills,Skills,Premises-Related Expenditure,Hire Of Rooms,HADLEY & LEEGOMERY PARISH COUNCIL,15/11/2023,160.00
Education & Skills,Skills,Premises-Related Expenditure,Hire Of Rooms,HADLEY & LEEGOMERY PARISH COUNCIL,02/11/2023,120.00
Education & Skills,Skills,Premises-Related Expenditure,Hire Of Rooms,HADLEY & LEEGOMERY PARISH COUNCIL,02/11/2023,146.67
Education & Skills,Pupil Support Services,Third Party Payments,DSG - High Needs Block,Hadley Learning Community Academy,09/11/2023,"20,372.00"
Education & Skills,SEND (0-25),Third Party Payments,DSG - High Needs Block,Hadley Learning Community Academy,06/11/2023,"18,931.24"
Education & Skills,SEND (0-25),Third Party Payments,DSG - High Needs Block,Hadley Learning Community Academy,06/11/2023,"1,483.09"
Education & Skills,SEND (0-25),Third Party Payments,DSG - High Needs Block,Hadley Learning Community Academy,06/11/2023,"1,483.09"
Education & Skills,SEND (0-25),Third Party Payments,DSG - High Needs Block,Hadley Learning Community Academy,06/11/2023,"18,931.24"
Education & Skills,SEND (0-25),Third Party Payments,DSG - High Needs Block,Hadley Learning Community Academy,21/11/2023,"18,931.24"
Education & Skills,SEND (0-25),Third Party Payments,DSG - High Needs Block,Hadley Learning Community Academy,21/11/2023,"1,483.09"
Education & Skills,Consultancy & Advisory Services,Supplies & Services,Other Grants (Expenses),HALESFIELD DAY NURSERY CENTRE ,29/11/2023,336.09
"Communities, Customer & Commercial Services",Sport & Leisure,Supplies & Services,Provisions,Handmade Speciality Products Ltd,23/11/2023,291.80
"Communities, Customer & Commercial Services",Sport & Leisure,Supplies & Services,Provisions,Handmade Speciality Products Ltd,16/11/2023,418.98
"Communities, Customer & Commercial Services",Sport & Leisure,Supplies & Services,Provisions,Handmade Speciality Products Ltd,24/11/2023,145.90
"Communities, Customer & Commercial Services",Customer Relationships & Welfare Services,Supplies & Services,Other Grants (Expenses),H Incentives Ltd,08/11/2023,"19,744.00"
Prosperity & Investment,BiT,Premises-Related Expenditure,Service Contracts,Heightsafe Systems Ltd,01/11/2023,295.00
Policy & Governance,Organisational Development & Delivery,Supplies & Services,Registration / Licence Fees,Henpicked: Menopause in the Workplace Ltd,16/11/2023,"1,495.00"
Education & Skills,SEND (0-25),Employees,Course Fees,Herefordshire and Ludlow College,06/11/2023,237.00
Prosperity & Investment,BiT,Supplies & Services,Consultancy,HEREFORDSHIRE COUNCIL,23/11/2023,"2,493.00"
Neighbourhood & Enforcement Services,Neighbourhood & Environmental Services,Supplies & Services,Other Services,HILBRAE PETS HOTEL,21/11/2023,"2,271.24"
Prosperity & Investment,BiT,Capital Expenditure,Payments to Contractor,HOARE LEA CONSULTING ENGINEERS,14/11/2023,"4,250.00"
Policy & Governance,Governance & Legal Services,Employees,Staff Training,Hoey Ainscough Associates Ltd,08/11/2023,180.00
Children�s Safeguarding & Family Support,Family Connect & Childrens Centres,Premises-Related Expenditure,Hire Of Rooms,HOLLINSWOOD & RANDLAY PARISH COUNCIL,10/11/2023,110.00
Neighbourhood & Enforcement Services,Safer & Stronger Communities,Supplies & Services,Other Services,HOLLINSWOOD & RANDLAY PARISH COUNCIL,14/11/2023,200.00
Children�s Safeguarding & Family Support,Family Connect & Childrens Centres,Supplies & Services,Other Services,HOME-START TELFORD & WREKIN,09/11/2023,"3,000.00"
"Housing, Employment & Infrastructure",Inward Investment & Business Support,Supplies & Services,Consultancy,Horizons Consultants Ltd,07/11/2023,"1,000.00"
Neighbourhood & Enforcement Services,Safer & Stronger Communities,Premises-Related Expenditure,Hire Of Rooms,Horsehay Village Hall,28/11/2023,480.00
Education & Skills,Consultancy & Advisory Services,Supplies & Services,Materials,I CAN CHARITY,06/11/2023,"19,000.00"
"Communities, Customer & Commercial Services",ICT,Supplies & Services,Comp Hardware (Purch / Hire),ICTn Limited,23/11/2023,"1,441.88"
"Communities, Customer & Commercial Services",ICT,Supplies & Services,Equipment - Purchase,ICTn Limited,28/11/2023,"1,224.72"
"Communities, Customer & Commercial Services",ICT,Supplies & Services,Equipment - Purchase,ICTn Limited,28/11/2023,494.00
"Communities, Customer & Commercial Services",ICT,Supplies & Services,Equipment - Purchase,ICTn Limited,28/11/2023,162.00
"Communities, Customer & Commercial Services",ICT,Supplies & Services,Equipment - Purchase,ICTn Limited,28/11/2023,152.00
"Communities, Customer & Commercial Services",ICT,Supplies & Services,Equipment - Purchase,ICTn Limited,28/11/2023,895.00
Prosperity & Investment,Regeneration & Investment,Premises-Related Expenditure,Grounds Maintenance - L&CS,Id verde,15/11/2023,134.94
Prosperity & Investment,Regeneration & Investment,Premises-Related Expenditure,Grounds Maintenance - L&CS,Id verde,15/11/2023,134.94
"Communities, Customer & Commercial Services",Sport & Leisure,Supplies & Services,Protective Clothing,IMAGE@WORK LTD,06/11/2023,"1,098.64"
"Communities, Customer & Commercial Services",Sport & Leisure,Supplies & Services,Protective Clothing,IMAGE@WORK LTD,06/11/2023,"1,298.83"
Policy & Governance,Governance & Legal Services,Supplies & Services,Print Room Recharges,IMPACT MAIL & PRINT LTD,06/11/2023,728.40
Policy & Governance,Governance & Legal Services,Supplies & Services,Printing - Other,IMPACT MAIL & PRINT LTD,03/11/2023,394.31
Policy & Governance,Governance & Legal Services,Supplies & Services,Printing - Other,IMPACT MAIL & PRINT LTD,03/11/2023,299.55
Policy & Governance,Governance & Legal Services,Supplies & Services,Printing - Other,IMPACT MAIL & PRINT LTD,03/11/2023,183.37
Policy & Governance,Governance & Legal Services,Supplies & Services,Printing - Other,IMPACT MAIL & PRINT LTD,03/11/2023,323.33
Policy & Governance,Governance & Legal Services,Supplies & Services,Printing - Other,IMPACT MAIL & PRINT LTD,29/11/2023,193.02
Policy & Governance,Governance & Legal Services,Supplies & Services,Printing - Other,IMPACT MAIL & PRINT LTD,29/11/2023,152.29
Neighbourhood & Enforcement Services,Public Protection,Supplies & Services,Web Services,Industry Signage,20/11/2023,240.00
Finance & Human Resources,Revenues,Supplies & Services,Consultancy,Inform CPI Ltd,02/11/2023,"2,200.00"
Finance & Human Resources,Revenues,Supplies & Services,Consultancy,Inform CPI Ltd,23/11/2023,"1,100.00"
Children�s Safeguarding & Family Support,Family Connect & Childrens Centres,Supplies & Services,Printing - Other,Inform Printed Solutions Ltd T/A Totally Branded,06/11/2023,727.50
Education & Skills,SEND (0-25),Supplies & Services,Other Services,Inspire EdPsych Ltd,29/11/2023,"2,000.00"
"Communities, Customer & Commercial Services",Sport & Leisure,Employees,Staff Training,INSTITUTE OF SWIMMING ,14/11/2023,750.00
"Communities, Customer & Commercial Services",Sport & Leisure,Employees,Staff Training,INSTITUTE OF SWIMMING ,14/11/2023,"3,174.00"
"Communities, Customer & Commercial Services",Sport & Leisure,Employees,Staff Training,INSTITUTE OF SWIMMING ,10/11/2023,"6,470.00"
"Housing, Employment & Infrastructure",Inward Investment & Business Support,Supplies & Services,Consultancy,Involved Social Impact Projects Ltd,03/11/2023,875.00
Education & Skills,Consultancy & Advisory Services,Supplies & Services,Other Grants (Expenses),IRONBRIDGE GORGE MUSEUM TRUST LTD,02/11/2023,218.75
Children�s Safeguarding & Family Support,"Family Placements, Children in Care, Leaving Care & Emergency Duty Team",Supplies & Services,Doctors Fees,IRONBRIDGE MEDICAL PRACTICE,28/11/2023,176.00
